Directorate,Department,Expenditure Type,Ref.Doc.1,Vendor Name,Expenditure Amount (exc VAT),Payment Date
Assurance,Assurance,Printing-Contract,10014959,ELECTORAL REFORM SERVICES,192.50,22/01/2019
Assurance,Assurance,Other Services,60121505,ROYAL MAIL GROUP LIMITED,0.96,18/01/2019
Assurance,Assurance,Other Services,60121516,ROYAL MAIL GROUP LIMITED,885.85,17/01/2019
Assurance,Assurance,Other Services,60120452,ASSOCIATION OF ELECTORAL ADMINISTRA,"1,295.00",10/01/2019
Assurance,Assurance,Other Services,60120791,DEMOCRACY COUNTS LIMITED,133.00,10/01/2019
Assurance,Assurance,Other Services,10014950,ELECTORAL REFORM SERVICES,"57,233.15",21/01/2019
Assurance,Assurance,Other Services,60119922,ELECTORAL REFORM SERVICES,"1,533.50",14/01/2019
Assurance,Assurance,Other Services,60120549,ELECTORAL REFORM SERVICES,"1,729.53",11/01/2019
Assurance,Assurance,Other Services,60122144,ELECTORAL REFORM SERVICES,"3,394.80",29/01/2019
Assurance,Assurance,Other Services,60122145,ELECTORAL REFORM SERVICES,"30,512.33",29/01/2019
Assurance,Assurance,Other Services,60122176,ELECTORAL REFORM SERVICES,"1,418.01",29/01/2019
Assurance,Assurance,Postage,60120579,ELECTORAL REFORM SERVICES,"3,828.29",08/01/2019
Assurance,Assurance,Subscriptions,60103592,SHAW & SONS LIMITED,76.84,28/01/2019
Assurance,Assurance,Venue Hire,80022497,ST MARYARCHANGLEMICHAEL COPTIC,"1,200.00",15/01/2019
Assurance,Assurance,Professional Services,60121724,CENTERPLATE UK,"3,725.70",22/01/2019
Assurance,Assurance,Other Indirect Employee Expens,80022728,MAYOR OF SUTTON'S CHARITY FUND,30.00,24/01/2019
Assurance,Assurance,Other Indirect Employee Expens,80022731,LB OF BROMLEY MAYOR'S CHARITY,14.00,24/01/2019
Assurance,Assurance,Other Indirect Employee Expens,80022733,MAYOR'S CHARITY APPEAL,110.00,24/01/2019
Assurance,Assurance,Other Indirect Employee Expens,80022738,LB HOUNSLOW MAYOR'S ACCOUNT,35.00,24/01/2019
Assurance,Assurance,Other Indirect Employee Expens,80022747,MAYOR OF HILLINGDON'S CHARITY,35.00,24/01/2019
Assurance,Assurance,Other Indirect Employee Expens,80022880,THE MAYOR OF ENFIELD,10.00,28/01/2019
Assurance,Assurance,Professional Services,80022213,S7 CHAUFFEURS LTD,"1,095.00",09/01/2019
Assurance,Assurance,Training,60121232,ASSOCIATION OF DEMOCRATIC SERVICES OFFIC,420.75,17/01/2019
Assurance,Assurance,Rents,60122468,THE BULL THEATRE,370.00,31/01/2019
Assurance,Assurance,Rents,60122361,ARTS DEPOT PRODUCTIONS LTD,"1,841.75",30/01/2019
Assurance,Assurance,Equipment and Materials Purcha,60119033,GOOD IMPRESSIONS (LONDON) LIMITED,900.00,03/01/2019
Assurance,Assurance,Stationery,40003145,OFFICE DEPOT UK LTD,36.09,03/01/2019
Assurance,Assurance,Venue Hire,60120270,NEW BARNET COMMUNITY ASSOCIATION,360.00,03/01/2019
Assurance,Assurance,Consultants Fees,60114866,PRICEWATERHOUSE COOPERS,"20,000.00",09/01/2019
Assurance,Assurance,Consultants Fees,60119149,PRICEWATERHOUSE COOPERS,"25,000.00",03/01/2019
Assurance,Assurance,Professional Services,60039914,PRICEWATERHOUSE COOPERS,"-4,455.00",03/01/2019
Assurance,Assurance,Translation Exp / Interpret,60121081,PRIME PRODUCTION LTD,47.00,15/01/2019
Assurance,Assurance,Postage,60117603,ROYAL MAIL GROUP LIMITED,0.48,09/01/2019
Assurance,Assurance,Other Services,80022767,PREMIER SOLICITORS,291.67,24/01/2019
Assurance,Assurance,Translation Exp / Interpret,60118630,REDACTED - PERSONAL DATA,"1,542.50",03/01/2019
Central Expenses,Central Expenses,Other Services,60122023,BDO LLP,"21,617.00",24/01/2019
Central Expenses,Central Expenses,Grant Payments,60121396,CITY OF LONDON,"73,238.00",21/01/2019
Central Expenses,Central Expenses,Grant Payments,60120997,TRANSPORT FOR LONDON,"114,966.69",14/01/2019
Central Expenses,Central Expenses,Joint Authorities - Third Part,60120536,LONDON BOROUGH OF HARINGEY,"72,653.09",11/01/2019
Central Expenses,Central Expenses,Insurance Claims,80022561,BRITISH TELECOM PLC,"2,609.87",24/01/2019
Central Expenses,Central Expenses,Insurance Claims,80022070,DWP COMPENSATION RECOVERY UNIT,678.00,03/01/2019
Central Expenses,Central Expenses,Insurance Claims,80022556,DWP COMPENSATION RECOVERY UNIT,665.00,24/01/2019
Central Expenses,Central Expenses,Insurance Claims,80022935,DWP COMPENSATION RECOVERY UNIT,665.00,29/01/2019
Central Expenses,Central Expenses,Insurance Claims,60119084,GLENDALE COUNTRYSIDE LTD,101.98,03/01/2019
Central Expenses,Central Expenses,Insurance Claims,60119107,GLENDALE COUNTRYSIDE LTD,"2,400.00",03/01/2019
Central Expenses,Central Expenses,Insurance Claims,60119817,GLENDALE COUNTRYSIDE LTD,120.00,09/01/2019
Central Expenses,Central Expenses,Insurance Claims,60119876,GLENDALE COUNTRYSIDE LTD,31.78,09/01/2019
Central Expenses,Central Expenses,Insurance Claims,60119454,WEIGHTMANS LLP,"1,276.50",03/01/2019
Central Expenses,Central Expenses,Insurance Claims,60120517,WEIGHTMANS LLP,"2,358.70",04/01/2019
Central Expenses,Central Expenses,Insurance Claims,60120586,WEIGHTMANS LLP,"1,050.00",24/01/2019
Central Expenses,Central Expenses,Insurance Claims,80022221,ADMIRAL INSURANCE,"4,772.31",08/01/2019
Central Expenses,Central Expenses,Insurance Claims,60120407,JOHNSON AUSTIN LIMITED,"1,270.00",04/01/2019
Central Expenses,Central Expenses,Insurance Claims,80022163,MOTOR INSURER'S BUREAU,800.00,03/01/2019
Central Expenses,Central Expenses,Insurance Claims,80022571,SCOTT REES & CO. SOLICITORS,"3,234.00",24/01/2019
Central Expenses,Central Expenses,Insurance Claims,80022547,SIMPSON MILLAR LLP,"10,107.13",24/01/2019
Central Expenses,Central Expenses,Insurance Claims,80021901,DIAMOND INSURANCE,951.66,11/01/2019
Central Expenses,Central Expenses,Insurance Claims,80022067,MICHAEL W HALSALL SOLICITORS,"7,333.48",03/01/2019
Central Expenses,Central Expenses,Insurance Claims,80022080,AUXILLISSERVICES LIMITED,"2,259.53",03/01/2019
Central Expenses,Central Expenses,Insurance Claims,80022081,KINDERTONS LTD,276.49,03/01/2019
Central Expenses,Central Expenses,Insurance Claims,80022082,PRODDOW MACKAY,815.34,03/01/2019
Central Expenses,Central Expenses,Insurance Claims,80022198,AUXILLIS SERVICES LIMITED,"2,443.22",08/01/2019
Central Expenses,Central Expenses,Insurance Claims,80022235,KINDERTONS LTD,"18,894.49",11/01/2019
Central Expenses,Central Expenses,Insurance Claims,80022251,AUXILLIS SERVICES LIMITED,"2,299.28",11/01/2019
Central Expenses,Central Expenses,Insurance Claims,80022396,T L MOTORS,367.74,15/01/2019
Central Expenses,Central Expenses,Insurance Claims,80022430,BOTT & COMPANY,"1,728.00",15/01/2019
Central Expenses,Central Expenses,Insurance Claims,80022444,BT LEGAL,"2,736.08",17/01/2019
Central Expenses,Central Expenses,Insurance Claims,80022540,MANSFIELD SOLICITORS,"5,202.00",18/01/2019
Central Expenses,Central Expenses,Insurance Claims,80022560,KINETIC LAW LIMITED,"9,239.00",24/01/2019
Central Expenses,Central Expenses,Insurance Claims,80022568,CLARKE WILLMOTT LLP,285.00,24/01/2019
Central Expenses,Central Expenses,Insurance Claims,80022599,BOTT & COMPANY,"8,325.00",24/01/2019
Central Expenses,Central Expenses,Insurance Claims,80022699,AAUICL,379.32,24/01/2019
Central Expenses,Central Expenses,Insurance Claims,80022717,ESURE,"1,496.15",23/01/2019
Central Expenses,Central Expenses,Insurance Claims,80022754,KINDERTONS,"3,105.51",24/01/2019
Central Expenses,Central Expenses,Insurance Claims,80022893,GREGORY ABRAMS DAVIDSON LLP,"7,270.00",29/01/2019
Central Expenses,Central Expenses,Insurance Claims,80022323,REDACTED - PERSONAL DATA,15.00,11/01/2019
Central Expenses,Central Expenses,Insurance Claims,80022339,REDACTED - PERSONAL DATA,"3,132.80",11/01/2019
Central Expenses,Central Expenses,Insurance Claims,80022382,REDACTED - PERSONAL DATA,145.94,15/01/2019
Central Expenses,Central Expenses,Insurance Claims,80022439,REDACTED - PERSONAL DATA,229.95,15/01/2019
Central Expenses,Central Expenses,Insurance Claims,80022544,REDACTED - PERSONAL DATA,"1,430.00",18/01/2019
Central Expenses,Central Expenses,Insurance Claims,80022564,REDACTED - PERSONAL DATA,590.00,24/01/2019
Central Expenses,Central Expenses,Insurance Claims,80022937,REDACTED - PERSONAL DATA,81.60,29/01/2019
Central Expenses,Central Expenses,Insurance Claims,80022946,REDACTED - PERSONAL DATA,"2,080.00",29/01/2019
Central Expenses,Central Expenses,Insurance Claims,80022987,REDACTED - PERSONAL DATA,609.00,29/01/2019
Central Expenses,Central Expenses,Insurance Claims,80023020,REDACTED - PERSONAL DATA,84.00,29/01/2019
Central Expenses,Central Expenses,Other Establishments - Third P,EBX0264261,LEE VALLEY REGIONAL PARK AUTH.,"28,597.64",15/01/2019
Central Expenses,Central Expenses,Other Establishments - Third P,EBX0263974,GREATER LONDON AUTHORITY,"3,396,343.00",11/01/2019
Commercial,Customer Support Group,Professional Services,60118796,THE BARNETGROUP LIMITED,"24,296.56",09/01/2019
Commercial,Customer Support Group,Fees and Charges,80022538,REDACTED - PERSONAL DATA,310.00,24/01/2019
Commercial,Customer Support Group,Fees and Charges,80022897,REDACTED - PERSONAL DATA,325.00,25/01/2019
Commercial,Customer Support Group,Ttl IT & Comms,60120942,TELEFONICA UK LTD,7.75,15/01/2019
Commercial,Customer Support Group,Ttl IT & Comms,60121071,TELEFONICA UK LTD,51.07,16/01/2019
Commercial,Customer Support Group,Ttl IT & Comms,60121127,TELEFONICA UK LTD,40.00,16/01/2019
Commercial,Customer Support Group,Ttl IT & Comms,60121072,VODAFONE LTD (BILLS ONLY),358.47,16/01/2019
Commercial,Customer Support Group,Ttl IT & Comms,60121339,VODAFONE LTD (BILLS ONLY),368.76,18/01/2019
Commercial,Customer Support Group,Professional Services,60117449,ROSSENDALES (COLLECT) LTD,-35.70,14/01/2019
Commercial,Customer Support Group,Professional Services,60117661,ROSSENDALES (COLLECT) LTD,"2,397.00",14/01/2019
Commercial,Customer Support Group,Professional Services,60117681,ROSSENDALES (COLLECT) LTD,"1,613.66",14/01/2019
Commercial,Customer Support Group,Other Services,10014939,LOOMIS UK LIMITED,942.22,17/01/2019
Commercial,Customer Support Group,Other Services,10014940,LOOMIS UK LIMITED,54.00,17/01/2019
Commercial,Customer Support Group,Other Services,10014941,LOOMIS UK LIMITED,942.22,17/01/2019
Commercial,Customer Support Group,Other Services,10014942,LOOMIS UK LIMITED,54.00,17/01/2019
Commercial,Customer Support Group,CSG Services Contract Payment,60119977,CAPITA BUSINESS SERVICES LTD,"17,215.19",03/01/2019
Commercial,Customer Support Group,Building Repairs & Maintenance,60114006,AJS LTD,-14.86,29/01/2019
Commercial,Customer Support Group,Building Repairs & Maintenance,60120674,AJS LTD,52.00,09/01/2019
Commercial,Customer Support Group,Building Repairs & Maintenance,60120693,AJS LTD,88.00,09/01/2019
Commercial,Customer Support Group,Building Repairs & Maintenance,60119750,PURDY CONTRACTS LTD,37.40,18/01/2019
Commercial,Customer Support Group,Building Repairs & Maintenance,60119819,PURDY CONTRACTS LTD,183.60,18/01/2019
Commercial,Customer Support Group,Building Repairs & Maintenance,10014832,INTEGRATED WATER SERVICES LTD,43.75,07/01/2019
Commercial,Customer Support Group,Building Repairs & Maintenance,60119267,INTEGRATED WATER SERVICES LTD,43.75,03/01/2019
Commercial,Customer Support Group,Building Repairs & Maintenance,60119313,INTEGRATED WATER SERVICES LTD,150.00,03/01/2019
Commercial,Customer Support Group,Building Repairs & Maintenance,60119648,T. & D. BARRS,286.45,08/01/2019
Commercial,Customer Support Group,Building Repairs & Maintenance,60119663,T. & D. BARRS,136.00,08/01/2019
Commercial,Customer Support Group,Building Repairs & Maintenance,60119669,T. & D. BARRS,741.80,08/01/2019
Commercial,Customer Support Group,Building Repairs & Maintenance,60119694,T. & D. BARRS,221.00,11/01/2019
Commercial,Customer Support Group,Building Repairs & Maintenance,60119695,T. & D. BARRS,212.50,08/01/2019
Commercial,Customer Support Group,Building Repairs & Maintenance,60119897,T. & D. BARRS,335.75,10/01/2019
Commercial,Customer Support Group,Building Repairs & Maintenance,60102354,OAKRAY LIMITED,280.15,14/01/2019
Commercial,Customer Support Group,Cleaning and domestic material,60120795,CHURCHILL CONTRACT SERVICES,"1,342.08",30/01/2019
Commercial,Customer Support Group,Building Repairs & Maintenance,60083621,S W BRUCE & CO LTD,148.99,25/01/2019
Commercial,Customer Support Group,Building Repairs & Maintenance,60119919,S W BRUCE & CO LTD,367.00,10/01/2019
Commercial,Customer Support Group,Building Repairs & Maintenance,60098894,LIFT & ENGINEERING SERVICES LTD,143.38,24/01/2019
Commercial,Customer Support Group,Building Repairs & Maintenance,60120346,LIFT & ENGINEERING SERVICES LTD,232.00,03/01/2019
Commercial,Customer Support Group,Gas,60115876,KENT COUNTY COUNCIL (KCS),"1,490.41",07/01/2019
Commercial,Customer Support Group,Gas,60120091,KENT COUNTY COUNCIL (KCS),"6,487.01",03/01/2019
Commercial,Customer Support Group,Electricity,60120225,KENT COUNTY COUNCIL (KCS),"6,453.09",03/01/2019
Commercial,Customer Support Group,Electricity,60121766,KENT COUNTY COUNCIL (KCS),"6,009.37",31/01/2019
Commercial,Customer Support Group,Water Services,60118694,AFFINITY WATER LIMITED,512.14,04/01/2019
Commercial,Customer Support Group,Water Services,60120636,AFFINITY WATER LIMITED,492.35,16/01/2019
Commercial,Customer Support Group,Water Services,60120318,ANGEL SPRINGS LTD,258.00,10/01/2019
Commercial,Customer Support Group,Water Services,60120462,ANGEL SPRINGS LTD,235.00,10/01/2019
Commercial,Customer Support Group,Water Services,60121103,ANGEL SPRINGS LTD,149.05,29/01/2019
Commercial,Customer Support Group,Water Services,60121165,ANGEL SPRINGS LTD,22.58,29/01/2019
Commercial,Customer Support Group,Water Services,60119843,CASTLE WATER LTD,499.67,11/01/2019
Commercial,Customer Support Group,Water Services,60122070,CASTLE WATER LTD,573.44,28/01/2019
Commercial,Customer Support Group,Cleaning and domestic material,60121248,CHURCHILL CONTRACT SERVICES,"15,031.30",30/01/2019
Commercial,Customer Support Group,Cleaning and domestic material,60120015,HERTFORDSHIRE SUPPLIES   COUNTY CO,"3,118.59",14/01/2019
Commercial,Customer Support Group,Cleaning and domestic material,60120075,HERTFORDSHIRE SUPPLIES   COUNTY CO,26.40,14/01/2019
Commercial,Customer Support Group,Cleaning and domestic material,60121015,HERTFORDSHIRE SUPPLIES   COUNTY CO,356.75,16/01/2019
Commercial,Customer Support Group,Rubbish Collection,60121195,G.B.HOLDINGS LTD,934.00,15/01/2019
Commercial,Customer Support Group,Rubbish Collection,60115009,PEARCE RECYCLING GROUP,134.00,07/01/2019
Commercial,Customer Support Group,Rubbish Collection,60121318,PEARCE RECYCLING GROUP,50.50,29/01/2019
Commercial,Customer Support Group,Furniture-Purchase-Repair,60121524,SCREWFIX DIRECT LTD,44.15,24/01/2019
Commercial,Customer Support Group,Furniture-Purchase-Repair,60121925,SCREWFIX DIRECT LTD,59.96,28/01/2019
Commercial,Customer Support Group,Other Services,60120633,BLUE 9 SECURITY LIMITED,"12,966.08",10/01/2019
Commercial,Customer Support Group,Other Services,60120648,BLUE 9 SECURITY LIMITED,"3,518.82",10/01/2019
Commercial,Customer Support Group,Other Services,60119210,LEASING PROGRAMMES LIMITED,"1,235.00",03/01/2019
Commercial,Customer Support Group,Telephones Calls,60120620,BRITISH TELECOM PLC,131.88,08/01/2019
Commercial,Customer Support Group,Rents,60118457,MIDDLESEX UNIVERSITY,"62,250.00",03/01/2019
Commercial,Customer Support Group,Water Services,60120382,ANGEL SPRINGS LTD,118.60,08/01/2019
Commercial,Customer Support Group,Water Services,60121206,ANGEL SPRINGS LTD,63.00,29/01/2019
Commercial,Customer Support Group,Cleaning and domestic material,60121659,CHURCHILL CONTRACT SERVICES,"1,133.45",21/01/2019
Commercial,Customer Support Group,Cleaning and domestic material,60122318,CHURCHILL CONTRACT SERVICES,"1,473.49",30/01/2019
Commercial,Customer Support Group,Cleaning and domestic material,60117006,HERTFORDSHIRE SUPPLIES   COUNTY CO,242.17,09/01/2019
Commercial,Customer Support Group,Cleaning and domestic material,60120971,HERTFORDSHIRE SUPPLIES   COUNTY CO,212.73,16/01/2019
Commercial,Customer Support Group,Publications,60120610,SPECTRUM SIGNWRITING LTD,390.00,15/01/2019
Commercial,Customer Support Group,Other Services,60120649,BLUE 9 SECURITY LIMITED,"5,380.74",10/01/2019
Commercial,Customer Support Group,Gas,60118821,KENT COUNTY COUNCIL (KCS),320.82,03/01/2019
Commercial,Customer Support Group,Gas,60120124,KENT COUNTY COUNCIL (KCS),506.00,03/01/2019
Commercial,Customer Support Group,Electricity,60119568,KENT COUNTY COUNCIL (KCS),269.82,03/01/2019
Commercial,Customer Support Group,Water Services,60121579,CASTLE WATER LTD,131.41,24/01/2019
Commercial,Customer Support Group,Water Services,60121588,CASTLE WATER LTD,391.94,24/01/2019
Commercial,Customer Support Group,Water Services,60121611,CASTLE WATER LTD,107.08,24/01/2019
Commercial,Customer Support Group,Electricity,60121107,EDF ENERGY CUSTOMERS PLC,301.81,18/01/2019
Commercial,Customer Support Group,Cleaning and domestic material,60120761,CHURCHILL CONTRACT SERVICES,299.25,29/01/2019
Commercial,Customer Support Group,Cleaning and domestic material,60120781,CHURCHILL CONTRACT SERVICES,"9,528.77",30/01/2019
Commercial,Customer Support Group,Cleaning and domestic material,60119976,HERTFORDSHIRE SUPPLIES   COUNTY CO,"2,540.30",14/01/2019
Commercial,Customer Support Group,Cleaning and domestic material,60120960,HERTFORDSHIRE SUPPLIES   COUNTY CO,"2,332.57",16/01/2019
Commercial,Customer Support Group,Rubbish Collection,60114786,G.B.HOLDINGS LTD,"1,690.00",15/01/2019
Commercial,Customer Support Group,Rubbish Collection,60121131,G.B.HOLDINGS LTD,"1,831.00",16/01/2019
Commercial,Customer Support Group,Rubbish Collection,60121284,PEARCE RECYCLING GROUP,53.00,18/01/2019
Commercial,Customer Support Group,Rubbish Collection,60120474,PREMIER SHREDDING,50.00,03/01/2019
Commercial,Customer Support Group,Furniture-Purchase-Repair,60120862,SCREWFIX DIRECT LTD,25.79,16/01/2019
Commercial,Customer Support Group,Other Services,60120612,BLUE 9 SECURITY LIMITED,"11,584.08",10/01/2019
Commercial,Customer Support Group,Other Services,60120857,BLUE 9 SECURITY LIMITED,"2,271.40",11/01/2019
Commercial,Customer Support Group,Other Services,60120951,BLUE 9 SECURITY LIMITED,"1,783.29",15/01/2019
Commercial,Customer Support Group,Other Services,60120956,BLUE 9 SECURITY LIMITED,"1,989.09",15/01/2019
Commercial,Customer Support Group,Other Services,60121002,BLUE 9 SECURITY LIMITED,"2,084.47",15/01/2019
Commercial,Customer Support Group,Gas,60118760,KENT COUNTY COUNCIL (KCS),48.28,03/01/2019
Commercial,Customer Support Group,Gas,60118797,KENT COUNTY COUNCIL (KCS),47.02,03/01/2019
Commercial,Customer Support Group,Gas,60118801,KENT COUNTY COUNCIL (KCS),47.92,03/01/2019
Commercial,Customer Support Group,Electricity,60122423,KENT COUNTY COUNCIL (KCS),620.31,31/01/2019
Commercial,Customer Support Group,Cleaning and domestic material,60120789,CHURCHILL CONTRACT SERVICES,860.34,30/01/2019
Commercial,Customer Support Group,Other Services,60120888,BLUE 9 SECURITY LIMITED,13.43,11/01/2019
Commercial,Customer Support Group,Building Repairs & Maintenance,10014913,AJS LTD,"2,129.24",21/01/2019
Commercial,Customer Support Group,Building Repairs & Maintenance,60120455,AJS LTD,16.80,03/01/2019
Commercial,Customer Support Group,Building Repairs & Maintenance,10014872,OAKRAY LIMITED,386.25,04/01/2019
Commercial,Customer Support Group,Building Repairs & Maintenance,60105697,OAKRAY LIMITED,348.80,04/01/2019
Commercial,Customer Support Group,Building Repairs & Maintenance,60115578,OAKRAY LIMITED,386.25,10/01/2019
Commercial,Customer Support Group,Building Repairs & Maintenance,60118050,OAKRAY LIMITED,30.00,31/01/2019
Commercial,Customer Support Group,Building Repairs & Maintenance,60118410,PICKERINGS LIFTS LTD,"1,293.77",21/01/2019
Commercial,Customer Support Group,Building Repairs & Maintenance,60120794,PICKERINGS LIFTS LTD,"1,614.61",21/01/2019
Commercial,Customer Support Group,Building Repairs & Maintenance,60118667,PURDY CONTRACTS LTD,35.00,29/01/2019
Commercial,Customer Support Group,Building Repairs & Maintenance,60118794,PURDY CONTRACTS LTD,63.31,29/01/2019
Commercial,Customer Support Group,Building Repairs & Maintenance,60118979,PURDY CONTRACTS LTD,22.58,29/01/2019
Commercial,Customer Support Group,Building Repairs & Maintenance,60119981,S W BRUCE & CO LTD,"2,127.50",10/01/2019
Commercial,Customer Support Group,Building Repairs & Maintenance,10014877,SECOM PLC,717.86,07/01/2019
Commercial,Customer Support Group,Building Repairs & Maintenance,60115965,WATES CONSTRUCTION LTD,83.09,08/01/2019
Commercial,Customer Support Group,Building Repairs & Maintenance,10014817,INTEGRATED WATER SERVICES LTD,143.10,03/01/2019
Commercial,Customer Support Group,Building Repairs & Maintenance,10014818,INTEGRATED WATER SERVICES LTD,250.00,03/01/2019
Commercial,Customer Support Group,Building Repairs & Maintenance,10014821,INTEGRATED WATER SERVICES LTD,250.00,03/01/2019
Commercial,Customer Support Group,Building Repairs & Maintenance,10014822,INTEGRATED WATER SERVICES LTD,250.00,03/01/2019
Commercial,Customer Support Group,Building Repairs & Maintenance,10014824,INTEGRATED WATER SERVICES LTD,"1,987.50",03/01/2019
Commercial,Customer Support Group,Building Repairs & Maintenance,10014825,INTEGRATED WATER SERVICES LTD,162.50,03/01/2019
Commercial,Customer Support Group,Building Repairs & Maintenance,10014826,INTEGRATED WATER SERVICES LTD,48.75,03/01/2019
Commercial,Customer Support Group,Building Repairs & Maintenance,10014827,INTEGRATED WATER SERVICES LTD,"1,736.25",03/01/2019
Commercial,Customer Support Group,Building Repairs & Maintenance,10014829,INTEGRATED WATER SERVICES LTD,"1,593.75",03/01/2019
Commercial,Customer Support Group,Building Repairs & Maintenance,10014833,INTEGRATED WATER SERVICES LTD,"1,493.75",03/01/2019
Commercial,Customer Support Group,Building Repairs & Maintenance,60119279,INTEGRATED WATER SERVICES LTD,75.00,03/01/2019
Commercial,Customer Support Group,Building Repairs & Maintenance,60119287,INTEGRATED WATER SERVICES LTD,43.75,03/01/2019
Commercial,Customer Support Group,Building Repairs & Maintenance,60119289,INTEGRATED WATER SERVICES LTD,"1,531.25",03/01/2019
Commercial,Customer Support Group,Building Repairs & Maintenance,60119304,INTEGRATED WATER SERVICES LTD,"1,593.75",04/01/2019
Commercial,Customer Support Group,Building Repairs & Maintenance,60119308,INTEGRATED WATER SERVICES LTD,450.00,03/01/2019
Commercial,Customer Support Group,Building Repairs & Maintenance,60115562,T. & D. BARRS,425.00,03/01/2019
Commercial,Customer Support Group,Building Repairs & Maintenance,60117725,T. & D. BARRS,63.92,11/01/2019
Commercial,Customer Support Group,Building Repairs & Maintenance,60119638,T. & D. BARRS,76.50,28/01/2019
Commercial,Customer Support Group,Building Repairs & Maintenance,60119647,T. & D. BARRS,25.50,28/01/2019
Commercial,Customer Support Group,Building Repairs & Maintenance,60119655,T. & D. BARRS,260.10,29/01/2019
Commercial,Customer Support Group,Building Repairs & Maintenance,60119666,T. & D. BARRS,165.75,28/01/2019
Commercial,Customer Support Group,Building Repairs & Maintenance,60119686,T. & D. BARRS,153.00,09/01/2019
Commercial,Customer Support Group,Building Repairs & Maintenance,60119702,T. & D. BARRS,93.50,28/01/2019
Commercial,Customer Support Group,Building Repairs & Maintenance,60119705,T. & D. BARRS,280.50,09/01/2019
Commercial,Customer Support Group,Building Repairs & Maintenance,60119711,T. & D. BARRS,30.60,28/01/2019
Commercial,Customer Support Group,Building Repairs & Maintenance,60119724,T. & D. BARRS,80.75,28/01/2019
Commercial,Customer Support Group,Building Repairs & Maintenance,60120218,T. & D. BARRS,274.55,29/01/2019
Commercial,Customer Support Group,Building Repairs & Maintenance,60121370,T. & D. BARRS,119.00,28/01/2019
Commercial,Customer Support Group,Gas,60122002,KENT COUNTY COUNCIL (KCS),59.54,28/01/2019
Commercial,Customer Support Group,Gas,60122060,KENT COUNTY COUNCIL (KCS),47.40,28/01/2019
Commercial,Customer Support Group,Electricity,60121352,BRITISH GAS BUSINESS,40.30,18/01/2019
Commercial,Customer Support Group,Electricity,10014875,E-ON ENERGY,23.00,07/01/2019
Commercial,Customer Support Group,Electricity,10014880,E-ON ENERGY,419.24,09/01/2019
Commercial,Customer Support Group,Electricity,10014881,E-ON ENERGY,530.25,08/01/2019
Commercial,Customer Support Group,Electricity,60120698,E-ON ENERGY,753.09,08/01/2019
Commercial,Customer Support Group,Electricity,60121650,KENT COUNTY COUNCIL (KCS),214.29,24/01/2019
Commercial,Customer Support Group,Electricity,60121665,KENT COUNTY COUNCIL (KCS),37.59,24/01/2019
Commercial,Customer Support Group,Electricity,60121716,KENT COUNTY COUNCIL (KCS),54.73,31/01/2019
Commercial,Customer Support Group,Electricity,60121730,KENT COUNTY COUNCIL (KCS),698.85,24/01/2019
Commercial,Customer Support Group,Electricity,60121735,KENT COUNTY COUNCIL (KCS),53.03,24/01/2019
Commercial,Customer Support Group,Electricity,60122391,KENT COUNTY COUNCIL (KCS),376.54,30/01/2019
Commercial,Customer Support Group,Other Energy,60120770,EDF ENERGY CUSTOMER FIELD SERVICES,70.98,09/01/2019
Commercial,Customer Support Group,Other Energy,60120867,NPOWER,200.00,15/01/2019
Commercial,Customer Support Group,Rents,60120641,CANAL & RIVER TRUST,"2,000.00",08/01/2019
Commercial,Customer Support Group,Water Services,60102893,AFFINITY WATER LIMITED,107.55,22/01/2019
Commercial,Customer Support Group,Water Services,60120064,AFFINITY WATER LIMITED,187.99,03/01/2019
Commercial,Customer Support Group,Water Services,60120085,AFFINITY WATER LIMITED,41.56,09/01/2019
Commercial,Customer Support Group,Water Services,60120098,AFFINITY WATER LIMITED,351.25,03/01/2019
Commercial,Customer Support Group,Water Services,60120175,AFFINITY WATER LIMITED,50.00,04/01/2019
Commercial,Customer Support Group,Water Services,60120203,AFFINITY WATER LIMITED,201.71,04/01/2019
Commercial,Customer Support Group,Water Services,60120214,AFFINITY WATER LIMITED,50.88,03/01/2019
Commercial,Customer Support Group,Water Services,60120712,CASTLE WATER LTD,400.63,11/01/2019
Commercial,Customer Support Group,Water Services,60121259,CASTLE WATER LTD,24.80,16/01/2019
Commercial,Customer Support Group,Water Services,60121275,CASTLE WATER LTD,24.91,16/01/2019
Commercial,Customer Support Group,Water Services,60121287,CASTLE WATER LTD,16.47,17/01/2019
Commercial,Customer Support Group,Water Services,60121353,CASTLE WATER LTD,21.28,17/01/2019
Commercial,Customer Support Group,Water Services,60121362,CASTLE WATER LTD,26.82,21/01/2019
Commercial,Customer Support Group,Water Services,60121595,CASTLE WATER LTD,17.23,24/01/2019
Commercial,Customer Support Group,Water Services,60121606,CASTLE WATER LTD,33.56,21/01/2019
Commercial,Customer Support Group,Cleaning and domestic material,60119099,CHURCHILL CONTRACT SERVICES,294.16,24/01/2019
Commercial,Customer Support Group,Cleaning and domestic material,60120799,CHURCHILL CONTRACT SERVICES,382.41,30/01/2019
Commercial,Customer Support Group,Cleaning and domestic material,60121326,CHURCHILL CONTRACT SERVICES,863.82,30/01/2019
Commercial,Customer Support Group,Equipment and Materials Purcha,60115361,OAKRAY LIMITED,90.00,04/01/2019
Commercial,Customer Support Group,Equipment and Materials Purcha,60115672,OAKRAY LIMITED,276.75,04/01/2019
Commercial,Customer Support Group,Equipment and Materials Purcha,60118777,PURDY CONTRACTS LTD,"2,124.42",28/01/2019
Commercial,Customer Support Group,Equipment and Materials Purcha,60118798,PURDY CONTRACTS LTD,95.20,28/01/2019
Commercial,Customer Support Group,Equipment and Materials Purcha,60118890,PURDY CONTRACTS LTD,"1,772.82",03/01/2019
Commercial,Customer Support Group,Equipment and Materials Purcha,60118920,PURDY CONTRACTS LTD,451.96,28/01/2019
Commercial,Customer Support Group,Equipment and Materials Purcha,60118609,WATES LIVING SPACE,"3,369.80",28/01/2019
Commercial,Customer Support Group,Consultants Fees,60120735,ESSENTIAL INFORMATION GROUP,475.00,31/01/2019
Commercial,Customer Support Group,Other Services,60120656,BLUE 9 SECURITY LIMITED,124.56,10/01/2019
Commercial,Customer Support Group,Other Services,60120661,BLUE 9 SECURITY LIMITED,53.72,10/01/2019
Commercial,Customer Support Group,Other Services,60120664,BLUE 9 SECURITY LIMITED,214.88,10/01/2019
Commercial,Customer Support Group,Other Services,60120804,LONDON CARETAKERS,350.00,31/01/2019
Commercial,Customer Support Group,Subscriptions,10014972,RICS,"1,020.00",29/01/2019
Commercial,Customer Support Group,Consultants Fees,80022610,COMMERCIAL PROPERTY GROUP LTD,"11,696.25",21/01/2019
Commercial,Customer Support Group,Postage,60120330,OFF THE WALL MARKETING LTD,"1,102.00",03/01/2019
Commercial,Customer Support Group,Postage,60119549,ROYAL MAIL GROUP LIMITED,209.02,14/01/2019
Commercial,Customer Support Group,Postage,60120763,ROYAL MAIL GROUP LIMITED,-52.78,17/01/2019
Commercial,Customer Support Group,Postage,60122429,ROYAL MAIL GROUP LIMITED,145.36,31/01/2019
Commercial,Customer Support Group,Postage,60117657,PULSTAR DATAPRINT LTD,215.00,04/01/2019
Commercial,Customer Support Group,Postage,60117709,PULSTAR DATAPRINT LTD,318.00,04/01/2019
Commercial,Customer Support Group,Postage,60121541,STANFORD MARSH LTD,229.25,18/01/2019
Commercial,Customer Support Group,Postage,60120264,XERETEC OFFICE SYSTEMS,376.15,17/01/2019
Commercial,Customer Support Group,Building Repairs & Maintenance,60120993,RIBBEX UK LTD,734.75,25/01/2019
Commercial,Customer Support Group,Building Repairs & Maintenance,60121040,RIBBEX UK LTD,904.25,25/01/2019
Commercial,Customer Support Group,Gas,60106581,KENT COUNTY COUNCIL (KCS),442.25,30/01/2019
Commercial,Customer Support Group,Gas,60118808,KENT COUNTY COUNCIL (KCS),341.11,30/01/2019
Commercial,Customer Support Group,Gas,60118856,KENT COUNTY COUNCIL (KCS),180.40,14/01/2019
Commercial,Customer Support Group,Gas,60122016,KENT COUNTY COUNCIL (KCS),620.49,25/01/2019
Commercial,Customer Support Group,Electricity,60115895,KENT COUNTY COUNCIL (KCS),"1,661.35",11/01/2019
Commercial,Customer Support Group,Electricity,60118803,KENT COUNTY COUNCIL (KCS),"2,397.86",03/01/2019
Commercial,Customer Support Group,Electricity,60120317,KENT COUNTY COUNCIL (KCS),"2,916.41",10/01/2019
Commercial,Customer Support Group,Electricity,60121441,KENT COUNTY COUNCIL (KCS),"3,023.37",31/01/2019
Commercial,Customer Support Group,Rents,60121457,NETWORK RAIL ACCOUNTS RECEIVABLE,"3,050.00",17/01/2019
Commercial,Customer Support Group,Water Services,60120246,ANGEL SPRINGS LTD,75.00,03/01/2019
Commercial,Customer Support Group,Water Services,60121552,WAVE ANGLIAN WATER BUSINESS,785.41,21/01/2019
Commercial,Customer Support Group,Cleaning and domestic material,60116984,HERTFORDSHIRE SUPPLIES   COUNTY CO,159.40,09/01/2019
Commercial,Customer Support Group,Cleaning and domestic material,60120032,HERTFORDSHIRE SUPPLIES   COUNTY CO,243.90,14/01/2019
Commercial,Customer Support Group,Rubbish Collection,60114774,G.B.HOLDINGS LTD,78.40,16/01/2019
Commercial,Customer Support Group,Rubbish Collection,10014873,PEARCE RECYCLING GROUP,67.50,04/01/2019
Commercial,Customer Support Group,Rubbish Collection,60121333,PEARCE RECYCLING GROUP,42.50,29/01/2019
Commercial,Customer Support Group,Grounds maintenance,60122435,RIBBEX UK LTD,867.00,31/01/2019
Commercial,Customer Support Group,Furniture-Purchase-Repair,60120596,LYCO DIRECT LTD,83.99,09/01/2019
Commercial,Customer Support Group,Furniture-Purchase-Repair,60120910,FRONTIER-PITTS LTD,241.00,29/01/2019
Commercial,Customer Support Group,Other Services,60120637,BLUE 9 SECURITY LIMITED,"22,773.84",10/01/2019
Commercial,Customer Support Group,Other Services,60120856,BLUE 9 SECURITY LIMITED,"8,314.38",11/01/2019
Commercial,Customer Support Group,Building Repairs & Maintenance,60120796,DOORWAY-MAINTENANCE CO.,"2,470.00",17/01/2019
Commercial,Customer Support Group,Building Repairs & Maintenance,60118034,WATES LIVING SPACE,375.00,08/01/2019
Commercial,Customer Support Group,Building Repairs & Maintenance,10014938,AJS LTD,374.34,17/01/2019
Commercial,Customer Support Group,Building Repairs & Maintenance,10014979,AJS LTD,127.94,30/01/2019
Commercial,Customer Support Group,Building Repairs & Maintenance,60117572,AJS LTD,338.51,09/01/2019
Commercial,Customer Support Group,Building Repairs & Maintenance,60117668,AJS LTD,466.29,09/01/2019
Commercial,Customer Support Group,Building Repairs & Maintenance,60117683,AJS LTD,427.89,09/01/2019
Commercial,Customer Support Group,Building Repairs & Maintenance,60117782,AJS LTD,785.23,09/01/2019
Commercial,Customer Support Group,Building Repairs & Maintenance,60118741,AJS LTD,403.08,09/01/2019
Commercial,Customer Support Group,Building Repairs & Maintenance,60119067,AJS LTD,32.00,03/01/2019
Commercial,Customer Support Group,Building Repairs & Maintenance,60120259,AJS LTD,56.92,03/01/2019
Commercial,Customer Support Group,Building Repairs & Maintenance,60120298,AJS LTD,68.16,08/01/2019
Commercial,Customer Support Group,Building Repairs & Maintenance,60120315,AJS LTD,32.00,03/01/2019
Commercial,Customer Support Group,Building Repairs & Maintenance,60120367,AJS LTD,32.00,03/01/2019
Commercial,Customer Support Group,Building Repairs & Maintenance,60120390,AJS LTD,420.55,04/01/2019
Commercial,Customer Support Group,Building Repairs & Maintenance,60120401,AJS LTD,656.34,04/01/2019
Commercial,Customer Support Group,Building Repairs & Maintenance,60120405,AJS LTD,40.00,03/01/2019
Commercial,Customer Support Group,Building Repairs & Maintenance,60120438,AJS LTD,32.00,03/01/2019
Commercial,Customer Support Group,Building Repairs & Maintenance,60120472,AJS LTD,64.00,03/01/2019
Commercial,Customer Support Group,Building Repairs & Maintenance,60122075,AJS LTD,485.78,31/01/2019
Commercial,Customer Support Group,Building Repairs & Maintenance,60122105,AJS LTD,380.84,31/01/2019
Commercial,Customer Support Group,Building Repairs & Maintenance,60122331,AJS LTD,214.29,29/01/2019
Commercial,Customer Support Group,Building Repairs & Maintenance,60121390,DOORWAY-MAINTENANCE CO.,180.00,24/01/2019
Commercial,Customer Support Group,Building Repairs & Maintenance,60121564,DOORWAY-MAINTENANCE CO.,341.20,28/01/2019
Commercial,Customer Support Group,Building Repairs & Maintenance,60116890,LEE SECURITY LONDON LIMITED,198.00,25/01/2019
Commercial,Customer Support Group,Building Repairs & Maintenance,60120619,LEE SECURITY LONDON LIMITED,586.00,08/01/2019
Commercial,Customer Support Group,Building Repairs & Maintenance,60120630,LEE SECURITY LONDON LIMITED,513.00,08/01/2019
Commercial,Customer Support Group,Building Repairs & Maintenance,60120632,LEE SECURITY LONDON LIMITED,369.00,08/01/2019
Commercial,Customer Support Group,Building Repairs & Maintenance,60120652,LEE SECURITY LONDON LIMITED,99.00,08/01/2019
Commercial,Customer Support Group,Building Repairs & Maintenance,60120660,LEE SECURITY LONDON LIMITED,495.00,08/01/2019
Commercial,Customer Support Group,Building Repairs & Maintenance,60115760,OAKRAY LIMITED,162.00,04/01/2019
Commercial,Customer Support Group,Building Repairs & Maintenance,60117795,OAKRAY LIMITED,80.00,04/01/2019
Commercial,Customer Support Group,Building Repairs & Maintenance,60117801,OAKRAY LIMITED,128.00,04/01/2019
Commercial,Customer Support Group,Building Repairs & Maintenance,60117811,OAKRAY LIMITED,88.00,08/01/2019
Commercial,Customer Support Group,Building Repairs & Maintenance,60117812,OAKRAY LIMITED,80.00,08/01/2019
Commercial,Customer Support Group,Building Repairs & Maintenance,60117842,OAKRAY LIMITED,64.00,04/01/2019
Commercial,Customer Support Group,Building Repairs & Maintenance,60117854,OAKRAY LIMITED,96.00,04/01/2019
Commercial,Customer Support Group,Building Repairs & Maintenance,60117868,OAKRAY LIMITED,96.00,04/01/2019
Commercial,Customer Support Group,Building Repairs & Maintenance,60117872,OAKRAY LIMITED,130.34,04/01/2019
Commercial,Customer Support Group,Building Repairs & Maintenance,60117883,OAKRAY LIMITED,96.00,08/01/2019
Commercial,Customer Support Group,Building Repairs & Maintenance,60118719,PURDY CONTRACTS LTD,74.98,31/01/2019
Commercial,Customer Support Group,Building Repairs & Maintenance,60118740,PURDY CONTRACTS LTD,35.00,31/01/2019
Commercial,Customer Support Group,Building Repairs & Maintenance,60118919,PURDY CONTRACTS LTD,35.00,29/01/2019
Commercial,Customer Support Group,Building Repairs & Maintenance,60118923,PURDY CONTRACTS LTD,70.16,29/01/2019
Commercial,Customer Support Group,Building Repairs & Maintenance,60118933,PURDY CONTRACTS LTD,105.39,29/01/2019
Commercial,Customer Support Group,Building Repairs & Maintenance,60118936,PURDY CONTRACTS LTD,188.24,29/01/2019
Commercial,Customer Support Group,Building Repairs & Maintenance,60118938,PURDY CONTRACTS LTD,435.78,28/01/2019
Commercial,Customer Support Group,Building Repairs & Maintenance,60118948,PURDY CONTRACTS LTD,35.00,29/01/2019
Commercial,Customer Support Group,Building Repairs & Maintenance,60118964,PURDY CONTRACTS LTD,35.00,29/01/2019
Commercial,Customer Support Group,Building Repairs & Maintenance,60118968,PURDY CONTRACTS LTD,100.05,29/01/2019
Commercial,Customer Support Group,Building Repairs & Maintenance,60118972,PURDY CONTRACTS LTD,35.00,29/01/2019
Commercial,Customer Support Group,Building Repairs & Maintenance,60118985,PURDY CONTRACTS LTD,132.70,29/01/2019
Commercial,Customer Support Group,Building Repairs & Maintenance,60118998,PURDY CONTRACTS LTD,105.00,29/01/2019
Commercial,Customer Support Group,Building Repairs & Maintenance,60119334,S W BRUCE & CO LTD,214.70,08/01/2019
Commercial,Customer Support Group,Building Repairs & Maintenance,60119392,S W BRUCE & CO LTD,95.00,08/01/2019
Commercial,Customer Support Group,Building Repairs & Maintenance,60119402,S W BRUCE & CO LTD,140.43,08/01/2019
Commercial,Customer Support Group,Building Repairs & Maintenance,60119420,S W BRUCE & CO LTD,127.88,08/01/2019
Commercial,Customer Support Group,Building Repairs & Maintenance,60119529,S W BRUCE & CO LTD,88.89,08/01/2019
Commercial,Customer Support Group,Building Repairs & Maintenance,60119567,S W BRUCE & CO LTD,57.00,08/01/2019
Commercial,Customer Support Group,Building Repairs & Maintenance,60119594,S W BRUCE & CO LTD,75.72,08/01/2019
Commercial,Customer Support Group,Building Repairs & Maintenance,60119595,S W BRUCE & CO LTD,95.22,08/01/2019
Commercial,Customer Support Group,Building Repairs & Maintenance,60119662,S W BRUCE & CO LTD,104.81,08/01/2019
Commercial,Customer Support Group,Building Repairs & Maintenance,60119691,S W BRUCE & CO LTD,147.20,09/01/2019
Commercial,Customer Support Group,Building Repairs & Maintenance,60119708,S W BRUCE & CO LTD,"3,781.59",18/01/2019
Commercial,Customer Support Group,Building Repairs & Maintenance,60119712,S W BRUCE & CO LTD,100.07,08/01/2019
Commercial,Customer Support Group,Building Repairs & Maintenance,60119747,S W BRUCE & CO LTD,255.11,10/01/2019
Commercial,Customer Support Group,Building Repairs & Maintenance,60119748,S W BRUCE & CO LTD,28.50,10/01/2019
Commercial,Customer Support Group,Building Repairs & Maintenance,60119760,S W BRUCE & CO LTD,156.34,10/01/2019
Commercial,Customer Support Group,Building Repairs & Maintenance,60119761,S W BRUCE & CO LTD,162.00,10/01/2019
Commercial,Customer Support Group,Building Repairs & Maintenance,60119768,S W BRUCE & CO LTD,152.59,10/01/2019
Commercial,Customer Support Group,Building Repairs & Maintenance,60119777,S W BRUCE & CO LTD,48.92,10/01/2019
Commercial,Customer Support Group,Building Repairs & Maintenance,60120443,S W BRUCE & CO LTD,"2,329.90",17/01/2019
Commercial,Customer Support Group,Building Repairs & Maintenance,10014867,WATES LIVING SPACE,122.50,03/01/2019
Commercial,Customer Support Group,Building Repairs & Maintenance,10014981,WATES LIVING SPACE,"5,268.55",31/01/2019
Commercial,Customer Support Group,Building Repairs & Maintenance,60113993,WATES LIVING SPACE,507.09,04/01/2019
Commercial,Customer Support Group,Building Repairs & Maintenance,60114526,WATES LIVING SPACE,80.29,08/01/2019
Commercial,Customer Support Group,Building Repairs & Maintenance,60115878,WATES LIVING SPACE,56.60,08/01/2019
Commercial,Customer Support Group,Building Repairs & Maintenance,60115907,WATES LIVING SPACE,413.06,04/01/2019
Commercial,Customer Support Group,Building Repairs & Maintenance,60115910,WATES LIVING SPACE,195.52,08/01/2019
Commercial,Customer Support Group,Building Repairs & Maintenance,60115914,WATES LIVING SPACE,126.15,28/01/2019
Commercial,Customer Support Group,Building Repairs & Maintenance,60115916,WATES LIVING SPACE,165.00,31/01/2019
Commercial,Customer Support Group,Building Repairs & Maintenance,60115946,WATES LIVING SPACE,106.88,08/01/2019
Commercial,Customer Support Group,Building Repairs & Maintenance,60115956,WATES LIVING SPACE,237.67,08/01/2019
Commercial,Customer Support Group,Building Repairs & Maintenance,60115978,WATES LIVING SPACE,"1,024.23",09/01/2019
Commercial,Customer Support Group,Building Repairs & Maintenance,60115983,WATES LIVING SPACE,39.58,08/01/2019
Commercial,Customer Support Group,Building Repairs & Maintenance,60116887,WATES LIVING SPACE,392.98,18/01/2019
Commercial,Customer Support Group,Building Repairs & Maintenance,60119179,WATES LIVING SPACE,50.73,08/01/2019
Commercial,Customer Support Group,Building Repairs & Maintenance,60119236,WATES LIVING SPACE,35.63,04/01/2019
Commercial,Customer Support Group,Building Repairs & Maintenance,60119491,WATES LIVING SPACE,147.08,04/01/2019
Commercial,Customer Support Group,Building Repairs & Maintenance,60119534,WATES LIVING SPACE,35.63,04/01/2019
Commercial,Customer Support Group,Building Repairs & Maintenance,60120590,WATES LIVING SPACE,42.75,16/01/2019
Commercial,Customer Support Group,Building Repairs & Maintenance,60120594,WATES LIVING SPACE,85.00,17/01/2019
Commercial,Customer Support Group,Building Repairs & Maintenance,60120595,WATES LIVING SPACE,232.47,17/01/2019
Commercial,Customer Support Group,Building Repairs & Maintenance,60120601,WATES LIVING SPACE,35.63,16/01/2019
Commercial,Customer Support Group,Building Repairs & Maintenance,60120609,WATES LIVING SPACE,135.42,16/01/2019
Commercial,Customer Support Group,Building Repairs & Maintenance,60120611,WATES LIVING SPACE,194.30,17/01/2019
Commercial,Customer Support Group,Building Repairs & Maintenance,60120638,WATES LIVING SPACE,249.38,17/01/2019
Commercial,Customer Support Group,Building Repairs & Maintenance,60120646,WATES LIVING SPACE,35.63,16/01/2019
Commercial,Customer Support Group,Building Repairs & Maintenance,60120650,WATES LIVING SPACE,89.06,16/01/2019
Commercial,Customer Support Group,Building Repairs & Maintenance,60120651,WATES LIVING SPACE,202.13,16/01/2019
Commercial,Customer Support Group,Building Repairs & Maintenance,60120658,WATES LIVING SPACE,149.63,16/01/2019
Commercial,Customer Support Group,Building Repairs & Maintenance,60120665,WATES LIVING SPACE,35.63,16/01/2019
Commercial,Customer Support Group,Building Repairs & Maintenance,60120801,WATES LIVING SPACE,150.78,31/01/2019
Commercial,Customer Support Group,Building Repairs & Maintenance,60120897,WATES LIVING SPACE,438.25,17/01/2019
Commercial,Customer Support Group,Building Repairs & Maintenance,60121272,WATES LIVING SPACE,667.50,28/01/2019
Commercial,Customer Support Group,Building Repairs & Maintenance,60121787,WATES LIVING SPACE,680.65,22/01/2019
Commercial,Customer Support Group,Building Repairs & Maintenance,60121794,WATES LIVING SPACE,283.70,24/01/2019
Commercial,Customer Support Group,Building Repairs & Maintenance,60121848,WATES LIVING SPACE,350.00,22/01/2019
Commercial,Customer Support Group,Building Repairs & Maintenance,60116357,EVAC & CHAIR INTERNATIONAL LTD,90.00,21/01/2019
Commercial,Customer Support Group,Building Repairs & Maintenance,10014820,INTEGRATED WATER SERVICES LTD,250.00,03/01/2019
Commercial,Customer Support Group,Building Repairs & Maintenance,10014823,INTEGRATED WATER SERVICES LTD,"1,225.00",03/01/2019
Commercial,Customer Support Group,Building Repairs & Maintenance,60120106,LIFT & ENGINEERING SERVICES LTD,925.00,03/01/2019
Commercial,Customer Support Group,Building Repairs & Maintenance,60120118,LIFT & ENGINEERING SERVICES LTD,250.00,03/01/2019
Commercial,Customer Support Group,Building Repairs & Maintenance,60120269,LIFT & ENGINEERING SERVICES LTD,174.00,04/01/2019
Commercial,Customer Support Group,Building Repairs & Maintenance,60120337,LIFT & ENGINEERING SERVICES LTD,145.00,04/01/2019
Commercial,Customer Support Group,Building Repairs & Maintenance,60120484,LIFT & ENGINEERING SERVICES LTD,174.00,04/01/2019
Commercial,Customer Support Group,Building Repairs & Maintenance,60120492,LIFT & ENGINEERING SERVICES LTD,174.00,04/01/2019
Commercial,Customer Support Group,Building Repairs & Maintenance,60119343,NORTH LONDON CATERING EQUIPMENT,319.64,03/01/2019
Commercial,Customer Support Group,Building Repairs & Maintenance,60119557,NORTH LONDON CATERING EQUIPMENT,187.00,03/01/2019
Commercial,Customer Support Group,Building Repairs & Maintenance,60117728,T. & D. BARRS,63.92,11/01/2019
Commercial,Customer Support Group,Building Repairs & Maintenance,60119176,T. & D. BARRS,127.92,03/01/2019
Commercial,Customer Support Group,Building Repairs & Maintenance,60119188,T. & D. BARRS,429.00,03/01/2019
Commercial,Customer Support Group,Building Repairs & Maintenance,60119202,T. & D. BARRS,564.53,28/01/2019
Commercial,Customer Support Group,Building Repairs & Maintenance,60119208,T. & D. BARRS,236.27,03/01/2019
Commercial,Customer Support Group,Building Repairs & Maintenance,60119219,T. & D. BARRS,148.53,07/01/2019
Commercial,Customer Support Group,Building Repairs & Maintenance,60119742,T. & D. BARRS,259.54,03/01/2019
Commercial,Customer Support Group,Building Repairs & Maintenance,60121111,T. & D. BARRS,63.92,15/01/2019
Commercial,Customer Support Group,Building Repairs & Maintenance,60121116,T. & D. BARRS,128.20,24/01/2019
Commercial,Customer Support Group,Building Repairs & Maintenance,60121120,T. & D. BARRS,601.93,15/01/2019
Commercial,Customer Support Group,Building Repairs & Maintenance,60121147,T. & D. BARRS,63.92,15/01/2019
Commercial,Customer Support Group,Building Repairs & Maintenance,60121158,T. & D. BARRS,63.92,15/01/2019
Commercial,Customer Support Group,Building Repairs & Maintenance,60121161,T. & D. BARRS,63.92,15/01/2019
Commercial,Customer Support Group,Building Repairs & Maintenance,60121166,T. & D. BARRS,151.08,15/01/2019
Commercial,Customer Support Group,Building Repairs & Maintenance,60121183,T. & D. BARRS,63.92,15/01/2019
Commercial,Customer Support Group,Building Repairs & Maintenance,60121194,T. & D. BARRS,63.92,15/01/2019
Commercial,Customer Support Group,Building Repairs & Maintenance,60121196,T. & D. BARRS,63.92,15/01/2019
Commercial,Customer Support Group,Building Repairs & Maintenance,60121202,T. & D. BARRS,63.92,15/01/2019
Commercial,Customer Support Group,Building Repairs & Maintenance,60121216,T. & D. BARRS,63.92,15/01/2019
Commercial,Customer Support Group,Building Repairs & Maintenance,60121219,T. & D. BARRS,63.92,15/01/2019
Commercial,Customer Support Group,Building Repairs & Maintenance,60121444,T. & D. BARRS,95.88,31/01/2019
Commercial,Customer Support Group,Building Repairs & Maintenance,60121454,T. & D. BARRS,248.64,24/01/2019
Commercial,Customer Support Group,Building Repairs & Maintenance,60121469,T. & D. BARRS,63.92,24/01/2019
Commercial,Customer Support Group,Building Repairs & Maintenance,60121476,T. & D. BARRS,143.10,24/01/2019
Commercial,Customer Support Group,Building Repairs & Maintenance,60121496,T. & D. BARRS,134.13,24/01/2019
Commercial,Customer Support Group,Building Repairs & Maintenance,60121498,T. & D. BARRS,63.92,24/01/2019
Commercial,Customer Support Group,Building Repairs & Maintenance,60121514,T. & D. BARRS,193.09,24/01/2019
Commercial,Customer Support Group,Building Repairs & Maintenance,60121518,T. & D. BARRS,63.92,24/01/2019
Commercial,Customer Support Group,Building Repairs & Maintenance,60121534,T. & D. BARRS,63.92,24/01/2019
Commercial,Customer Support Group,Building Repairs & Maintenance,60103143,THAMES LABORATORIES,675.00,30/01/2019
Commercial,Customer Support Group,Building Repairs & Maintenance,60121822,WATES LIVING SPACE,"1,260.00",25/01/2019
Commercial,Customer Support Group,Gas,60121151,TOTAL GAS & POWER LTD,423.33,15/01/2019
Commercial,Customer Support Group,Electricity,10014908,E-ON ENERGY,38.87,10/01/2019
Commercial,Customer Support Group,Electricity,10014914,E-ON ENERGY,13.15,11/01/2019
Commercial,Customer Support Group,Electricity,10014915,E-ON ENERGY,13.15,11/01/2019
Commercial,Customer Support Group,Electricity,10014916,E-ON ENERGY,13.15,11/01/2019
Commercial,Customer Support Group,Electricity,10014917,E-ON ENERGY,13.15,11/01/2019
Commercial,Customer Support Group,Electricity,10014918,E-ON ENERGY,13.15,11/01/2019
Commercial,Customer Support Group,Electricity,10014919,E-ON ENERGY,13.15,11/01/2019
Commercial,Customer Support Group,Electricity,10014920,E-ON ENERGY,13.15,11/01/2019
Commercial,Customer Support Group,Electricity,10014949,E-ON ENERGY,68.57,17/01/2019
Commercial,Customer Support Group,Electricity,60116413,E-ON ENERGY,13.15,11/01/2019
Commercial,Customer Support Group,Electricity,60120753,E-ON ENERGY,49.00,14/01/2019
Commercial,Customer Support Group,Electricity,60120756,E-ON ENERGY,80.25,14/01/2019
Commercial,Customer Support Group,Electricity,60120760,E-ON ENERGY,30.13,11/01/2019
Commercial,Customer Support Group,Electricity,60120764,E-ON ENERGY,38.34,14/01/2019
Commercial,Customer Support Group,Electricity,60120766,E-ON ENERGY,24.70,14/01/2019
Commercial,Customer Support Group,Electricity,60121095,E-ON ENERGY,32.83,15/01/2019
Commercial,Customer Support Group,Electricity,60121179,E-ON ENERGY,66.07,17/01/2019
Commercial,Customer Support Group,Electricity,60121224,E-ON ENERGY,32.11,17/01/2019
Commercial,Customer Support Group,Electricity,60121584,E-ON ENERGY,45.83,21/01/2019
Commercial,Customer Support Group,Other Services,60119912,BLUE 9 SECURITY LIMITED,"22,420.80",03/01/2019
Commercial,Customer Support Group,Other Services,60120831,BLUE 9 SECURITY LIMITED,966.00,11/01/2019
Commercial,Customer Support Group,Other Services,60120863,BLUE 9 SECURITY LIMITED,"23,168.16",11/01/2019
Commercial,Customer Support Group,Other Services,60120865,BLUE 9 SECURITY LIMITED,"11,584.08",11/01/2019
Commercial,Customer Support Group,Other Services,60120866,BLUE 9 SECURITY LIMITED,108.80,11/01/2019
Commercial,Customer Support Group,Other Services,60120905,BLUE 9 SECURITY LIMITED,"7,660.44",11/01/2019
Commercial,Customer Support Group,CSG Services Contract Payment,60118318,CAPITA BUSINESS SERVICES LTD,"-31,584.00",24/01/2019
Commercial,Customer Support Group,CSG Services Contract Payment,60118322,CAPITA BUSINESS SERVICES LTD,"-43,913.00",24/01/2019
Commercial,Customer Support Group,CSG Services Contract Payment,60121229,CAPITA BUSINESS SERVICES LTD,"163,872.00",24/01/2019
Commercial,Customer Support Group,CSG Services Contract Payment,60121828,CAPITA BUSINESS SERVICES LTD,"319,709.00",31/01/2019
Commercial,Customer Support Group,CSG Services Contract Payment,60107232,CAPITA BUSINESS SERVICES LTD,"-52,594.00",24/01/2019
Commercial,Customer Support Group,CSG Services Contract Payment,60120003,CAPITA BUSINESS SERVICES LTD,"40,476.52",03/01/2019
Commercial,Customer Support Group,CSG Services Contract Payment,60120052,CAPITA BUSINESS SERVICES LTD,-194.73,24/01/2019
Commercial,Customer Support Group,CSG Services Contract Payment,60120061,CAPITA BUSINESS SERVICES LTD,"-11,455.15",24/01/2019
Commercial,Customer Support Group,CSG Services Contract Payment,60120077,CAPITA BUSINESS SERVICES LTD,"-2,502.87",24/01/2019
Commercial,Customer Support Group,CSG Services Contract Payment,60120079,CAPITA BUSINESS SERVICES LTD,-200.00,24/01/2019
Commercial,Customer Support Group,CSG Services Contract Payment,60120083,CAPITA BUSINESS SERVICES LTD,-391.39,24/01/2019
Commercial,Customer Support Group,CSG Services Contract Payment,60120089,CAPITA BUSINESS SERVICES LTD,-955.04,24/01/2019
Commercial,Customer Support Group,CSG Services Contract Payment,60120116,CAPITA BUSINESS SERVICES LTD,"-3,223.25",24/01/2019
Commercial,Customer Support Group,CSG Services Contract Payment,60120117,CAPITA BUSINESS SERVICES LTD,-50.00,24/01/2019
Commercial,Customer Support Group,CSG Services Contract Payment,60121558,CAPITA BUSINESS SERVICES LTD,"52,658.44",29/01/2019
Commercial,Customer Support Group,Building Repairs & Maintenance,60120275,CARTER SECURITY LTD,520.00,03/01/2019
Commercial,Customer Support Group,Building Repairs & Maintenance,60121612,CARTER SECURITY LTD,520.00,21/01/2019
Commercial,Customer Support Group,Building Repairs & Maintenance,60118549,OAKRAY LIMITED,84.00,10/01/2019
Commercial,Customer Support Group,Building Repairs & Maintenance,60121262,OAKRAY LIMITED,484.50,31/01/2019
Commercial,Customer Support Group,Building Repairs & Maintenance,60121313,OAKRAY LIMITED,105.00,31/01/2019
Commercial,Customer Support Group,Building Repairs & Maintenance,60121375,OAKRAY LIMITED,108.75,31/01/2019
Commercial,Customer Support Group,Building Repairs & Maintenance,60120292,TERBERG MATEC UK LTD,184.50,11/01/2019
Commercial,Customer Support Group,Building Repairs & Maintenance,60121929,GUILD ARCHITECTURAL RESTORATION LTD,"2,592.00",31/01/2019
Commercial,Customer Support Group,Other Agencies - Third Party P,60119623,THE BARNETGROUP LIMITED,"7,514,583.00",10/01/2019
Commercial,Customer Support Group,Professional Services,60121093,BARNET YOUTH ZONE,"800,000.00",30/01/2019
Commercial,Customer Support Group,Building Repairs & Maintenance,60119904,S W BRUCE & CO LTD,965.70,10/01/2019
Commercial,Housing Needs Resources,Other Services,60117857,THE BARNETGROUP LIMITED,"278,222.92",09/01/2019
Commercial,Housing Needs Resources,Other Services,60119697,THE BARNETGROUP LIMITED,"278,222.92",29/01/2019
Commercial,Housing Needs Resources,Private Contractors - Third Pa,60103568,THE BARNETGROUP LIMITED,"17,460.39",28/01/2019
Commercial,Housing Needs Resources,Private Contractors - Third Pa,60103576,THE BARNETGROUP LIMITED,"20,156.92",28/01/2019
Commercial,Housing Needs Resources,Private Contractors - Third Pa,60116392,THE BARNETGROUP LIMITED,"2,280,000.00",09/01/2019
Commercial,Housing Needs Resources,Private Contractors - Third Pa,60122382,THE BARNETGROUP LIMITED,"20,535.00",30/01/2019
Commercial,Housing Needs Resources,Private Contractors - Third Pa,60122407,THE BARNETGROUP LIMITED,"36,967.30",30/01/2019
COMMERCIAL,HOUSING NEEDS RESOURCES,Grant Payments,80022539,AMWELL CONSTRUCTION LTD,"12,542.78",24/01/2019
COMMERCIAL,HOUSING NEEDS RESOURCES,Grant Payments,80022541,ARTHUR J. FERRYMAN ASSOCIATES,"1,433.46",24/01/2019
COMMERCIAL,HOUSING REVENUE ACCOUNT,Consultants Fees,10014888,ALLIES AND MORRRISON,"11,550.00",09/01/2019
COMMERCIAL,HOUSING REVENUE ACCOUNT,Consultants Fees,60119496,ALLIES AND MORRRISON,"43,410.00",03/01/2019
COMMERCIAL,HOUSING REVENUE ACCOUNT,Consultants Fees,60120524,ALLIES AND MORRRISON,"1,495.88",09/01/2019
COMMERCIAL,HOUSING REVENUE ACCOUNT,Consultants Fees,60120533,ALLIES AND MORRRISON,"101,920.00",17/01/2019
COMMERCIAL,HOUSING REVENUE ACCOUNT,Consultants Fees,60120558,ALLIES AND MORRRISON,"4,500.00",17/01/2019
COMMERCIAL,HOUSING REVENUE ACCOUNT,Consultants Fees,60118905,SAVILLS (UK) LTD,"2,500.00",14/01/2019
COMMERCIAL,HOUSING REVENUE ACCOUNT,Other Agencies - Third Party P,60117847,THE BARNETGROUP LIMITED,"2,760,666.67",09/01/2019
COMMERCIAL,HOUSING REVENUE ACCOUNT,Other Agencies - Third Party P,60119616,THE BARNETGROUP LIMITED,"1,148,593.67",09/01/2019
Commercial,HRA,Consultants Fees,60119487,PRIORITY ESTATES PROJECT LTD,"2,794.00",10/01/2019
Commercial,HRA,Consultants Fees,60119512,PRIORITY ESTATES PROJECT LTD,"2,724.15",03/01/2019
Commercial,HRA,Consultants Fees,60122019,PRIORITY ESTATES PROJECT LTD,"2,654.30",24/01/2019
Commercial,HRA,Advertising,60122462,TMP (UK) LTD,179.00,31/01/2019
Commercial,HRA,Consultants Fees,60075832,P P C R ASSOCIATES LTD,499.69,03/01/2019
Commercial,HRA,Consultants Fees,60119278,P P C R ASSOCIATES LTD,564.02,03/01/2019
Commercial,HRA,Consultants Fees,60119323,P P C R ASSOCIATES LTD,432.68,03/01/2019
Commercial,HRA,Consultants Fees,60115517,THE BARNETGROUP LIMITED,434.00,03/01/2019
Commercial,HRA,Consultants Fees,60115713,THE BARNETGROUP LIMITED,"2,015.40",03/01/2019
Commercial,HRA,Professional Services,60121517,THE PLANNING INSPECTORATE,"5,977.20",21/01/2019
Commercial,HRA,Private Contractors - Third Pa,80022550,REDACTED - PERSONAL DATA,"3,500.00",21/01/2019
Commercial,HRA,Building Repairs & Maintenance,60119689,THE BARNETGROUP LIMITED,"629,166.67",09/01/2019
Commercial,HRA,Building Repairs & Maintenance,60122390,THE BARNETGROUP LIMITED,"629,166.67",30/01/2019
Commercial,HRA,Consultants Fees,60120907,BARNET HOMES LIMITED,"13,190.00",14/01/2019
Commercial,HRA,Other Services,60119618,THE BARNETGROUP LIMITED,"470,140.42",09/01/2019
Commercial,HRA,Other Services,60121129,THE BARNETGROUP LIMITED,"142,300.00",29/01/2019
Commercial,HRA,Other Services,60122399,THE BARNETGROUP LIMITED,"470,140.42",30/01/2019
Commercial,HRA,Electricity,60121677,E-ON ENERGY,26.86,21/01/2019
Commercial,HRA,Other Services,60119600,THE BARNETGROUP LIMITED,"953,444.00",09/01/2019
Commercial,HRA,Other Services,60122395,THE BARNETGROUP LIMITED,"953,444.00",30/01/2019
Commercial,HRA,Consultants Fees,60120676,THE BARNETGROUP LIMITED,"9,552.00",08/01/2019
Commercial,Parking & Infrastructure,Equipment and Materials Purcha,60119815,APOGEE CORPORATION LTD,12.06,03/01/2019
Commercial,Parking & Infrastructure,Equipment and Materials Purcha,60119699,GREENHAM TRADING LIMITED,154.40,08/01/2019
Commercial,Parking & Infrastructure,Equipment and Materials Purcha,60119079,LAFARGE TARMAC TRADING LIMITED,107.22,03/01/2019
Commercial,Parking & Infrastructure,Equipment and Materials Purcha,60120169,LAFARGE TARMAC TRADING LIMITED,257.75,10/01/2019
Commercial,Parking & Infrastructure,Equipment and Materials Purcha,60120518,LAFARGE TARMAC TRADING LIMITED,148.46,17/01/2019
Commercial,Parking & Infrastructure,Equipment and Materials Purcha,60120552,RENNICK UK LTD,570.52,10/01/2019
Commercial,Parking & Infrastructure,Equipment and Materials Purcha,60119088,KLOECKNER METALS UK,22.20,03/01/2019
Commercial,Parking & Infrastructure,Equipment and Materials Purcha,60119136,KLOECKNER METALS UK,330.70,03/01/2019
Commercial,Parking & Infrastructure,Equipment and Materials Purcha,60120429,EXACTRAK LTD T/A AVERY WEIGH-TRONIX,605.00,29/01/2019
Commercial,Parking & Infrastructure,Equipment and Materials Purcha,60120701,EXACTRAK LTD T/A AVERY WEIGH-TRONIX,"1,320.00",28/01/2019
Commercial,Parking & Infrastructure,Equipment and Materials Purcha,60120718,EXACTRAK LTD T/A AVERY WEIGH-TRONIX,"4,840.00",28/01/2019
Commercial,Parking & Infrastructure,Building Repairs & Maintenance,60119307,BARNET LOCK CENTRE LTD.,259.98,03/01/2019
Commercial,Parking & Infrastructure,Building Repairs & Maintenance,60122092,BARNET LOCK CENTRE LTD.,152.56,28/01/2019
Commercial,Parking & Infrastructure,Building Repairs & Maintenance,60122100,BARNET LOCK CENTRE LTD.,277.12,28/01/2019
Commercial,Parking & Infrastructure,Building Repairs & Maintenance,60094084,OAKRAY LIMITED,270.00,22/01/2019
Commercial,Parking & Infrastructure,Building Repairs & Maintenance,60119393,PURDY CONTRACTS LTD,78.46,03/01/2019
Commercial,Parking & Infrastructure,Building Repairs & Maintenance,60119986,S W BRUCE & CO LTD,213.73,08/01/2019
Commercial,Parking & Infrastructure,Building Repairs & Maintenance,60119992,S W BRUCE & CO LTD,57.00,10/01/2019
Commercial,Parking & Infrastructure,Building Repairs & Maintenance,60120297,S W BRUCE & CO LTD,"2,610.50",04/01/2019
Commercial,Parking & Infrastructure,Building Repairs & Maintenance,60120319,SECOM PLC,804.43,03/01/2019
Commercial,Parking & Infrastructure,Building Repairs & Maintenance,60119230,WATES LIVING SPACE,499.84,03/01/2019
Commercial,Parking & Infrastructure,Building Repairs & Maintenance,60120606,WATES LIVING SPACE,396.78,16/01/2019
Commercial,Parking & Infrastructure,Building Repairs & Maintenance,60120624,WATES LIVING SPACE,142.35,16/01/2019
Commercial,Parking & Infrastructure,Building Repairs & Maintenance,60120627,WATES LIVING SPACE,79.76,16/01/2019
Commercial,Parking & Infrastructure,Building Repairs & Maintenance,60120643,WATES LIVING SPACE,331.12,16/01/2019
Commercial,Parking & Infrastructure,Building Repairs & Maintenance,60121088,WATES LIVING SPACE,391.88,16/01/2019
Commercial,Parking & Infrastructure,Gas,60116638,BRITISH GAS BUSINESS,27.88,29/01/2019
Commercial,Parking & Infrastructure,Gas,60118526,KENT COUNTY COUNCIL (KCS),150.23,03/01/2019
Commercial,Parking & Infrastructure,Gas,60118539,KENT COUNTY COUNCIL (KCS),116.73,03/01/2019
Commercial,Parking & Infrastructure,Gas,60119114,KENT COUNTY COUNCIL (KCS),103.68,09/01/2019
Commercial,Parking & Infrastructure,Gas,60120139,KENT COUNTY COUNCIL (KCS),43.40,11/01/2019
Commercial,Parking & Infrastructure,Gas,60120173,KENT COUNTY COUNCIL (KCS),53.49,16/01/2019
Commercial,Parking & Infrastructure,Gas,60120177,KENT COUNTY COUNCIL (KCS),58.54,16/01/2019
Commercial,Parking & Infrastructure,Gas,60120180,KENT COUNTY COUNCIL (KCS),57.50,16/01/2019
Commercial,Parking & Infrastructure,Gas,60120182,KENT COUNTY COUNCIL (KCS),462.02,04/01/2019
Commercial,Parking & Infrastructure,Gas,60120239,KENT COUNTY COUNCIL (KCS),28.89,16/01/2019
Commercial,Parking & Infrastructure,Gas,60120679,KENT COUNTY COUNCIL (KCS),36.42,16/01/2019
Commercial,Parking & Infrastructure,Gas,60120699,KENT COUNTY COUNCIL (KCS),201.46,08/01/2019
Commercial,Parking & Infrastructure,Gas,60120714,KENT COUNTY COUNCIL (KCS),72.12,25/01/2019
Commercial,Parking & Infrastructure,Gas,60120734,KENT COUNTY COUNCIL (KCS),199.98,09/01/2019
Commercial,Parking & Infrastructure,Gas,60120765,KENT COUNTY COUNCIL (KCS),432.82,09/01/2019
Commercial,Parking & Infrastructure,Gas,60120772,KENT COUNTY COUNCIL (KCS),109.95,24/01/2019
Commercial,Parking & Infrastructure,Gas,60120896,KENT COUNTY COUNCIL (KCS),110.30,24/01/2019
Commercial,Parking & Infrastructure,Gas,60121350,KENT COUNTY COUNCIL (KCS),483.87,18/01/2019
Commercial,Parking & Infrastructure,Gas,60121585,KENT COUNTY COUNCIL (KCS),42.00,25/01/2019
Commercial,Parking & Infrastructure,Electricity,60080677,KENT COUNTY COUNCIL (KCS),38.97,03/01/2019
Commercial,Parking & Infrastructure,Electricity,60116684,KENT COUNTY COUNCIL (KCS),34.85,14/01/2019
Commercial,Parking & Infrastructure,Electricity,60116779,KENT COUNTY COUNCIL (KCS),331.68,03/01/2019
Commercial,Parking & Infrastructure,Electricity,60118384,KENT COUNTY COUNCIL (KCS),38.36,03/01/2019
Commercial,Parking & Infrastructure,Electricity,60118442,KENT COUNTY COUNCIL (KCS),32.71,03/01/2019
Commercial,Parking & Infrastructure,Electricity,60118533,KENT COUNTY COUNCIL (KCS),8.97,03/01/2019
Commercial,Parking & Infrastructure,Electricity,60118554,KENT COUNTY COUNCIL (KCS),14.92,03/01/2019
Commercial,Parking & Infrastructure,Electricity,60118566,KENT COUNTY COUNCIL (KCS),144.18,16/01/2019
Commercial,Parking & Infrastructure,Electricity,60118588,KENT COUNTY COUNCIL (KCS),11.86,16/01/2019
Commercial,Parking & Infrastructure,Electricity,60118633,KENT COUNTY COUNCIL (KCS),191.35,03/01/2019
Commercial,Parking & Infrastructure,Electricity,60118657,KENT COUNTY COUNCIL (KCS),35.26,14/01/2019
Commercial,Parking & Infrastructure,Electricity,60118784,KENT COUNTY COUNCIL (KCS),68.32,03/01/2019
Commercial,Parking & Infrastructure,Electricity,60118790,KENT COUNTY COUNCIL (KCS),65.64,03/01/2019
Commercial,Parking & Infrastructure,Electricity,60119584,KENT COUNTY COUNCIL (KCS),66.32,14/01/2019
Commercial,Parking & Infrastructure,Electricity,60120112,KENT COUNTY COUNCIL (KCS),34.64,16/01/2019
Commercial,Parking & Infrastructure,Electricity,60120179,KENT COUNTY COUNCIL (KCS),56.45,16/01/2019
Commercial,Parking & Infrastructure,Electricity,60120210,KENT COUNTY COUNCIL (KCS),140.95,09/01/2019
Commercial,Parking & Infrastructure,Electricity,60120213,KENT COUNTY COUNCIL (KCS),367.40,16/01/2019
Commercial,Parking & Infrastructure,Electricity,60120228,KENT COUNTY COUNCIL (KCS),83.48,16/01/2019
Commercial,Parking & Infrastructure,Electricity,60120241,KENT COUNTY COUNCIL (KCS),34.62,16/01/2019
Commercial,Parking & Infrastructure,Electricity,60120563,KENT COUNTY COUNCIL (KCS),83.27,16/01/2019
Commercial,Parking & Infrastructure,Electricity,60120682,KENT COUNTY COUNCIL (KCS),180.54,22/01/2019
Commercial,Parking & Infrastructure,Electricity,60120688,KENT COUNTY COUNCIL (KCS),642.39,10/01/2019
Commercial,Parking & Infrastructure,Electricity,60120689,KENT COUNTY COUNCIL (KCS),21.53,16/01/2019
Commercial,Parking & Infrastructure,Electricity,60120697,KENT COUNTY COUNCIL (KCS),20.89,16/01/2019
Commercial,Parking & Infrastructure,Electricity,60120704,KENT COUNTY COUNCIL (KCS),66.12,16/01/2019
Commercial,Parking & Infrastructure,Electricity,60120713,KENT COUNTY COUNCIL (KCS),31.27,16/01/2019
Commercial,Parking & Infrastructure,Electricity,60120722,KENT COUNTY COUNCIL (KCS),"4,029.97",09/01/2019
Commercial,Parking & Infrastructure,Electricity,60120731,KENT COUNTY COUNCIL (KCS),906.24,09/01/2019
Commercial,Parking & Infrastructure,Electricity,60120732,KENT COUNTY COUNCIL (KCS),200.14,24/01/2019
Commercial,Parking & Infrastructure,Electricity,60120740,KENT COUNTY COUNCIL (KCS),21.38,16/01/2019
Commercial,Parking & Infrastructure,Electricity,60120747,KENT COUNTY COUNCIL (KCS),21.15,16/01/2019
Commercial,Parking & Infrastructure,Electricity,60120751,KENT COUNTY COUNCIL (KCS),475.32,09/01/2019
Commercial,Parking & Infrastructure,Electricity,60120773,KENT COUNTY COUNCIL (KCS),563.03,09/01/2019
Commercial,Parking & Infrastructure,Electricity,60120774,KENT COUNTY COUNCIL (KCS),26.49,16/01/2019
Commercial,Parking & Infrastructure,Electricity,60121302,KENT COUNTY COUNCIL (KCS),"1,071.16",16/01/2019
Commercial,Parking & Infrastructure,Electricity,60121652,KENT COUNTY COUNCIL (KCS),21.38,28/01/2019
Commercial,Parking & Infrastructure,Electricity,60121690,KENT COUNTY COUNCIL (KCS),21.38,28/01/2019
Commercial,Parking & Infrastructure,Electricity,60121702,KENT COUNTY COUNCIL (KCS),6.97,28/01/2019
Commercial,Parking & Infrastructure,Electricity,60121706,KENT COUNTY COUNCIL (KCS),14.18,28/01/2019
Commercial,Parking & Infrastructure,Electricity,60121720,KENT COUNTY COUNCIL (KCS),20.91,28/01/2019
Commercial,Parking & Infrastructure,Electricity,60121774,KENT COUNTY COUNCIL (KCS),17.11,25/01/2019
Commercial,Parking & Infrastructure,Electricity,60121781,KENT COUNTY COUNCIL (KCS),7.02,28/01/2019
Commercial,Parking & Infrastructure,Electricity,60118431,KERENS NURSERY,365.35,07/01/2019
Commercial,Parking & Infrastructure,Water Services,10014859,AFFINITY WATER LIMITED,315.64,03/01/2019
Commercial,Parking & Infrastructure,Water Services,10014876,AFFINITY WATER LIMITED,"1,395.62",08/01/2019
Commercial,Parking & Infrastructure,Water Services,10014887,AFFINITY WATER LIMITED,15.60,09/01/2019
Commercial,Parking & Infrastructure,Water Services,60092663,AFFINITY WATER LIMITED,299.33,22/01/2019
Commercial,Parking & Infrastructure,Water Services,60094577,AFFINITY WATER LIMITED,"1,156.18",22/01/2019
Commercial,Parking & Infrastructure,Water Services,60115617,AFFINITY WATER LIMITED,"1,078.02",04/01/2019
Commercial,Parking & Infrastructure,Water Services,60118025,AFFINITY WATER LIMITED,"1,267.47",07/01/2019
Commercial,Parking & Infrastructure,Water Services,60118708,AFFINITY WATER LIMITED,329.65,03/01/2019
Commercial,Parking & Infrastructure,Water Services,60118746,AFFINITY WATER LIMITED,678.68,03/01/2019
Commercial,Parking & Infrastructure,Water Services,60119008,AFFINITY WATER LIMITED,"1,162.69",04/01/2019
Commercial,Parking & Infrastructure,Water Services,60119091,AFFINITY WATER LIMITED,"1,359.02",03/01/2019
Commercial,Parking & Infrastructure,Water Services,60119093,AFFINITY WATER LIMITED,397.23,04/01/2019
Commercial,Parking & Infrastructure,Water Services,60119610,AFFINITY WATER LIMITED,99.92,07/01/2019
Commercial,Parking & Infrastructure,Water Services,60120335,AFFINITY WATER LIMITED,79.71,04/01/2019
Commercial,Parking & Infrastructure,Water Services,60120340,AFFINITY WATER LIMITED,15.60,09/01/2019
Commercial,Parking & Infrastructure,Water Services,60120434,AFFINITY WATER LIMITED,74.59,04/01/2019
Commercial,Parking & Infrastructure,Water Services,60120450,AFFINITY WATER LIMITED,15.60,09/01/2019
Commercial,Parking & Infrastructure,Water Services,60120599,AFFINITY WATER LIMITED,"1,117.97",08/01/2019
Commercial,Parking & Infrastructure,Water Services,60120600,AFFINITY WATER LIMITED,22.38,08/01/2019
Commercial,Parking & Infrastructure,Water Services,60120613,AFFINITY WATER LIMITED,17.99,08/01/2019
Commercial,Parking & Infrastructure,Water Services,60120614,AFFINITY WATER LIMITED,"1,220.67",08/01/2019
Commercial,Parking & Infrastructure,Water Services,60120615,AFFINITY WATER LIMITED,"1,914.10",08/01/2019
Commercial,Parking & Infrastructure,Water Services,60120618,AFFINITY WATER LIMITED,22.32,08/01/2019
Commercial,Parking & Infrastructure,Water Services,60120626,AFFINITY WATER LIMITED,"2,935.28",08/01/2019
Commercial,Parking & Infrastructure,Water Services,60120629,AFFINITY WATER LIMITED,21.24,11/01/2019
Commercial,Parking & Infrastructure,Water Services,60120655,AFFINITY WATER LIMITED,366.29,08/01/2019
Commercial,Parking & Infrastructure,Water Services,60120721,AFFINITY WATER LIMITED,"3,484.08",25/01/2019
Commercial,Parking & Infrastructure,Water Services,60120729,AFFINITY WATER LIMITED,92.35,16/01/2019
Commercial,Parking & Infrastructure,Water Services,60122322,AFFINITY WATER LIMITED,86.15,30/01/2019
Commercial,Parking & Infrastructure,Water Services,80022494,AFFINITY WATER LIMITED,18.89,16/01/2019
Commercial,Parking & Infrastructure,Water Services,10014982,CASTLE WATER LTD,54.98,31/01/2019
Commercial,Parking & Infrastructure,Water Services,60115046,CASTLE WATER LTD,65.12,07/01/2019
Commercial,Parking & Infrastructure,Water Services,60119622,CASTLE WATER LTD,12.79,11/01/2019
Commercial,Parking & Infrastructure,Water Services,60119688,CASTLE WATER LTD,27.43,11/01/2019
Commercial,Parking & Infrastructure,Water Services,60120592,CASTLE WATER LTD,179.95,09/01/2019
Commercial,Parking & Infrastructure,Water Services,60120617,CASTLE WATER LTD,406.64,09/01/2019
Commercial,Parking & Infrastructure,Water Services,60120628,CASTLE WATER LTD,532.41,11/01/2019
Commercial,Parking & Infrastructure,Water Services,60120662,CASTLE WATER LTD,161.28,11/01/2019
Commercial,Parking & Infrastructure,Water Services,60120663,CASTLE WATER LTD,15.31,09/01/2019
Commercial,Parking & Infrastructure,Water Services,60121225,CASTLE WATER LTD,21.60,21/01/2019
Commercial,Parking & Infrastructure,Water Services,60121249,CASTLE WATER LTD,18.40,21/01/2019
Commercial,Parking & Infrastructure,Water Services,60121301,CASTLE WATER LTD,89.17,21/01/2019
Commercial,Parking & Infrastructure,Water Services,60121310,CASTLE WATER LTD,22.45,21/01/2019
Commercial,Parking & Infrastructure,Water Services,60121680,CASTLE WATER LTD,232.44,21/01/2019
Commercial,Parking & Infrastructure,Water Services,60122034,CASTLE WATER LTD,175.76,31/01/2019
Commercial,Parking & Infrastructure,Water Services,60122039,CASTLE WATER LTD,208.33,25/01/2019
Commercial,Parking & Infrastructure,Water Services,60122098,CASTLE WATER LTD,697.42,28/01/2019
Commercial,Parking & Infrastructure,Water Services,60122110,CASTLE WATER LTD,19.78,28/01/2019
Commercial,Parking & Infrastructure,Water Services,60122195,CASTLE WATER LTD,35.44,30/01/2019
Commercial,Parking & Infrastructure,Water Services,60122213,CASTLE WATER LTD,21.54,30/01/2019
Commercial,Parking & Infrastructure,Water Services,60122244,CASTLE WATER LTD,29.59,30/01/2019
Commercial,Parking & Infrastructure,Grounds maintenance,60121351,COUNTRYSIDE CONTRACTS,"9,750.00",16/01/2019
Commercial,Parking & Infrastructure,Grounds maintenance,60121807,COUNTRYSIDE CONTRACTS,900.00,22/01/2019
Commercial,Parking & Infrastructure,Grounds maintenance,60119411,BLAISE NURSERY,"1,447.75",03/01/2019
Commercial,Parking & Infrastructure,Grounds maintenance,60119513,BLAISE NURSERY,"2,164.25",03/01/2019
Commercial,Parking & Infrastructure,Grounds maintenance,60119561,BLAISE NURSERY,347.50,03/01/2019
Commercial,Parking & Infrastructure,Grounds maintenance,60119944,BLAISE NURSERY,"6,145.82",07/01/2019
Commercial,Parking & Infrastructure,Grounds maintenance,60120304,BLAISE NURSERY,447.50,15/01/2019
Commercial,Parking & Infrastructure,Grounds maintenance,60117342,CANAL & RIVER TRUST,151.52,10/01/2019
Commercial,Parking & Infrastructure,Grounds maintenance,10014932,EURO PLANTS UK LTD,"1,060.75",16/01/2019
Commercial,Parking & Infrastructure,Grounds maintenance,60121357,GREEN INFRASTRUCTURE LTD,595.00,16/01/2019
Commercial,Parking & Infrastructure,Grounds maintenance,60121434,GREEN INFRASTRUCTURE LTD,595.00,16/01/2019
Commercial,Parking & Infrastructure,Grounds maintenance,60120074,HOPE CORNER COMMUNITY CENTRE,50.00,16/01/2019
Commercial,Parking & Infrastructure,Grounds maintenance,60120347,IRIS GARDENING SERVICES LTD,295.00,03/01/2019
Commercial,Parking & Infrastructure,Grounds maintenance,60121412,IRIS GARDENING SERVICES LTD,250.00,16/01/2019
Commercial,Parking & Infrastructure,Equipment and Materials Purcha,60117878,OAKRAY LIMITED,"1,602.23",04/01/2019
Commercial,Parking & Infrastructure,Equipment and Materials Purcha,60120477,IRIS GARDENING SERVICES LTD,"1,325.00",04/01/2019
Commercial,Parking & Infrastructure,Equipment and Materials Purcha,60121231,IRIS GARDENING SERVICES LTD,"1,200.00",22/01/2019
Commercial,Parking & Infrastructure,Equipment and Materials Purcha,60122084,IRIS GARDENING SERVICES LTD,"1,010.00",28/01/2019
Commercial,Parking & Infrastructure,Equipment and Materials Purcha,60119936,RIGBY TAYLOR LTD,774.20,10/01/2019
Commercial,Parking & Infrastructure,Consultants Fees,60120093,EPC ASSURE LTD,298.00,03/01/2019
Commercial,Parking & Infrastructure,Other Services,60120426,COUNTRYSIDE CONTRACTS,420.00,03/01/2019
Commercial,Parking & Infrastructure,Other Services,60119138,RM COUNTRYSIDE SERVICES LTD,660.00,03/01/2019
Commercial,Parking & Infrastructure,Other Services,60119341,RM COUNTRYSIDE SERVICES LTD,563.00,03/01/2019
Commercial,Parking & Infrastructure,Other Services,60119538,RM COUNTRYSIDE SERVICES LTD,185.00,03/01/2019
Commercial,Parking & Infrastructure,Other Services,60119625,RM COUNTRYSIDE SERVICES LTD,"11,970.00",03/01/2019
Commercial,Parking & Infrastructure,Other Services,60120300,RM COUNTRYSIDE SERVICES LTD,250.00,04/01/2019
Commercial,Parking & Infrastructure,Other Services,60120402,RM COUNTRYSIDE SERVICES LTD,380.00,04/01/2019
Commercial,Parking & Infrastructure,Other Services,60120408,RM COUNTRYSIDE SERVICES LTD,310.50,04/01/2019
Commercial,Parking & Infrastructure,Other Services,60120414,RM COUNTRYSIDE SERVICES LTD,725.25,04/01/2019
Commercial,Parking & Infrastructure,Other Services,60120483,RM COUNTRYSIDE SERVICES LTD,310.50,04/01/2019
Commercial,Parking & Infrastructure,Other Services,60122093,RM COUNTRYSIDE SERVICES LTD,246.00,30/01/2019
Commercial,Parking & Infrastructure,Other Services,60122122,RM COUNTRYSIDE SERVICES LTD,285.00,28/01/2019
Commercial,Parking & Infrastructure,Other Services,60121734,THAMES21 LTD,"5,000.00",22/01/2019
Commercial,Parking & Infrastructure,Building Repairs & Maintenance,80023012,BISHOPSWOOD B.C,"1,117.66",29/01/2019
Commercial,Parking & Infrastructure,Grounds maintenance,60118829,GLENDALE COUNTRYSIDE LTD,"4,600.00",03/01/2019
Commercial,Parking & Infrastructure,Grounds maintenance,60119081,GLENDALE COUNTRYSIDE LTD,480.00,03/01/2019
Commercial,Parking & Infrastructure,Grounds maintenance,60119333,GLENDALE COUNTRYSIDE LTD,"8,196.79",21/01/2019
Commercial,Parking & Infrastructure,Grounds maintenance,60119517,GLENDALE COUNTRYSIDE LTD,905.35,03/01/2019
Commercial,Parking & Infrastructure,Grounds maintenance,60119796,GLENDALE COUNTRYSIDE LTD,"1,236.99",09/01/2019
Commercial,Parking & Infrastructure,Grounds maintenance,60119825,GLENDALE COUNTRYSIDE LTD,"2,190.50",10/01/2019
Commercial,Parking & Infrastructure,Grounds maintenance,60120138,GLENDALE COUNTRYSIDE LTD,199.80,16/01/2019
Commercial,Parking & Infrastructure,Grounds maintenance,60120170,GLENDALE COUNTRYSIDE LTD,"1,456.12",16/01/2019
Commercial,Parking & Infrastructure,Grounds maintenance,60120512,GLENDALE COUNTRYSIDE LTD,"6,263.35",03/01/2019
Commercial,Parking & Infrastructure,Grounds maintenance,60118411,GRISTWOOD & TOM LTD,111.50,14/01/2019
Commercial,Parking & Infrastructure,Grounds maintenance,60121869,GRISTWOOD & TOM LTD,300.00,29/01/2019
Commercial,Parking & Infrastructure,Grounds maintenance,60121885,GRISTWOOD & TOM LTD,"2,198.50",29/01/2019
Commercial,Parking & Infrastructure,Grounds maintenance,60121918,GRISTWOOD & TOM LTD,"1,624.50",29/01/2019
Commercial,Parking & Infrastructure,Grounds maintenance,60121933,GRISTWOOD & TOM LTD,"1,971.00",29/01/2019
Commercial,Parking & Infrastructure,Grounds maintenance,60122103,ANGLIA SIGN CASTING LTD,57.25,28/01/2019
Commercial,Parking & Infrastructure,Software Licences & Support,60121186,RA INFORMATION SYSTEMS,"7,705.00",15/01/2019
Commercial,Parking & Infrastructure,Subscriptions,60118593,LONDON TREE OFFICERS ASSOCIATION,948.00,11/01/2019
Commercial,Parking & Infrastructure,Grounds maintenance,60119072,GLENDALE COUNTRYSIDE LTD,41.20,03/01/2019
Commercial,Parking & Infrastructure,Grounds maintenance,60119797,GLENDALE COUNTRYSIDE LTD,"2,198.56",09/01/2019
Commercial,Parking & Infrastructure,Grounds maintenance,60119809,GLENDALE COUNTRYSIDE LTD,"1,903.88",10/01/2019
Commercial,Parking & Infrastructure,Grounds maintenance,60120188,GLENDALE COUNTRYSIDE LTD,"6,731.53",10/01/2019
Commercial,Parking & Infrastructure,Agency/Interim Hays,60119337,MATCHTECH GROUP UK LTD,"1,840.00",03/01/2019
Commercial,Parking & Infrastructure,Agency/Interim Hays,60119345,MATCHTECH GROUP UK LTD,"1,840.00",03/01/2019
Commercial,Parking & Infrastructure,Agency/Interim Hays,60119386,MATCHTECH GROUP UK LTD,"2,300.00",03/01/2019
Commercial,Parking & Infrastructure,Agency/Interim Hays,60119413,MATCHTECH GROUP UK LTD,"2,300.00",03/01/2019
Commercial,Parking & Infrastructure,Agency/Interim Hays,60119414,MATCHTECH GROUP UK LTD,"2,070.00",03/01/2019
Commercial,Parking & Infrastructure,Agency/Interim Hays,60119418,MATCHTECH GROUP UK LTD,"2,070.00",03/01/2019
Commercial,Parking & Infrastructure,Agency/Interim Hays,60119426,MATCHTECH GROUP UK LTD,"1,840.00",03/01/2019
Commercial,Parking & Infrastructure,Agency/Interim Hays,60119473,MATCHTECH GROUP UK LTD,"1,840.00",03/01/2019
Commercial,Parking & Infrastructure,Equipment and Materials Repair,60119606,GLENDALE COUNTRYSIDE LTD,270.00,03/01/2019
Commercial,Parking & Infrastructure,Professional Services,60119698,NSL LTD,"36,809.16",09/01/2019
Commercial,Parking & Infrastructure,Professional Services,60120695,NSL LTD,"36,809.16",09/01/2019
Commercial,Parking & Infrastructure,Other Services,60119424,LONDON COUNCILS,160.00,21/01/2019
Commercial,Public Health,Equipment and Materials Purcha,60118213,OAKLEIGH PHARMACY,"2,124.08",03/01/2019
Commercial,Public Health,Equipment and Materials Purcha,60119044,OAKLEIGH PHARMACY,31.96,03/01/2019
Commercial,Public Health,Equipment and Materials Purcha,60121615,OAKLEIGH PHARMACY,7.99,21/01/2019
Commercial,Public Health,Consultants Fees,10014792,TERAPIA,135.00,24/01/2019
Commercial,Public Health,Other Establishments - Third P,60119803,GOOD IMPRESSIONS (LONDON) LIMITED,840.00,21/01/2019
Commercial,Public Health,Other Establishments - Third P,60119875,GOOD IMPRESSIONS (LONDON) LIMITED,480.00,21/01/2019
Commercial,Public Health,Other Establishments - Third P,60120316,GOOD IMPRESSIONS (LONDON) LIMITED,210.00,17/01/2019
Commercial,Public Health,Other Establishments - Third P,60120309,WILLIAMS AND ASSOCIATES,"2,600.00",17/01/2019
Commercial,Public Health,Health authorities - Third Par,60120417,CENTRAL LONDONCOMMUNITY HEALTHCARE,"384,000.00",15/01/2019
Commercial,Public Health,Health authorities - Third Par,60120457,CENTRAL LONDONCOMMUNITY HEALTHCARE,"86,448.00",15/01/2019
Commercial,Public Health,Training,60120479,SMART HEALTH SOLUTIONS LTD,"2,047.00",03/01/2019
Commercial,Public Health,Health authorities - Third Par,60118425,LANE END MEDICAL GROUP,"1,775.00",09/01/2019
Commercial,Public Health,Health authorities - Third Par,60118382,EAST BARNET HEALTH CENTRE,25.00,09/01/2019
Commercial,Public Health,Other Local Authorities - Thir,60119331,LEEDS CITY COUNCIL,105.00,11/01/2019
Commercial,Public Health,Health authorities - Third Par,60116286,BARTS HEALTH NHS TRUST,"3,128.90",08/01/2019
Commercial,Public Health,Health authorities - Third Par,60120060,BARTS HEALTH NHS TRUST,"6,933.58",03/01/2019
Commercial,Public Health,Health authorities - Third Par,60120588,BARTS HEALTH NHS TRUST,"3,792.48",17/01/2019
Commercial,Public Health,Health authorities - Third Par,60120499,CENTRAL & NORTH WEST LONDON NHS FT,783.59,10/01/2019
Commercial,Public Health,Health authorities - Third Par,60120506,CENTRAL & NORTH WEST LONDON NHS FT,"165,327.79",10/01/2019
Commercial,Public Health,Health authorities - Third Par,60120508,CENTRAL & NORTH WEST LONDON NHS FT,336.02,10/01/2019
Commercial,Public Health,Health authorities - Third Par,60120247,CENTRAL LONDONCOMMUNITY HEALTHCARE,"1,596.00",04/01/2019
Commercial,Public Health,Health authorities - Third Par,60121872,CENTRAL LONDONCOMMUNITY HEALTHCARE,261.16,25/01/2019
Commercial,Public Health,Health authorities - Third Par,60121903,CENTRAL LONDONCOMMUNITY HEALTHCARE,294.30,25/01/2019
Commercial,Public Health,Health authorities - Third Par,60121934,CENTRAL LONDONCOMMUNITY HEALTHCARE,247.51,25/01/2019
Commercial,Public Health,Health authorities - Third Par,60122061,CENTRAL LONDONCOMMUNITY HEALTHCARE,245.94,25/01/2019
Commercial,Public Health,Health authorities - Third Par,60118859,CHELSEA & WESTMINSTER HOSPITAL NHS,200.27,03/01/2019
Commercial,Public Health,Health authorities - Third Par,60118967,CHELSEA & WESTMINSTER HOSPITAL NHS,"7,194.45",22/01/2019
Commercial,Public Health,Health authorities - Third Par,60120295,CHELSEA & WESTMINSTER HOSPITAL NHS,305.73,04/01/2019
Commercial,Public Health,Health authorities - Third Par,60119664,GUY'S AND ST THOMAS' NHS FT,"6,431.66",03/01/2019
Commercial,Public Health,Health authorities - Third Par,60119827,GUY'S AND ST THOMAS' NHS FT,"5,303.66",08/01/2019
Commercial,Public Health,Health authorities - Third Par,60120634,HOMERTON UNIVERSITY HOSPITAL NHS FOUNDAT,"5,964.35",08/01/2019
Commercial,Public Health,Health authorities - Third Par,60122464,HOMERTON UNIVERSITY HOSPITAL NHS FOUNDAT,"1,012.16",31/01/2019
Commercial,Public Health,Health authorities - Third Par,60121359,BARKING HAVERING REDBRIDGE NHS TRUST,111.00,28/01/2019
Commercial,Public Health,Health authorities - Third Par,60121419,BARKING HAVERING REDBRIDGE NHS TRUST,326.00,28/01/2019
Commercial,Public Health,Health authorities - Third Par,60121420,BARKING HAVERING REDBRIDGE NHS TRUST,408.00,28/01/2019
Commercial,Public Health,Health authorities - Third Par,60119991,COVENTRY & WARWICKSHIRE PARTNERSHIP,138.14,14/01/2019
Commercial,Public Health,Health authorities - Third Par,60121425,DERBYSHIRE COMMUNITY HEALTH SERVICES NHS,135.20,16/01/2019
Commercial,Public Health,Health authorities - Third Par,60119958,KING'S COLLEGE HOSPITAL NHS FOUNDATION T,441.02,10/01/2019
Commercial,Public Health,Health authorities - Third Par,60121661,LUTON AND DUNSTABLE U H,152.36,24/01/2019
Commercial,Public Health,Health authorities - Third Par,60121666,LUTON AND DUNSTABLE U H,119.99,24/01/2019
Commercial,Public Health,Health authorities - Third Par,60121695,LUTON AND DUNSTABLE U H,152.52,24/01/2019
Commercial,Public Health,Health authorities - Third Par,60121757,LUTON AND DUNSTABLE U H,152.52,24/01/2019
Commercial,Public Health,Health authorities - Third Par,60121931,LUTON AND DUNSTABLE U H,610.08,24/01/2019
Commercial,Public Health,Health authorities - Third Par,10014912,NORTHAMPTONSHIRE HEALTHCARE NHS,107.00,11/01/2019
Commercial,Public Health,Health authorities - Third Par,60119409,NORTHERN DEVON HEALTHCARE NHS TRUST,131.00,03/01/2019
Commercial,Public Health,Health authorities - Third Par,60119442,NORTHERN DEVON HEALTHCARE NHS TRUST,211.00,03/01/2019
Commercial,Public Health,Health authorities - Third Par,60119641,PROVIDE,396.00,11/01/2019
Commercial,Public Health,Health authorities - Third Par,60121167,ROYAL BERKSHIRE NHS FOUNDATION TRUST,131.00,15/01/2019
Commercial,Public Health,Health authorities - Third Par,60120294,TORBAY AND SOUTH DEVON NHS FOUNDATION,134.00,03/01/2019
Commercial,Public Health,Other Establishments - Third P,60120063,DEBIGNO LTD T/A PATHWAY ANALYTICS,437.50,15/01/2019
Commercial,Public Health,Ttl IT & Comms,60120755,IDOX HEALTH LTD,"2,096.10",29/01/2019
Commercial,Public Health,Health authorities - Third Par,10014906,WESTMINSTER DRUG PROJECT,"684,405.20",09/01/2019
Commercial,Public Health,Health authorities - Third Par,60119738,WESTMINSTER DRUG PROJECT,"52,440.00",09/01/2019
Commercial,Public Health,Private Contractors - Third Pa,60120195,IDOX HEALTH LTD,"2,055.00",17/01/2019
Commercial,Public Health,Health authorities - Third Par,60122123,GREENFIELD MEDICAL CENTRE,190.00,28/01/2019
Commercial,Public Health,Health authorities - Third Par,60122080,LANGSTONE WAY SURGERY,240.00,28/01/2019
Commercial,Public Health,Health authorities - Third Par,60122074,LONGROVE SURGERY,280.00,28/01/2019
Commercial,Public Health,Health authorities - Third Par,60122090,SQUIRES LANE MEDICAL PRACTICE,930.00,28/01/2019
Commercial,Public Health,Health authorities - Third Par,60122085,ST ANDREWS MEDICAL PRACTICE,90.00,28/01/2019
Commercial,Public Health,Health authorities - Third Par,60118391,THE CLINIC,150.00,09/01/2019
Commercial,Public Health,Health authorities - Third Par,60122077,THE DERWENT MEDICAL CENTRE,250.00,28/01/2019
Commercial,Public Health,Health authorities - Third Par,60122071,THE EVERGLADE MEDICAL PRACTICE,120.00,28/01/2019
Commercial,Public Health,Health authorities - Third Par,60122124,THE OLD COURTHOUSE SURGERY,140.00,28/01/2019
Commercial,Public Health,Health authorities - Third Par,60122101,THE PHOENIX PRACTICE,20.00,28/01/2019
Commercial,Public Health,Health authorities - Third Par,60118290,REDACTED - PERSONAL DATA,30.00,10/01/2019
Commercial,Public Health,Health authorities - Third Par,60121990,REDACTED - PERSONAL DATA,20.00,24/01/2019
Commercial,Public Health,Health authorities - Third Par,60118268,REDACTED - PERSONAL DATA,300.00,14/01/2019
Commercial,Public Health,Health authorities - Third Par,60121944,REDACTED - PERSONAL DATA,250.00,24/01/2019
Commercial,Public Health,Health authorities - Third Par,60121952,EAST BARNET HEALTH CENTRE,120.00,24/01/2019
Commercial,Public Health,Health authorities - Third Par,60122109,SUPREME MEDICAL CENTRE,20.00,28/01/2019
Commercial,Public Health,Health authorities - Third Par,60122094,TORRINGTON PARK GROUP PRACTICE,310.00,28/01/2019
Commercial,Public Health,Training,60113952,MHFA ENGLAND,"2,325.00",31/01/2019
Commercial,Public Health,Food Costs,60121279,YOUNG BARNET FOUNDATION,"9,986.33",16/01/2019
Commercial,Public Health,Voluntary Associations - Third,10014967,BARNET MENCAP,"1,439.75",24/01/2019
Commercial,Public Health,Private Contractors - Third Pa,10014968,TAVISTOCK & PORTMAN NHS TRUST,"11,642.00",25/01/2019
Commercial,Public Health,Food Costs,60121809,YINKA THOMAS TRAINING,"4,760.00",22/01/2019
Commercial,Regional Enterprise,Equipment and Materials Purcha,60122246,CONWAY AECOM LTD,52.00,29/01/2019
Commercial,Regional Enterprise,Advertising,60122273,CONWAY AECOM LTD,211.03,29/01/2019
Commercial,Regional Enterprise,Grant Payments,80022255,REDACTED - PERSONAL DATA,405.40,08/01/2019
Commercial,Regional Enterprise,Other Services,10014974,CONWAY AECOM LTD,904.00,29/01/2019
Commercial,Regional Enterprise,Other Services,60119352,CONWAY AECOM LTD,"1,612.80",03/01/2019
Commercial,Regional Enterprise,Other Services,60119734,CONWAY AECOM LTD,693.00,03/01/2019
Commercial,Regional Enterprise,Other Services,60119739,CONWAY AECOM LTD,661.50,03/01/2019
Commercial,Regional Enterprise,Other Services,60119745,CONWAY AECOM LTD,604.80,03/01/2019
Commercial,Regional Enterprise,Other Services,60119746,CONWAY AECOM LTD,705.60,03/01/2019
Commercial,Regional Enterprise,Other Services,60119752,CONWAY AECOM LTD,"1,449.00",03/01/2019
Commercial,Regional Enterprise,Other Services,60119755,CONWAY AECOM LTD,945.00,03/01/2019
Commercial,Regional Enterprise,Other Services,60119780,CONWAY AECOM LTD,831.60,03/01/2019
Commercial,Regional Enterprise,Other Services,60119785,CONWAY AECOM LTD,676.20,03/01/2019
Commercial,Regional Enterprise,Other Services,60119994,CONWAY AECOM LTD,"1,675.80",03/01/2019
Commercial,Regional Enterprise,Other Services,60119995,CONWAY AECOM LTD,491.40,03/01/2019
Commercial,Regional Enterprise,Other Services,60120044,CONWAY AECOM LTD,252.00,03/01/2019
Commercial,Regional Enterprise,Other Services,60121782,CONWAY AECOM LTD,810.00,22/01/2019
Commercial,Regional Enterprise,Other Services,60121793,CONWAY AECOM LTD,653.38,22/01/2019
Commercial,Regional Enterprise,Other Services,60121840,CONWAY AECOM LTD,"1,232.02",22/01/2019
Commercial,Regional Enterprise,Other Services,60121853,CONWAY AECOM LTD,189.00,22/01/2019
Commercial,Regional Enterprise,Other Services,60121864,CONWAY AECOM LTD,823.45,22/01/2019
Commercial,Regional Enterprise,Other Services,60121866,CONWAY AECOM LTD,911.25,22/01/2019
Commercial,Regional Enterprise,Other Services,60121943,CONWAY AECOM LTD,951.78,24/01/2019
Commercial,Regional Enterprise,Other Services,60121945,CONWAY AECOM LTD,"1,267.95",24/01/2019
Commercial,Regional Enterprise,Other Services,60121947,CONWAY AECOM LTD,742.50,24/01/2019
Commercial,Regional Enterprise,Other Services,60121948,CONWAY AECOM LTD,810.00,24/01/2019
Commercial,Regional Enterprise,Other Services,60121949,CONWAY AECOM LTD,506.25,24/01/2019
Commercial,Regional Enterprise,Other Services,60121950,CONWAY AECOM LTD,992.25,24/01/2019
Commercial,Regional Enterprise,Other Services,60121951,CONWAY AECOM LTD,303.75,24/01/2019
Commercial,Regional Enterprise,Other Services,60121953,CONWAY AECOM LTD,"1,620.00",24/01/2019
Commercial,Regional Enterprise,Other Services,60121957,CONWAY AECOM LTD,850.50,24/01/2019
Commercial,Regional Enterprise,Other Services,60121959,CONWAY AECOM LTD,951.71,24/01/2019
Commercial,Regional Enterprise,Other Services,60121961,CONWAY AECOM LTD,"1,212.08",24/01/2019
Commercial,Regional Enterprise,Other Services,60121963,CONWAY AECOM LTD,364.50,24/01/2019
Commercial,Regional Enterprise,Other Services,60121964,CONWAY AECOM LTD,675.00,24/01/2019
Commercial,Regional Enterprise,Other Services,60121966,CONWAY AECOM LTD,641.25,24/01/2019
Commercial,Regional Enterprise,Other Services,60121967,CONWAY AECOM LTD,"2,430.00",24/01/2019
Commercial,Regional Enterprise,Other Services,60121968,CONWAY AECOM LTD,661.56,24/01/2019
Commercial,Regional Enterprise,Other Services,60121969,CONWAY AECOM LTD,310.50,24/01/2019
Commercial,Regional Enterprise,Other Services,60121970,CONWAY AECOM LTD,"1,039.50",24/01/2019
Commercial,Regional Enterprise,Other Services,60121971,CONWAY AECOM LTD,618.75,24/01/2019
Commercial,Regional Enterprise,Other Services,60121973,CONWAY AECOM LTD,482.63,24/01/2019
Commercial,Regional Enterprise,Other Services,60121974,CONWAY AECOM LTD,864.00,24/01/2019
Commercial,Regional Enterprise,Other Services,60121975,CONWAY AECOM LTD,10.26,24/01/2019
Commercial,Regional Enterprise,Other Services,60121978,CONWAY AECOM LTD,"1,093.55",24/01/2019
Commercial,Regional Enterprise,Other Services,60121979,CONWAY AECOM LTD,"1,026.00",24/01/2019
Commercial,Regional Enterprise,Other Services,60121980,CONWAY AECOM LTD,"1,039.50",24/01/2019
Commercial,Regional Enterprise,Other Services,60121983,CONWAY AECOM LTD,174.69,24/01/2019
Commercial,Regional Enterprise,Other Services,60121984,CONWAY AECOM LTD,555.75,24/01/2019
Commercial,Regional Enterprise,Other Services,60121985,CONWAY AECOM LTD,"1,255.50",24/01/2019
Commercial,Regional Enterprise,Other Services,60121986,CONWAY AECOM LTD,"1,044.66",24/01/2019
Commercial,Regional Enterprise,Other Services,60121987,CONWAY AECOM LTD,486.00,24/01/2019
Commercial,Regional Enterprise,Other Services,60121988,CONWAY AECOM LTD,648.00,24/01/2019
Commercial,Regional Enterprise,Other Services,60121989,CONWAY AECOM LTD,405.00,24/01/2019
Commercial,Regional Enterprise,Other Services,60121993,CONWAY AECOM LTD,543.48,24/01/2019
Commercial,Regional Enterprise,Other Services,60121995,CONWAY AECOM LTD,630.20,24/01/2019
Commercial,Regional Enterprise,Other Services,60121999,CONWAY AECOM LTD,"1,039.50",24/01/2019
Commercial,Regional Enterprise,Other Services,60122001,CONWAY AECOM LTD,607.50,24/01/2019
Commercial,Regional Enterprise,Other Services,60122005,CONWAY AECOM LTD,506.25,24/01/2019
Commercial,Regional Enterprise,Other Services,60122006,CONWAY AECOM LTD,"1,242.00",24/01/2019
Commercial,Regional Enterprise,Other Services,60122009,CONWAY AECOM LTD,"1,206.00",24/01/2019
Commercial,Regional Enterprise,Other Services,60122013,CONWAY AECOM LTD,405.00,24/01/2019
Commercial,Regional Enterprise,Other Services,60122015,CONWAY AECOM LTD,810.00,24/01/2019
Commercial,Regional Enterprise,Other Services,60122017,CONWAY AECOM LTD,594.00,24/01/2019
Commercial,Regional Enterprise,Other Services,60122020,CONWAY AECOM LTD,"1,296.00",24/01/2019
Commercial,Regional Enterprise,Other Services,60122021,CONWAY AECOM LTD,978.75,24/01/2019
Commercial,Regional Enterprise,Other Services,60122024,CONWAY AECOM LTD,"1,057.58",25/01/2019
Commercial,Regional Enterprise,Other Services,60122031,CONWAY AECOM LTD,175.56,24/01/2019
Commercial,Regional Enterprise,Other Services,60122033,CONWAY AECOM LTD,594.00,24/01/2019
Commercial,Regional Enterprise,Other Services,60122035,CONWAY AECOM LTD,918.00,25/01/2019
Commercial,Regional Enterprise,Other Services,60122038,CONWAY AECOM LTD,"1,080.00",24/01/2019
Commercial,Regional Enterprise,Other Services,60122041,CONWAY AECOM LTD,"2,402.28",24/01/2019
Commercial,Regional Enterprise,Other Services,60122043,CONWAY AECOM LTD,810.00,24/01/2019
Commercial,Regional Enterprise,Other Services,60122045,CONWAY AECOM LTD,931.50,24/01/2019
Commercial,Regional Enterprise,Other Services,60122046,CONWAY AECOM LTD,972.00,24/01/2019
Commercial,Regional Enterprise,Other Services,60122050,CONWAY AECOM LTD,324.00,24/01/2019
Commercial,Regional Enterprise,Other Services,60122053,CONWAY AECOM LTD,"1,464.75",24/01/2019
Commercial,Regional Enterprise,Other Services,60122054,CONWAY AECOM LTD,"1,296.00",24/01/2019
Commercial,Regional Enterprise,Other Services,60122057,CONWAY AECOM LTD,"2,443.34",24/01/2019
Commercial,Regional Enterprise,Other Services,60122062,CONWAY AECOM LTD,"2,219.57",24/01/2019
Commercial,Regional Enterprise,Other Services,60122063,CONWAY AECOM LTD,607.50,24/01/2019
Commercial,Regional Enterprise,Other Services,60122064,CONWAY AECOM LTD,859.91,24/01/2019
Commercial,Regional Enterprise,Other Services,60122065,CONWAY AECOM LTD,675.00,25/01/2019
Commercial,Regional Enterprise,Other Services,60122069,CONWAY AECOM LTD,906.05,24/01/2019
Commercial,Regional Enterprise,Other Services,60122182,CONWAY AECOM LTD,661.50,29/01/2019
Commercial,Regional Enterprise,Other Services,60122188,CONWAY AECOM LTD,352.80,29/01/2019
Commercial,Regional Enterprise,Other Services,60122242,CONWAY AECOM LTD,252.00,29/01/2019
Commercial,Regional Enterprise,Other Services,60122245,CONWAY AECOM LTD,"1,323.00",29/01/2019
Commercial,Regional Enterprise,Other Services,60122280,CONWAY AECOM LTD,"1,058.40",29/01/2019
Commercial,Regional Enterprise,Other Services,60122302,CONWAY AECOM LTD,907.20,29/01/2019
Commercial,Regional Enterprise,Other Services,60122304,CONWAY AECOM LTD,752.85,29/01/2019
Commercial,Regional Enterprise,Other Services,60122320,CONWAY AECOM LTD,705.60,29/01/2019
Commercial,Regional Enterprise,Other Services,60122327,CONWAY AECOM LTD,340.20,29/01/2019
Commercial,Regional Enterprise,Other Services,60122358,CONWAY AECOM LTD,569.70,30/01/2019
Commercial,Regional Enterprise,Other Services,60122362,CONWAY AECOM LTD,911.52,30/01/2019
Commercial,Regional Enterprise,Other Services,60122363,CONWAY AECOM LTD,582.36,30/01/2019
Commercial,Regional Enterprise,Other Services,60122371,CONWAY AECOM LTD,582.36,30/01/2019
Commercial,Regional Enterprise,Other Services,60122377,CONWAY AECOM LTD,588.69,30/01/2019
Commercial,Regional Enterprise,Other Services,60122408,CONWAY AECOM LTD,493.74,30/01/2019
Commercial,Regional Enterprise,Professional Services,60120920,RE (REGIONAL ENTERPRISE) LIMITED,860.30,25/01/2019
Commercial,Regional Enterprise,Professional Services,60120926,RE (REGIONAL ENTERPRISE) LIMITED,"6,999.24",24/01/2019
Commercial,Regional Enterprise,Professional Services,60114520,RE (REGIONAL ENTERPRISE) LIMITED,"13,764.60",24/01/2019
Commercial,Regional Enterprise,Professional Services,60115228,RE (REGIONAL ENTERPRISE) LIMITED,"4,014.68",25/01/2019
Commercial,Regional Enterprise,Professional Services,60120894,RE (REGIONAL ENTERPRISE) LIMITED,"1,450.60",25/01/2019
Commercial,Regional Enterprise,Professional Services,60120916,RE (REGIONAL ENTERPRISE) LIMITED,411.53,25/01/2019
Commercial,Regional Enterprise,Professional Services,60121012,RE (REGIONAL ENTERPRISE) LIMITED,426.78,25/01/2019
Commercial,Regional Enterprise,Professional Services,60121392,RE (REGIONAL ENTERPRISE) LIMITED,"88,662.00",25/01/2019
Commercial,Regional Enterprise,Advertising,60113221,TMP (UK) LTD,278.00,29/01/2019
Commercial,Regional Enterprise,Advertising,60115501,TMP (UK) LTD,117.00,30/01/2019
Commercial,Regional Enterprise,Consultants Fees,60121977,VALUATION OFFICE AGENCY,"4,747.20",24/01/2019
Commercial,Regional Enterprise,Other Services,60121801,RM COUNTRYSIDE SERVICES LTD,670.00,22/01/2019
Commercial,Regional Enterprise,Other Services,60097412,CONWAY AECOM LTD,59.61,29/01/2019
Commercial,Regional Enterprise,Other Services,60119778,CONWAY AECOM LTD,119.70,10/01/2019
Commercial,Regional Enterprise,Other Services,60120023,CONWAY AECOM LTD,173.25,03/01/2019
Commercial,Regional Enterprise,Other Services,60121328,CONWAY AECOM LTD,294.73,16/01/2019
Commercial,Regional Enterprise,Other Services,60121347,CONWAY AECOM LTD,338.33,16/01/2019
Commercial,Regional Enterprise,Other Services,60121372,CONWAY AECOM LTD,279.22,16/01/2019
Commercial,Regional Enterprise,Other Services,60121429,CONWAY AECOM LTD,350.37,17/01/2019
Commercial,Regional Enterprise,Other Services,60121779,CONWAY AECOM LTD,102.87,22/01/2019
Commercial,Regional Enterprise,Other Services,60121786,CONWAY AECOM LTD,316.52,22/01/2019
Commercial,Regional Enterprise,Other Services,60121806,CONWAY AECOM LTD,100.61,22/01/2019
Commercial,Regional Enterprise,Other Services,60121820,CONWAY AECOM LTD,111.47,24/01/2019
Commercial,Regional Enterprise,Other Services,60121826,CONWAY AECOM LTD,43.65,22/01/2019
Commercial,Regional Enterprise,Other Services,60121859,CONWAY AECOM LTD,526.76,22/01/2019
Commercial,Regional Enterprise,Other Services,60121946,CONWAY AECOM LTD,109.69,24/01/2019
Commercial,Regional Enterprise,Other Services,60121955,CONWAY AECOM LTD,616.16,24/01/2019
Commercial,Regional Enterprise,Other Services,60121976,CONWAY AECOM LTD,78.57,24/01/2019
Commercial,Regional Enterprise,Other Services,60122004,CONWAY AECOM LTD,315.00,24/01/2019
Commercial,Regional Enterprise,Other Services,60122207,CONWAY AECOM LTD,882.00,29/01/2019
Commercial,Regional Enterprise,Other Services,60122236,CONWAY AECOM LTD,283.50,29/01/2019
Commercial,Regional Enterprise,Other Services,60122357,CONWAY AECOM LTD,481.26,30/01/2019
Commercial,Regional Enterprise,Other Services,60122388,CONWAY AECOM LTD,618.44,30/01/2019
Commercial,Regional Enterprise,Other Services,60122215,RM COUNTRYSIDE SERVICES LTD,175.00,29/01/2019
Commercial,Regional Enterprise,Legal and Court Fees,80022591,HENRY PLANNING LTD,750.00,21/01/2019
Commercial,Regional Enterprise,Professional Services,60117290,WATES LIVING SPACE,258.11,18/01/2019
Commercial,Regional Enterprise,Professional Services,60117299,WATES LIVING SPACE,126.94,24/01/2019
Commercial,Regional Enterprise,Professional Services,60117355,WATES LIVING SPACE,131.17,14/01/2019
Commercial,Regional Enterprise,Professional Services,60122036,WATES LIVING SPACE,"2,994.36",24/01/2019
Commercial,Regional Enterprise,Professional Services,60118297,LONDON BOROUGH OF HARINGEY,200.00,11/01/2019
Commercial,Regional Enterprise,Grant Payments,80022346,AMWELL CONSTRUCTION LTD,427.20,14/01/2019
Commercial,Regional Enterprise,Professional Services,10014911,RE (REGIONAL ENTERPRISE) LIMITED,"467,500.00",14/01/2019
Commercial,Regional Enterprise,Consultants Fees,60120066,GOWLING WLG,"12,405.39",03/01/2019
Commercial,Regional Enterprise,Consultants Fees,60120136,GOWLING WLG,"3,393.00",03/01/2019
Commercial,Regional Enterprise,Consultants Fees,60121725,SAPIENS CONSULTANCY,"3,655.50",21/01/2019
Commercial,Regional Enterprise,Fees and Charges,80023067,HENDON GOLF CLUB,"2,000.00",31/01/2019
Commercial,Regional Enterprise,Other Services,60115159,CASTLE WATER LTD,28.79,30/01/2019
Commercial,Regional Enterprise,Other Services,60115434,CASTLE WATER LTD,35.26,30/01/2019
Commercial,Regional Enterprise,Other Services,60115714,CASTLE WATER LTD,41.64,30/01/2019
Commercial,Regional Enterprise,Other Services,60118115,CASTLE WATER LTD,10.57,30/01/2019
Commercial,Regional Enterprise,Other Services,60118199,CASTLE WATER LTD,40.34,30/01/2019
Commercial,Regional Enterprise,Other Services,60118207,CASTLE WATER LTD,34.29,30/01/2019
Commercial,Regional Enterprise,Other Services,60122192,CASTLE WATER LTD,22.77,30/01/2019
Commercial,Regional Enterprise,Cleaning and domestic material,60119076,CHURCHILL CONTRACT SERVICES,488.56,24/01/2019
Commercial,Regional Enterprise,Cleaning and domestic material,60121660,CHURCHILL CONTRACT SERVICES,635.13,30/01/2019
COMMERCIAL,REGIONAL ENTERPRISE,Other Services,60120220,CONWAY AECOM LTD,"34,064.20",03/01/2019
COMMERCIAL,REGIONAL ENTERPRISE,Other Services,60116870,SABER (ASSET MANAGEMENT ) LTD,"46,264.72",15/01/2019
COMMERCIAL,REGIONAL ENTERPRISE,Grant Payments,80022806,AMWELL CONSTRUCTION LTD,"10,960.00",29/01/2019
COMMERCIAL,REGIONAL ENTERPRISE,Grant Payments,80022689,DP BUILDERS DISABLED ADAPTATIONS,"5,320.00",25/01/2019
COMMERCIAL,REGIONAL ENTERPRISE,Grant Payments,80022363,SOUTH HERTFORDSHIRE,"19,954.14",16/01/2019
COMMERCIAL,REGIONAL ENTERPRISE,Grant Payments,80022850,SOUTH HERTFORDSHIRE,"2,000.00",25/01/2019
COMMERCIAL,REGIONAL ENTERPRISE,Grant Payments,80022373,STANNAH STAIRLIFTS LTD,"5,527.00",16/01/2019
COMMERCIAL,REGIONAL ENTERPRISE,Grant Payments,80022364,ARTHUR J. FERRYMAN ASSOCIATES,"2,051.83",16/01/2019
COMMERCIAL,REGIONAL ENTERPRISE,Grant Payments,80022700,ARTHUR J. FERRYMAN ASSOCIATES,480.00,25/01/2019
COMMERCIAL,REGIONAL ENTERPRISE,Grant Payments,80022694,PEABODY TRUST,"2,962.60",24/01/2019
COMMERCIAL,REGIONAL ENTERPRISE,Grant Payments,80022348,REDACTED - PERSONAL DATA,"6,513.00",16/01/2019
COMMERCIAL,REGIONAL ENTERPRISE,Grant Payments,80022749,REDACTED - PERSONAL DATA,"6,459.00",29/01/2019
COMMERCIAL,REGIONAL ENTERPRISE,Other Services,60116515,BOUYGUES E&S INFRASTRUCTURE UK LTD,"4,389.16",29/01/2019
COMMERCIAL,REGIONAL ENTERPRISE,Other Services,60112519,TRAFFIC SURVEY PARTNERS (TSP) LTD,"7,000.00",14/01/2019
COMMERCIAL,REGIONAL ENTERPRISE,Professional Services,60119172,PENNA PLC,"9,886.50",03/01/2019
COMMERCIAL,REGIONAL ENTERPRISE,Other Services,80021008,DUCIMUS @ LIMITED,191.55,28/01/2019
COMMERCIAL,REGIONAL ENTERPRISE,Consultants Fees,10014860,GOWLING WLG,"2,384.34",03/01/2019
COMMERCIAL,REGIONAL ENTERPRISE,Consultants Fees,10014861,GOWLING WLG,"13,281.80",03/01/2019
COMMERCIAL,REGIONAL ENTERPRISE,Consultants Fees,10014862,GOWLING WLG,"7,541.62",03/01/2019
COMMERCIAL,REGIONAL ENTERPRISE,Consultants Fees,60120059,GOWLING WLG,"6,493.71",03/01/2019
COMMERCIAL,REGIONAL ENTERPRISE,Consultants Fees,60120069,GOWLING WLG,"4,701.35",03/01/2019
COMMERCIAL,REGIONAL ENTERPRISE,Consultants Fees,60120107,GOWLING WLG,"5,079.78",03/01/2019
COMMERCIAL,REGIONAL ENTERPRISE,Consultants Fees,60120126,GOWLING WLG,"8,080.49",03/01/2019
COMMERCIAL,REGIONAL ENTERPRISE,Consultants Fees,60120132,GOWLING WLG,"6,976.12",03/01/2019
COMMERCIAL,REGIONAL ENTERPRISE,Consultants Fees,60120150,GOWLING WLG,"5,929.94",03/01/2019
COMMERCIAL,REGIONAL ENTERPRISE,Consultants Fees,60120159,GOWLING WLG,"5,623.93",03/01/2019
COMMERCIAL,REGIONAL ENTERPRISE,Consultants Fees,60120050,JOHN GRAHAM CONSTRUCTION LTD,"29,139.77",03/01/2019
COMMERCIAL,REGIONAL ENTERPRISE,Consultants Fees,60121821,JOHN GRAHAM CONSTRUCTION LTD,"41,993.88",29/01/2019
COMMERCIAL,REGIONAL ENTERPRISE,Professional Services,60119362,RE (REGIONAL ENTERPRISE) LIMITED,"69,619.25",03/01/2019
COMMERCIAL,REGIONAL ENTERPRISE,Professional Services,60119408,RE (REGIONAL ENTERPRISE) LIMITED,"158,557.42",03/01/2019
COMMERCIAL,REGIONAL ENTERPRISE,Professional Services,60119425,RE (REGIONAL ENTERPRISE) LIMITED,"97,162.88",03/01/2019
COMMERCIAL,REGIONAL ENTERPRISE,Professional Services,60119525,RE (REGIONAL ENTERPRISE) LIMITED,"121,114.21",03/01/2019
COMMERCIAL,REGIONAL ENTERPRISE,Professional Services,60120782,RE (REGIONAL ENTERPRISE) LIMITED,"93,930.35",29/01/2019
COMMERCIAL,REGIONAL ENTERPRISE,Professional Services,60120792,RE (REGIONAL ENTERPRISE) LIMITED,"151,042.50",29/01/2019
COMMERCIAL,REGIONAL ENTERPRISE,Professional Services,60120819,RE (REGIONAL ENTERPRISE) LIMITED,"113,945.53",29/01/2019
COMMERCIAL,REGIONAL ENTERPRISE,Professional Services,60118100,BRITISH TELECOMMUNICATIONS PLC,"23,289.21",18/01/2019
COMMERCIAL,REGIONAL ENTERPRISE,Capital Construction and Works,60120161,CONWAY AECOM LTD,"32,540.21",03/01/2019
COMMERCIAL,REGIONAL ENTERPRISE,Other Services,60120166,CONWAY AECOM LTD,"37,009.76",03/01/2019
COMMERCIAL,REGIONAL ENTERPRISE,Other Services,60120196,CONWAY AECOM LTD,"61,786.34",03/01/2019
COMMERCIAL,REGIONAL ENTERPRISE,Other Services,60121439,CONWAY AECOM LTD,"47,522.02",17/01/2019
COMMERCIAL,REGIONAL ENTERPRISE,Other Services,60121449,CONWAY AECOM LTD,"52,565.18",17/01/2019
COMMERCIAL,REGIONAL ENTERPRISE,Other Services,10014889,CONWAY AECOM LTD,"21,918.08",09/01/2019
COMMERCIAL,REGIONAL ENTERPRISE,Other Services,10014890,CONWAY AECOM LTD,"24,521.79",09/01/2019
COMMERCIAL,REGIONAL ENTERPRISE,Other Services,10014891,CONWAY AECOM LTD,"15,622.64",09/01/2019
COMMERCIAL,REGIONAL ENTERPRISE,Other Services,10014892,CONWAY AECOM LTD,"26,173.50",17/01/2019
COMMERCIAL,REGIONAL ENTERPRISE,Other Services,10014893,CONWAY AECOM LTD,"57,473.25",09/01/2019
COMMERCIAL,REGIONAL ENTERPRISE,Other Services,10014894,CONWAY AECOM LTD,"43,119.80",09/01/2019
COMMERCIAL,REGIONAL ENTERPRISE,Other Services,10014896,CONWAY AECOM LTD,"22,916.40",09/01/2019
COMMERCIAL,REGIONAL ENTERPRISE,Other Services,10014933,CONWAY AECOM LTD,"39,958.80",16/01/2019
COMMERCIAL,REGIONAL ENTERPRISE,Other Services,10014934,CONWAY AECOM LTD,"39,958.80",16/01/2019
COMMERCIAL,REGIONAL ENTERPRISE,Other Services,10014946,CONWAY AECOM LTD,"43,119.80",17/01/2019
COMMERCIAL,REGIONAL ENTERPRISE,Other Services,10014947,CONWAY AECOM LTD,"56,055.74",17/01/2019
COMMERCIAL,REGIONAL ENTERPRISE,Other Services,10014948,CONWAY AECOM LTD,"16,092.51",17/01/2019
COMMERCIAL,REGIONAL ENTERPRISE,Other Services,60118477,CONWAY AECOM LTD,"66,730.08",03/01/2019
COMMERCIAL,REGIONAL ENTERPRISE,Other Services,60118641,CONWAY AECOM LTD,"44,755.04",03/01/2019
COMMERCIAL,REGIONAL ENTERPRISE,Other Services,60121857,CONWAY AECOM LTD,"30,183.86",22/01/2019
COMMERCIAL,REGIONAL ENTERPRISE,Other Services,60121972,CONWAY AECOM LTD,"64,370.04",25/01/2019
COMMERCIAL,REGIONAL ENTERPRISE,Consultants Fees,60120012,MSA LTD,"4,488.75",10/01/2019
COMMERCIAL,REGIONAL ENTERPRISE,Consultants Fees,60120038,PFB CONSTRUCTION MANAGEMENT SERVICE LTD,"1,375.00",10/01/2019
COMMERCIAL,REGIONAL ENTERPRISE,Professional Services,60120334,EMERGENT VERNACULAR ARCHITECTURE LTD,"3,666.90",17/01/2019
COMMERCIAL,REGIONAL ENTERPRISE,Other Services,60122321,BRITISH TELECOMMUNICATIONS PLC,"133,444.08",29/01/2019
COMMERCIAL,REGIONAL ENTERPRISE,Capital Construction and Works,60119329,UK POWER NETWORKS,"5,035.00",08/01/2019
COMMERCIAL,REGIONAL ENTERPRISE,Capital Construction and Works,60119572,UK POWER NETWORKS,"1,631.00",08/01/2019
COMMERCIAL,REGIONAL ENTERPRISE,Other Services,60119639,CYCLE CONFIDENT LTD,"21,378.48",04/01/2019
COMMERCIAL,REGIONAL ENTERPRISE,Other Services,60121173,CYCLE CONFIDENT LTD,"2,898.28",30/01/2019
COMMERCIAL,REGIONAL ENTERPRISE,Other Services,60119607,CYCLE CONFIDENT LTD,"1,068.75",08/01/2019
COMMERCIAL,REGIONAL ENTERPRISE,Other Services,60118885,ETZ CHAIM JEWISH PRIMARY SCHOOL,"3,000.00",07/01/2019
COMMERCIAL,REGIONAL ENTERPRISE,Other Services,60121338,THE HYDE EF ACADEMY,"3,000.00",21/01/2019
COMMERCIAL,REGIONAL ENTERPRISE,Other Services,60119956,WATLING PARK SCHOOL,"3,000.00",09/01/2019
COMMERCIAL,REGIONAL ENTERPRISE,Other Services,60119690,WHITEFIELD SCHOOL ACADEMY TRUST CO.,"3,200.00",07/01/2019
COMMERCIAL,REGIONAL ENTERPRISE,Other Services,60119156,THE PARDES HOUSE GRAMMAR SCHOOL,"3,000.00",09/01/2019
COMMERCIAL,REGIONAL ENTERPRISE,Capital Construction and Works,60121791,MODESHIFT,225.00,22/01/2019
COMMERCIAL,REGIONAL ENTERPRISE,Equipment and Materials Purcha,60121805,MODESHIFT,399.00,28/01/2019
COMMERCIAL,REGIONAL ENTERPRISE,Other Services,60121465,ARCHER ACADEMY,500.00,21/01/2019
COMMERCIAL,REGIONAL ENTERPRISE,Other Services,60121485,BEIS CHINUCH PRIMARY SCHOOL,900.00,21/01/2019
COMMERCIAL,REGIONAL ENTERPRISE,Other Services,60122472,BEIS CHINUCH PRIMARY SCHOOL,420.00,31/01/2019
COMMERCIAL,REGIONAL ENTERPRISE,Other Services,60121474,MILLBROOK PARK PRIMARY SCHOOL,"1,220.00",21/01/2019
COMMERCIAL,REGIONAL ENTERPRISE,Other Services,60121467,WHITEFIELD SCHOOL ACADEMY TRUST CO.,600.00,21/01/2019
COMMERCIAL,REGIONAL ENTERPRISE,Other Services,60121490,WREN ACADEMY,"1,500.00",21/01/2019
COMMERCIAL,REGIONAL ENTERPRISE,Other Services,60121499,ANNEMOUNT NURSERY SCHOOL,900.00,21/01/2019
COMMERCIAL,REGIONAL ENTERPRISE,Other Services,60121503,ASHMOLE PRIMARY SCHOOL,600.00,21/01/2019
COMMERCIAL,REGIONAL ENTERPRISE,Other Services,60121508,THE PARDES HOUSE GRAMMAR SCHOOL,900.00,21/01/2019
COMMERCIAL,REGIONAL ENTERPRISE,Advertising,60121267,TMP (UK) LTD,529.50,16/01/2019
COMMERCIAL,REGIONAL ENTERPRISE,Capital Construction and Works,60119608,CONWAY AECOM LTD,"23,957.51",03/01/2019
COMMERCIAL,REGIONAL ENTERPRISE,Other Services,60120234,CONWAY AECOM LTD,250.54,03/01/2019
COMMERCIAL,REGIONAL ENTERPRISE,Other Services,60122190,CONWAY AECOM LTD,"3,685.50",29/01/2019
COMMERCIAL,REGIONAL ENTERPRISE,Other Services,60122306,CONWAY AECOM LTD,"1,909.51",29/01/2019
COMMERCIAL,REGIONAL ENTERPRISE,Other Services,60120197,TRANSPORT FOR LONDON,"5,000.00",08/01/2019
COMMERCIAL,REGIONAL ENTERPRISE,Other Services,60120494,TRANSPORT FOR LONDON,"5,000.00",08/01/2019
COMMERCIAL,REGIONAL ENTERPRISE,Other Services,60119054,CONWAY AECOM LTD,"31,982.49",03/01/2019
COMMERCIAL,REGIONAL ENTERPRISE,Other Services,60119284,CONWAY AECOM LTD,"11,082.68",03/01/2019
COMMERCIAL,REGIONAL ENTERPRISE,Other Services,60122258,CONWAY AECOM LTD,"30,769.97",29/01/2019
COMMERCIAL,REGIONAL ENTERPRISE,Other Services,60119370,ALL MEDIA WORKS LTD,"2,737.50",03/01/2019
COMMERCIAL,REGIONAL ENTERPRISE,Other Services,60117141,SOUTHGATE COACHES LTD,"4,257.00",03/01/2019
COMMERCIAL,REGIONAL ENTERPRISE,Other Services,60118912,REDACTED - PERSONAL DATA,285.00,03/01/2019
COMMERCIAL,REGIONAL ENTERPRISE,Other Services,60118839,REDACTED - PERSONAL DATA,"1,500.00",03/01/2019
Commissioning,Commissioning,Other Local Authorities - Thir,EBX0265936,NORTH LONDON WASTE AUTHORITY,"1,014,603.00",25/01/2019
Commissioning,Commissioning,Fees and Charges,80022885,REDACTED - PERSONAL DATA,98.00,25/01/2019
Commissioning,Commissioning,Subscriptions,80022429,ALARM,972.00,15/01/2019
Commissioning,Commissioning,Professional Services,60121583,GRANT THORNTON UK LLP,"2,211.13",22/01/2019
Commissioning,Commissioning,Professional Services,60119247,PENNA PLC,"9,126.00",03/01/2019
Commissioning,Commissioning,Professional Services,60120827,PENNA PLC,"8,073.00",31/01/2019
Commissioning,Commissioning,Professional Services,60119521,ELKA SOLUTIONS,400.00,03/01/2019
Commissioning,Commissioning,Professional Services,60122022,KPMG FEES ACCOUNT,875.00,24/01/2019
Commissioning,Commissioning,Ttl IT & Comms,60120326,LOGOTECH SYSTEMS,"4,833.28",03/01/2019
Commissioning,Commissioning,Professional Services,80021592,GOOD IMPRESSIONS (LONDON) LIMITED,150.00,03/01/2019
Commissioning,Commissioning,Professional Services,60120363,THE BARNETGROUP LIMITED,"76,863.06",03/01/2019
Commissioning,Commissioning,Professional Services,60120428,THE BARNETGROUP LIMITED,"47,057.25",03/01/2019
Commissioning,Commissioning,Professional Services,80021729,RAINCHARM COMMUNICATIONS LTD,400.00,08/01/2019
Commissioning,Commissioning,Professional Services,60120446,THE BARNETGROUP LIMITED,"33,481.90",03/01/2019
Commissioning,Commissioning,Agency/Interim Hays,10014882,MATRIX SCM LTD,"287,601.90",08/01/2019
Commissioning,Commissioning,Agency/Interim Hays,10014904,MATRIX SCM LTD,"318,173.28",09/01/2019
Commissioning,Commissioning,Agency/Interim Hays,10014905,MATRIX SCM LTD,"281,004.29",09/01/2019
Commissioning,Commissioning,Agency/Interim Hays,10014983,MATRIX SCM LTD,"220,887.11",31/01/2019
Commissioning,Commissioning,Agency/Interim Hays,60121060,MATRIX SCM LTD,"224,330.81",15/01/2019
Commissioning,Commissioning,Agency/Interim Hays,60121160,MATRIX SCM LTD,"81,392.03",15/01/2019
Commissioning,Commissioning,Training,60116082,GOOD IMPRESSIONS (LONDON) LIMITED,270.00,09/01/2019
Commissioning,Commissioning,Training,60119837,GOOD IMPRESSIONS (LONDON) LIMITED,120.00,10/01/2019
Commissioning,Commissioning,Training,60119864,GOOD IMPRESSIONS (LONDON) LIMITED,300.00,10/01/2019
Commissioning,Commissioning,Training,60118883,RESOLVEX PEOPLE SOLUTIONS LIMITED,550.10,24/01/2019
Commissioning,Commissioning,Training,60119522,STAIRWAY CONSULTING LTD,"4,015.80",11/01/2019
Commissioning,Commissioning,Training,60119901,STAIRWAY CONSULTING LTD,"2,125.70",10/01/2019
Commissioning,Commissioning,Training,60118966,ACAS,835.00,08/01/2019
Commissioning,Commissioning,Training,60120816,ACAS,"1,760.00",31/01/2019
Commissioning,Commissioning,Training,60108810,JUDELINE NICOLAS ASSOCIATES,642.60,24/01/2019
Commissioning,Commissioning,Training,60117333,JUDELINE NICOLAS ASSOCIATES,"1,288.90",25/01/2019
Commissioning,Commissioning,Training,60120100,SHA'ARE TSEDEK NORTH LONDON REFORM SYNAG,560.00,30/01/2019
Commissioning,Commissioning,Consultants Fees,60117130,GATENBY SANDERSON,"5,911.71",22/01/2019
Commissioning,Commissioning,Consultants Fees,60118490,GATENBY SANDERSON,"5,067.18",28/01/2019
Commissioning,Commissioning,Consultants Fees,60119168,GATENBY SANDERSON,"6,063.36",28/01/2019
Commissioning,Commissioning,Consultants Fees,60119924,GATENBY SANDERSON,"1,689.06",25/01/2019
Commissioning,Commissioning,COMMUNICATION REAL,60113799,GOOD IMPRESSIONS (LONDON) LIMITED,90.00,31/01/2019
Commissioning,Commissioning,Miscellaneous Expenses,80022099,ALL FORMATS TRANSCRIPTION SERV,180.82,07/01/2019
Commissioning,Commissioning,Professional Services,60101971,BRITISH TELECOM PLC,25.26,10/01/2019
Commissioning,Commissioning,Professional Services,60122389,THE BARNETGROUP LIMITED,"2,000.00",31/01/2019
Commissioning,Commissioning,Professional Services,60115778,AIRWAVE SOLUTIONS LIMITED,"2,799.76",22/01/2019
Commissioning,Commissioning,Ttl IT & Comms,60090273,AIRWAVE SOLUTIONS LIMITED,-219.20,22/01/2019
Commissioning,Commissioning,Consultants Fees,80023073,ANDREW PRITCHARD LTD,"12,000.00",31/01/2019
Commissioning,Commissioning,Other Services,60114555,SHREDALL LTD,297.00,18/01/2019
Commissioning,Commissioning,Other Services,60118644,SHREDALL LTD,405.00,18/01/2019
Commissioning,Commissioning,Other Services,10014952,SHRED-IT,805.17,18/01/2019
Commissioning,Commissioning,Other Services,10014953,SHRED-IT,"1,064.65",18/01/2019
Commissioning,Commissioning,Other Services,10014954,SHRED-IT,412.16,18/01/2019
Commissioning,Commissioning,Other Services,10014955,SHRED-IT,"1,189.84",18/01/2019
Commissioning,Commissioning,Other Services,10014956,SHRED-IT,610.97,18/01/2019
Commissioning,Commissioning,Other Services,60118687,SHRED-IT,-19.18,18/01/2019
Commissioning,Commissioning,Other Services,60118688,SHRED-IT,-105.93,18/01/2019
Commissioning,Commissioning,Other Services,60118706,SHRED-IT,-144.45,18/01/2019
Commissioning,Commissioning,Other Services,60118717,SHRED-IT,-144.45,18/01/2019
Commissioning,Commissioning,Other Services,60118729,SHRED-IT,-28.89,18/01/2019
Commissioning,Commissioning,Other Services,60118730,SHRED-IT,-28.89,18/01/2019
Commissioning,Commissioning,Other Services,60118733,SHRED-IT,-28.76,18/01/2019
Commissioning,Commissioning,Other Services,60118762,SHRED-IT,-28.89,18/01/2019
Commissioning,Commissioning,Other Services,60118771,SHRED-IT,-28.89,18/01/2019
Commissioning,Commissioning,Other Services,60118776,SHRED-IT,-28.89,18/01/2019
Commissioning,Commissioning,Other Services,60118788,SHRED-IT,-57.78,18/01/2019
Commissioning,Commissioning,Other Services,60118792,SHRED-IT,-28.89,18/01/2019
Commissioning,Commissioning,Other Services,60118799,SHRED-IT,-144.45,18/01/2019
Commissioning,Commissioning,Other Services,60117325,IRMS CUSTOMER SERVICES,80.00,15/01/2019
Commissioning,Commissioning,Other Services,60119685,STOR-A FILE LTD,"5,891.83",03/01/2019
Commissioning,Commissioning,Other Services,60121614,STOR-A FILE LTD,"6,276.90",29/01/2019
Commissioning,Commissioning,Other Services,60116769,REDACTED - PERSONAL DATA,323.00,07/01/2019
Commissioning,Commissioning,Other Services,60122284,REDACTED - PERSONAL DATA,180.00,30/01/2019
Commissioning,Commissioning,Consultants Fees,60120357,REDACTED - PERSONAL DATA,42.84,16/01/2019
Commissioning,Commissioning,Private Contractors - Third Pa,60120899,GREENWICH LEISURE LTD,"33,066.58",11/01/2019
Commissioning,Commissioning,Private Contractors - Third Pa,60121923,GREENWICH LEISURE LTD,"99,199.74",24/01/2019
Commissioning,Commissioning,Other Services,60116640,BARNET REFUGEE SERVICE,799.50,11/01/2019
Commissioning,Commissioning,Professional Services,60122200,REDACTED - PERSONAL DATA,278.18,30/01/2019
Commissioning,Commissioning,Professional Services,60122222,REDACTED - PERSONAL DATA,150.00,30/01/2019
Commissioning,Commissioning,Professional Services,60122032,MOTT MACDONALD LTD,"11,200.00",25/01/2019
Commissioning,Commissioning,Professional Services,60122037,MOTT MACDONALD LTD,"42,475.00",25/01/2019
Commissioning,Commissioning,Consultants Fees,60114405,OPINION RESEARCH SERVICES,"26,400.00",25/01/2019
Commissioning,Commissioning,Consultants Fees,60114414,OPINION RESEARCH SERVICES,"4,792.50",08/01/2019
Commissioning,Commissioning,Professional Services,60120929,THE BARNETGROUP LIMITED,"15,226.00",14/01/2019
Commissioning,Commissioning,Equipment and Materials Purcha,60120028,OCS GROUP UK LIMITED,"47,269.00",03/01/2019
Commissioning,Commissioning,Equipment and Materials Purcha,60121649,THE BARNETGROUP LIMITED,"12,000.00",21/01/2019
Commissioning,Commissioning,Equipment and Materials Purcha,60121656,THE BARNETGROUP LIMITED,"4,000.00",21/01/2019
Commissioning,Commissioning,Other Transfer Payments to Soc,60121646,THE BARNETGROUP LIMITED,"15,000.00",21/01/2019
Commissioning,Commissioning,Other Transfer Payments to Soc,60121713,THE BARNETGROUP LIMITED,"15,000.00",21/01/2019
Commissioning,Commissioning,Other Transfer Payments to Soc,60121721,THE BARNETGROUP LIMITED,"14,000.00",21/01/2019
Commissioning,Commissioning,Other Transfer Payments to Soc,60117555,GLOBAL MSC SECURITY LIMITED,310.00,16/01/2019
Commissioning,Commissioning,Other Transfer Payments to Soc,60120591,SANGAM ASSOCIATION OF ASIAN WOMEN,100.00,15/01/2019
Commissioning,Commissioning,Other Transfer Payments to Soc,60120566,SOLACE WOMEN'S AID,150.00,15/01/2019
Commissioning,Commissioning,Equipment and Materials Purcha,60119086,REDACTED - PERSONAL DATA,150.00,03/01/2019
Commissioning,Commissioning,Miscellaneous Expenses,80022437,REDACTED - PERSONAL DATA,10.00,17/01/2019
Commissioning,Commissioning,Consultants Fees,60121221,LONDON BOROUGH OF EALING,"30,000.00",15/01/2019
Commissioning,Commissioning,Consultants Fees,60119834,AV2HIRE,490.00,17/01/2019
Commissioning,Commissioning,Consultants Fees,60121629,SHA'ARE TSEDEK NORTH LONDON REFORM SYNAG,720.00,22/01/2019
Commissioning,Commissioning,Consultants Fees,60121342,SOLACE ENTERPRISES LTD,595.00,31/01/2019
Commissioning,Commissioning,Advertising,60117442,LETTERBOX DISTRIBUTION.COM,"8,250.00",09/01/2019
Commissioning,Commissioning,Other Services,80022395,REDACTED - PERSONAL DATA,62.30,15/01/2019
Commissioning,Commissioning,Professional Services,60118430,GROUNDWORK LONDON,"12,226.20",14/01/2019
Commissioning,Commissioning,Professional Services,60118446,GROUNDWORK LONDON,"19,867.58",14/01/2019
Commissioning,Commissioning,Publications,60119794,GOOD IMPRESSIONS (LONDON) LIMITED,390.00,10/01/2019
Commissioning,Commissioning,Publications,60120267,GOOD IMPRESSIONS (LONDON) LIMITED,180.00,17/01/2019
Commissioning,Commissioning,Publications,60120310,GOOD IMPRESSIONS (LONDON) LIMITED,90.00,17/01/2019
Commissioning,Commissioning,Publications,60122154,LETTERBOX DISTRIBUTION.COM,"1,185.00",29/01/2019
Commissioning,Commissioning,Subscriptions,60121636,HOOTSUITE  MEDIA INC.,"4,500.00",21/01/2019
Commissioning,Commissioning,Training,60118291,LOCAL GOVERNMENT ASSOCIATION,"9,600.00",10/01/2019
Commissioning,Commissioning,Grant Payments,60119191,THE BARNETGROUP LIMITED,"36,000.82",11/01/2019
Commissioning,Commissioning,Publications,60119816,GOOD IMPRESSIONS (LONDON) LIMITED,"2,400.00",10/01/2019
Commissioning,Commissioning,Publications,60118878,DIGITALISSUE LIMITED,150.00,03/01/2019
Commissioning,Commissioning,Professional Services,60120288,GOOD IMPRESSIONS (LONDON) LIMITED,270.00,18/01/2019
Commissioning,Commissioning,Other Services,60119670,MOTT MACDONALD LTD,"23,047.47",22/01/2019
Commissioning,Commissioning,Other Services,60121992,MOTT MACDONALD LTD,"21,009.14",30/01/2019
Commissioning,Commissioning,Professional Services,60104344,MOTT MACDONALD LTD,"21,463.31",28/01/2019
Commissioning,Commissioning,Professional Services,60120378,MOTT MACDONALD LTD,"29,176.75",09/01/2019
Commissioning,Commissioning,Professional Services,60120418,THE BARNETGROUP LIMITED,"56,829.86",22/01/2019
Commissioning,Commissioning,Professional Services,60120449,THE BARNETGROUP LIMITED,"97,227.31",22/01/2019
COMMISSIONING,COMMISSIONING GROUP,Capital Construction and Works,60115658,BJF CONNECTIONS LTD,"17,062.50",04/01/2019
COMMISSIONING,COMMISSIONING GROUP,Training,60113556,STAIRWAY CONSULTING LTD,"1,338.60",24/01/2019
COMMISSIONING,COMMISSIONING GROUP,Consultants Fees,60119548,GALLIFORD TRY,"360,575.48",03/01/2019
COMMISSIONING,COMMISSIONING GROUP,Consultants Fees,60120953,GALLIFORD TRY,"348,320.85",24/01/2019
COMMISSIONING,COMMISSIONING GROUP,Equipment and Materials Purcha,60118701,CONWAY AECOM LTD,"61,567.98",03/01/2019
COMMISSIONING,COMMISSIONING GROUP,Capital Construction and Works,60122223,CONWAY AECOM LTD,"5,192.40",29/01/2019
COMMISSIONING,COMMISSIONING GROUP,Equipment and Materials Purcha,60122219,CONWAY AECOM LTD,"3,244.15",29/01/2019
COMMISSIONING,COMMISSIONING GROUP,Ttl IT & Comms,60121596,MISL LTD,"1,195.36",21/01/2019
COMMISSIONING,COMMISSIONING GROUP,Ttl IT & Comms,80022077,FRANK RECRUITMENT GROUP,"11,550.00",03/01/2019
COMMISSIONING,COMMISSIONING GROUP,Building Repairs & Maintenance,60121746,RM COUNTRYSIDE SERVICES LTD,"4,345.00",24/01/2019
COMMISSIONING,COMMISSIONING GROUP,Furniture-Purchase-Repair,60121871,BARNET LOCK CENTRE LTD.,"1,748.44",24/01/2019
COMMISSIONING,COMMISSIONING GROUP,Building Repairs & Maintenance,60119918,JOHN TAYLOR & GREEN LTD,"1,265.00",10/01/2019
COMMISSIONING,COMMISSIONING GROUP,Building Repairs & Maintenance,60120491,JOHN TAYLOR & GREEN LTD,"28,986.43",04/01/2019
COMMISSIONING,COMMISSIONING GROUP,Building Repairs & Maintenance,60120496,JOHN TAYLOR & GREEN LTD,"19,864.76",04/01/2019
COMMISSIONING,COMMISSIONING GROUP,Equipment and Materials Purcha,60120022,JOHN GRAHAM CONSTRUCTION LTD,"493,117.57",03/01/2019
COMMISSIONING,COMMISSIONING GROUP,Equipment and Materials Purcha,60122152,JOHN GRAHAM CONSTRUCTION LTD,"1,103,687.26",31/01/2019
COMMISSIONING,COMMISSIONING GROUP,Capital Construction and Works,60120603,BARNET LOCK CENTRE LTD.,107.43,08/01/2019
COMMISSIONING,COMMISSIONING GROUP,Other Services,60120048,CONWAY AECOM LTD,82.65,03/01/2019
COMMISSIONING,COMMISSIONING GROUP,Other Services,60120057,CONWAY AECOM LTD,33.61,03/01/2019
COMMISSIONING,COMMISSIONING GROUP,Other Services,60120104,CONWAY AECOM LTD,244.23,03/01/2019
COMMISSIONING,COMMISSIONING GROUP,Other Services,60120114,CONWAY AECOM LTD,161.58,03/01/2019
COMMISSIONING,COMMISSIONING GROUP,Other Services,60120120,CONWAY AECOM LTD,161.58,03/01/2019
COMMISSIONING,COMMISSIONING GROUP,Other Services,60120127,CONWAY AECOM LTD,161.58,03/01/2019
COMMISSIONING,COMMISSIONING GROUP,Other Services,60120130,CONWAY AECOM LTD,161.58,03/01/2019
COMMISSIONING,COMMISSIONING GROUP,Other Services,60119506,ALL MEDIA WORKS LTD,"1,389.50",03/01/2019
COMMISSIONING,COMMISSIONING GROUP,Other Services,60119197,S.A.M.E. ACADEMY,450.00,21/01/2019
COMMISSIONING,COMMISSIONING GROUP,Capital Construction and Works,60122338,CONWAY AECOM LTD,"32,070.42",29/01/2019
COMMISSIONING,COMMISSIONING GROUP,Equipment and Materials Purcha,60121877,JOHN GRAHAM CONSTRUCTION LTD,"1,346,637.47",29/01/2019
COMMISSIONING,COMMISSIONING GROUP,Equipment and Materials Purcha,10014924,AKS WARD LTD,625.00,14/01/2019
COMMISSIONING,COMMISSIONING GROUP,Equipment and Materials Purcha,60120141,AKS WARD LTD,625.00,11/01/2019
COMMISSIONING,COMMISSIONING GROUP,Other Services,60122421,CONWAY AECOM LTD,30.50,31/01/2019
COMMISSIONING,COMMISSIONING GROUP,Other Services,60122445,CONWAY AECOM LTD,54.90,31/01/2019
COMMISSIONING,COMMISSIONING GROUP,Other Services,60122492,CONWAY AECOM LTD,81.25,31/01/2019
COMMISSIONING,COMMISSIONING GROUP,Capital Construction and Works,60122292,CONWAY AECOM LTD,438.73,29/01/2019
COMMISSIONING,COMMISSIONING GROUP,Capital Construction and Works,60119617,SUN HILL SURVEYS,900.00,03/01/2019
COMMISSIONING,COMMISSIONING GROUP,Other Services,60122438,CONWAY AECOM LTD,97.60,31/01/2019
COMMISSIONING,COMMISSIONING GROUP,Other Services,60122469,CONWAY AECOM LTD,62.23,31/01/2019
COMMISSIONING,COMMISSIONING GROUP,Other Services,10014930,TRAFFIC SURVEY PARTNERS (TSP) LTD,270.00,14/01/2019
Corporate Accounting,Corporate Accounting,Other Establishments - Third P,20042116,CLAREMONT PRIMARY SCHOOL ACADEMY,"5,145.30",14/01/2019
Corporate Accounting,Corporate Accounting,Other Establishments - Third P,20042164,CLAREMONT PRIMARY SCHOOL ACADEMY,"6,160.00",14/01/2019
Corporate Accounting,Corporate Accounting,Other Establishments - Third P,20042167,COPTHALL SCHOOL (ACADEMY),"17,600.00",14/01/2019
Corporate Accounting,Corporate Accounting,Other Establishments - Third P,20042137,PARKFIELD ACADEMY,"1,041.30",14/01/2019
Corporate Accounting,Corporate Accounting,Other Establishments - Third P,20042165,PARKFIELD ACADEMY,"29,392.00",14/01/2019
Corporate Accounting,Corporate Accounting,Other Establishments - Third P,20042138,QUEEN ELIZABETH'S GIRLS ACADEMY,830.00,14/01/2019
Corporate Accounting,Corporate Accounting,Other Establishments - Third P,20042166,SUMMERSIDE PRIMARY ACADEMY,"5,420.80",14/01/2019
Corporate Accounting,Corporate Accounting,Other Establishments - Third P,20042136,THE HYDE EF ACADEMY,191.00,14/01/2019
Corporate Accounting,Corporate Accounting,Other Establishments - Third P,20042082,CLAREMONT PRIMARY SCHOOL ACADEMY,"5,675.85",14/01/2019
Corporate Accounting,Corporate Accounting,Other Establishments - Third P,20042110,COPTHALL SCHOOL (ACADEMY),"3,632.85",14/01/2019
Corporate Accounting,Corporate Accounting,Other Establishments - Third P,20042109,PARKFIELD ACADEMY,"4,152.78",14/01/2019
Corporate Accounting,Corporate Accounting,Other Establishments - Third P,20042108,THE HYDE EF ACADEMY,382.00,14/01/2019
Corporate Accounting,Corporate Accounting,Miscellaneous Expenses,80022091,REDACTED - PERSONAL DATA,70.00,07/01/2019
Corporate Accounting,Corporate Accounting,Other Transfer Payments to Soc,80023064,WIRECARD (FS ONGOING 2040881670310,"3,845.36",31/01/2019
Corporate Accounting,Corporate Accounting,Grant Payments,80022309,LIVING WAY MINISTRIES,"2,400.00",11/01/2019
Corporate Accounting,Corporate Accounting,Grant Payments,80021987,NRCSE,"2,498.00",09/01/2019
Corporate Accounting,Corporate Accounting,Grant Payments,80023038,FRIENDS OF WINDSOR OPEN SPACE,"3,605.00",31/01/2019
Corporate Accounting,Corporate Accounting,Other Local Authorities - Thir,1000513750,GREATER LONDON AUTHORITY,"49,678.00",24/01/2019
Corporate Accounting,Corporate Accounting,Other Local Authorities - Thir,1000518840,GREATER LONDON AUTHORITY,"4,363,157.80",28/01/2019
Corporate Accounting,Corporate Accounting,Other Local Authorities - Thir,1000516660,GREATER LONDON AUTHORITY,"236,146.00",24/01/2019
COST CENTRES BLOCKED,COST CENTRES BLOCKED,Professional Services,60120243,RM COUNTRYSIDE SERVICES LTD,"1,404.00",03/01/2019
Delivery Units,Adults and Communities,Other Services,20041898,WILLOW HOUSING & CARE LTD.,711.38,03/01/2019
Delivery Units,Adults and Communities,Other Services,20042077,WILLOW HOUSING & CARE LTD.,711.38,15/01/2019
Delivery Units,Adults and Communities,Voluntary Associations - Third,20041883,BARNET MENCAP,"11,142.65",03/01/2019
Delivery Units,Adults and Communities,Voluntary Associations - Third,20042062,BARNET MENCAP,"11,142.65",15/01/2019
Delivery Units,Adults and Communities,Voluntary Associations - Third,20041886,ELEANOR PALMER TRUST NO 2 A/C.,486.50,03/01/2019
Delivery Units,Adults and Communities,Voluntary Associations - Third,20042065,ELEANOR PALMER TRUST NO 2 A/C.,486.50,15/01/2019
Delivery Units,Adults and Communities,Voluntary Associations - Third,20041895,SANCTUARY HOUSING ASSOCIATION,"5,860.57",03/01/2019
Delivery Units,Adults and Communities,Voluntary Associations - Third,20041896,SANCTUARY HOUSING ASSOCIATION,407.80,03/01/2019
Delivery Units,Adults and Communities,Voluntary Associations - Third,20042074,SANCTUARY HOUSING ASSOCIATION,"6,086.16",15/01/2019
Delivery Units,Adults and Communities,Voluntary Associations - Third,20042075,SANCTUARY HOUSING ASSOCIATION,407.80,15/01/2019
Delivery Units,Adults and Communities,Voluntary Associations - Third,20041882,ASRA GREATER LONDON HOUSING ASSOC,379.30,03/01/2019
Delivery Units,Adults and Communities,Voluntary Associations - Third,20042061,ASRA GREATER LONDON HOUSING ASSOC,379.30,15/01/2019
Delivery Units,Adults and Communities,Voluntary Associations - Third,20041885,CHRISTIAN ACTION (ENFIELD),365.80,03/01/2019
Delivery Units,Adults and Communities,Voluntary Associations - Third,20042064,CHRISTIAN ACTION (ENFIELD),365.80,15/01/2019
Delivery Units,Adults and Communities,Voluntary Associations - Third,20041887,HABINTEG HOUSING ASSOCIATION,446.37,03/01/2019
Delivery Units,Adults and Communities,Voluntary Associations - Third,20042066,HABINTEG HOUSING ASSOCIATION,446.37,15/01/2019
Delivery Units,Adults and Communities,Voluntary Associations - Third,20041888,JEWISH COMMUNITY HOUSING ASSOCIATIO,568.17,03/01/2019
Delivery Units,Adults and Communities,Voluntary Associations - Third,20042067,JEWISH COMMUNITY HOUSING ASSOCIATIO,568.17,15/01/2019
Delivery Units,Adults and Communities,Voluntary Associations - Third,20041894,LINEN & WOOLLEN DRAPERS COTTAGE,730.11,03/01/2019
Delivery Units,Adults and Communities,Voluntary Associations - Third,20042073,LINEN & WOOLLEN DRAPERS COTTAGE,730.11,15/01/2019
Delivery Units,Adults and Communities,Voluntary Associations - Third,20041890,METROPOLITAN SUPPORT TRUST,502.00,03/01/2019
Delivery Units,Adults and Communities,Voluntary Associations - Third,20041891,METROPOLITAN SUPPORT TRUST,"5,933.40",03/01/2019
Delivery Units,Adults and Communities,Voluntary Associations - Third,20042069,METROPOLITAN SUPPORT TRUST,502.00,15/01/2019
Delivery Units,Adults and Communities,Voluntary Associations - Third,20042070,METROPOLITAN SUPPORT TRUST,"6,530.80",15/01/2019
Delivery Units,Adults and Communities,Voluntary Associations - Third,20041892,ORCHARD HOUSING ASSOCIATION,196.62,04/01/2019
Delivery Units,Adults and Communities,Voluntary Associations - Third,20042071,ORCHARD HOUSING ASSOCIATION,196.62,11/01/2019
Delivery Units,Adults and Communities,Voluntary Associations - Third,20041897,SCOTSCARE,361.52,03/01/2019
Delivery Units,Adults and Communities,Voluntary Associations - Third,20042076,SCOTSCARE,361.52,15/01/2019
Delivery Units,Adults and Communities,Voluntary Associations - Third,20041893,ST PANCRAS & HUMANIST H.A.,661.55,03/01/2019
Delivery Units,Adults and Communities,Voluntary Associations - Third,20042072,ST PANCRAS & HUMANIST H.A.,661.55,15/01/2019
Delivery Units,Adults and Communities,Professional Services,60119722,BARNET CITIZENS ADVICE BUREAU,"85,788.50",15/01/2019
Delivery Units,Adults and Communities,Voluntary Associations - Third,20041881,AGE CONCERN,"58,333.00",03/01/2019
Delivery Units,Adults and Communities,Voluntary Associations - Third,20042060,AGE CONCERN,"58,333.00",15/01/2019
Delivery Units,Adults and Communities,Voluntary Associations - Third,20041884,BARNET MENCAP,"28,583.00",03/01/2019
Delivery Units,Adults and Communities,Voluntary Associations - Third,20042063,BARNET MENCAP,"28,583.00",15/01/2019
Delivery Units,Adults and Communities,Voluntary Associations - Third,20041889,MIDDLESEX ASSOCIATION  FOR THE BLIN,"2,394.00",03/01/2019
Delivery Units,Adults and Communities,Voluntary Associations - Third,20042068,MIDDLESEX ASSOCIATION  FOR THE BLIN,"2,394.00",15/01/2019
Delivery Units,Adults and Communities,Other Transfer Payments to Soc,60110884,ALZHEIMER'S SOCIETY (BARNET),"24,562.17",03/01/2019
Delivery Units,Adults and Communities,Other Transfer Payments to Soc,60120071,ALZHEIMER'S SOCIETY (BARNET),"24,562.17",21/01/2019
Delivery Units,Adults and Communities,Other Transfer Payments to Soc,60120084,ALZHEIMER'S SOCIETY (BARNET),"24,562.17",21/01/2019
Delivery Units,Adults and Communities,Other Transfer Payments to Soc,60120087,ALZHEIMER'S SOCIETY (BARNET),"24,562.17",21/01/2019
Delivery Units,Adults and Communities,Other Transfer Payments to Soc,60120109,ALZHEIMER'S SOCIETY (BARNET),"24,562.17",21/01/2019
Delivery Units,Adults and Communities,Other Transfer Payments to Soc,60120134,ALZHEIMER'S SOCIETY (BARNET),"24,562.17",21/01/2019
Delivery Units,Adults and Communities,Other Transfer Payments to Soc,60119630,BARNET CITIZENS ADVICE BUREAU,"73,387.50",15/01/2019
Delivery Units,Adults and Communities,Pool Transport Charges,60109488,MOTT MACDONALD LTD/CAMBRIDGE EDUCATION,69.50,29/01/2019
Delivery Units,Adults and Communities,Pool Transport Charges,60116199,MOTT MACDONALD LTD/CAMBRIDGE EDUCATION,-10.00,29/01/2019
Delivery Units,Adults and Communities,Pool Transport Charges,60120358,MOTT MACDONALD LTD/CAMBRIDGE EDUCATION,90.00,22/01/2019
Delivery Units,Adults and Communities,Pool Transport Charges,10014961,EMERGENCY MEDICAL SERVICES (GB) LTD,548.00,22/01/2019
Delivery Units,Adults and Communities,Translation Exp / Interpret,60119232,D.A. LANGUAGES LTD,120.00,03/01/2019
Delivery Units,Adults and Communities,Translation Exp / Interpret,60120475,D.A. LANGUAGES LTD,150.50,04/01/2019
Delivery Units,Adults and Communities,Other Services,60120384,MOTT MACDONALD LTD/CAMBRIDGE EDUCATION,280.00,22/01/2019
Delivery Units,Adults and Communities,Other Transfer Payments to Soc,60120283,MOTT MACDONALD LTD/CAMBRIDGE EDUCATION,70.00,22/01/2019
Delivery Units,Adults and Communities,Travelling Expenses,60120227,M1 EXPRESS CAR SERVICES,30.00,03/01/2019
Delivery Units,Adults and Communities,Travelling Expenses,60121069,M1 EXPRESS CAR SERVICES,90.00,16/01/2019
Delivery Units,Adults and Communities,Travelling Expenses,60121125,M1 EXPRESS CAR SERVICES,30.00,15/01/2019
Delivery Units,Adults and Communities,Other Services,60119184,D.A. LANGUAGES LTD,109.04,03/01/2019
Delivery Units,Adults and Communities,Other Transfer Payments to Soc,10014865,PRT BARNET CARERS CENTRE,"97,268.15",03/01/2019
Delivery Units,Adults and Communities,Other Services,60120567,ARTS DEPOT PRODUCTIONS LTD,75.00,04/01/2019
Delivery Units,Adults and Communities,Translation Exp / Interpret,60119174,D.A. LANGUAGES LTD,273.50,03/01/2019
Delivery Units,Adults and Communities,Other Transfer Payments to Soc,60120273,MOTT MACDONALD LTD/CAMBRIDGE EDUCATION,17.40,04/01/2019
Delivery Units,Adults and Communities,Other Transfer Payments to Soc,60120365,MOTT MACDONALD LTD/CAMBRIDGE EDUCATION,55.00,04/01/2019
Delivery Units,Adults and Communities,Other Transfer Payments to Soc,60121747,MOTT MACDONALD LTD/CAMBRIDGE EDUCATION,40.00,22/01/2019
Delivery Units,Adults and Communities,Other Transfer Payments to Soc,60122444,MOTT MACDONALD LTD/CAMBRIDGE EDUCATION,5.00,31/01/2019
Delivery Units,Adults and Communities,Other Services,80023034,REDACTED - PERSONAL DATA,3.99,30/01/2019
Delivery Units,Adults and Communities,Postage,60119438,ROYAL MAIL GROUP LIMITED,54.00,11/01/2019
Delivery Units,Adults and Communities,Training,60118684,ADJUSTING THE BALANCE,600.00,14/01/2019
Delivery Units,Adults and Communities,Training,60119961,ADJUSTING THE BALANCE,"1,200.00",11/01/2019
Delivery Units,Adults and Communities,Training,60121296,EDGE TRAINING,875.00,25/01/2019
Delivery Units,Adults and Communities,Training,10014863,NEW LEVEL RESULTS LTD,"11,400.00",03/01/2019
Delivery Units,Adults and Communities,Training,60119583,SIGNIS GROUP,650.00,10/01/2019
Delivery Units,Adults and Communities,Translation Exp / Interpret,10014874,PHOTOSYMBOLS,"1,200.00",07/01/2019
Delivery Units,Adults and Communities,Subscriptions,10014869,IESE LTD,"7,500.00",03/01/2019
Delivery Units,Adults and Communities,Non Education Staff GPay,60119591,BARNET ENFIELD & HARINGEY MENTAL,"58,850.08",14/01/2019
Delivery Units,Adults and Communities,Non Education Staff GPay,60119612,BARNET ENFIELD & HARINGEY MENTAL,"58,850.08",14/01/2019
Delivery Units,Adults and Communities,Non Education Staff GPay,60119621,BARNET ENFIELD & HARINGEY MENTAL,"58,850.08",14/01/2019
Delivery Units,Adults and Communities,Non Education Staff GPay,60119652,BARNET ENFIELD & HARINGEY MENTAL,"-92,600.00",14/01/2019
Delivery Units,Adults and Communities,Non Education Staff GPay,60119668,BARNET ENFIELD & HARINGEY MENTAL,"58,850.08",14/01/2019
Delivery Units,Adults and Communities,Non Education Staff GPay,60119672,BARNET ENFIELD & HARINGEY MENTAL,"58,850.08",14/01/2019
Delivery Units,Adults and Communities,Non Education Staff GPay,60119679,BARNET ENFIELD & HARINGEY MENTAL,"58,850.08",14/01/2019
Delivery Units,Adults and Communities,Non Education Staff GPay,60119693,BARNET ENFIELD & HARINGEY MENTAL,"58,850.08",14/01/2019
Delivery Units,Adults and Communities,Non Education Staff GPay,60119820,BARNET ENFIELD & HARINGEY MENTAL,"66,526.08",14/01/2019
Delivery Units,Adults and Communities,Non Education Staff GPay,60119824,BARNET ENFIELD & HARINGEY MENTAL,"51,174.00",14/01/2019
Delivery Units,Adults and Communities,Non Education Staff GPay,60119836,BARNET ENFIELD & HARINGEY MENTAL,"58,850.08",14/01/2019
Delivery Units,Adults and Communities,Equipment and Materials Purcha,60121256,MILLBROOK HEALTHCARE LTD,"179,918.61",22/01/2019
Delivery Units,Adults and Communities,Equipment and Materials Purcha,60121278,MILLBROOK HEALTHCARE LTD,"253,068.21",22/01/2019
Delivery Units,Adults and Communities,Equipment and Materials Purcha,60121378,MILLBROOK HEALTHCARE LTD,"36,732.78",22/01/2019
Delivery Units,Adults and Communities,Equipment and Materials Purcha,60121432,MILLBROOK HEALTHCARE LTD,"37,507.78",22/01/2019
Delivery Units,Adults and Communities,Professional Services,60121894,MOTT MACDONALD LTD/CAMBRIDGE EDUCATION,130.00,24/01/2019
Delivery Units,Adults and Communities,Transport SEN Recharge,60121764,MOTT MACDONALD LTD/CAMBRIDGE EDUCATION,65.00,22/01/2019
Delivery Units,Adults and Communities,Gas,60117697,KENT COUNTY COUNCIL (KCS),112.72,03/01/2019
Delivery Units,Adults and Communities,Gas,60120004,KENT COUNTY COUNCIL (KCS),246.49,03/01/2019
Delivery Units,Adults and Communities,Electricity,60115622,KENT COUNTY COUNCIL (KCS),157.38,08/01/2019
Delivery Units,Adults and Communities,Water Services,60120033,CASTLE WATER LTD,13.93,03/01/2019
Delivery Units,Adults and Communities,Cleaning and domestic material,60119097,CHURCHILL CONTRACT SERVICES,391.37,24/01/2019
Delivery Units,Adults and Communities,Cleaning and domestic material,60120809,CHURCHILL CONTRACT SERVICES,491.15,30/01/2019
Delivery Units,Adults and Communities,Cleaning and domestic material,60121311,CHURCHILL CONTRACT SERVICES,508.78,30/01/2019
Delivery Units,Adults and Communities,Rubbish Collection,60120016,G.B.HOLDINGS LTD,22.40,03/01/2019
Delivery Units,Adults and Communities,Food Costs,60119272,MULLER MILK & INGREDIENTS,1.52,04/01/2019
Delivery Units,Adults and Communities,Food Costs,60119428,MULLER MILK & INGREDIENTS,0.88,04/01/2019
Delivery Units,Adults and Communities,Food Costs,60119979,MULLER MILK & INGREDIENTS,0.88,04/01/2019
Delivery Units,Adults and Communities,Food Costs,60120043,MULLER MILK & INGREDIENTS,0.88,04/01/2019
Delivery Units,Adults and Communities,Stationery,60119511,XEROX FINANCE LTD,0.57,30/01/2019
Delivery Units,Adults and Communities,CSG Services Contract Payment,60119405,XEROX FINANCE LTD,1.14,30/01/2019
Delivery Units,Adults and Communities,CSG Services Contract Payment,60119416,XEROX FINANCE LTD,0.45,30/01/2019
Delivery Units,Adults and Communities,CSG Services Contract Payment,60119927,XEROX FINANCE LTD,5.00,30/01/2019
Delivery Units,Adults and Communities,Translation Exp / Interpret,60112876,D.A. LANGUAGES LTD,268.25,24/01/2019
Delivery Units,Adults and Communities,Other Establishments - Third P,60119523,HERTFORDSHIRE PARTNERSHIP,"111,724.50",03/01/2019
Delivery Units,Adults and Communities,Stationery,60120738,PARK RETAIL LTD,994.00,22/01/2019
Delivery Units,Adults and Communities,Translation Exp / Interpret,60119177,D.A. LANGUAGES LTD,27.04,03/01/2019
Delivery Units,Adults and Communities,Translation Exp / Interpret,60119249,D.A. LANGUAGES LTD,47.25,03/01/2019
Delivery Units,Adults and Communities,Other Contributions,80022332,J.A.STEEL & SON LTD,"1,225.00",15/01/2019
Delivery Units,Adults and Communities,Other Services,10014864,COMMUNITY BARNET,"10,666.67",03/01/2019
Delivery Units,Adults and Communities,Other Services,60120391,COMMUNITY BARNET,"10,666.67",03/01/2019
Delivery Units,Adults and Communities,Other Services,80021695,CARE MONITORING 2000 LTD,"5,484.64",07/01/2019
Delivery Units,Adults and Communities,Software Licences & Support,80022178,CARE MONITORING 2000 LTD,"16,370.70",04/01/2019
Delivery Units,Adults and Communities,Other Transfer Payments to Soc,80022208,REDACTED - PERSONAL DATA,200.00,09/01/2019
Delivery Units,Adults and Communities,Other Transfer Payments to Soc,80023052,REDACTED - PERSONAL DATA,200.00,31/01/2019
Delivery Units,Adults and Communities,Other Transfer Payments to Soc,80023053,REDACTED - PERSONAL DATA,400.00,31/01/2019
Delivery Units,Adults and Communities,Equipment and Materials Purcha,60119373,HANDS FREE COMPUTING LTD,516.00,03/01/2019
Delivery Units,Adults and Communities,Equipment and Materials Purcha,60119384,HANDS FREE COMPUTING LTD,516.00,03/01/2019
Delivery Units,Adults and Communities,Other Transfer Payments to Soc,80023027,VOICEABILITY,280.00,30/01/2019
Delivery Units,Adults and Communities,Other Transfer Payments to Soc,80023029,VOICEABILITY,175.00,30/01/2019
Delivery Units,Adults and Communities,Other Transfer Payments to Soc,80023030,VOICEABILITY,770.00,30/01/2019
Delivery Units,Adults and Communities,Other Transfer Payments to Soc,80022154,IMC ASSESSORS LTD ,261.92,07/01/2019
Delivery Units,Adults and Communities,Other Transfer Payments to Soc,80022156,SWAN ADVOCACY,143.50,07/01/2019
Delivery Units,Adults and Communities,Other Transfer Payments to Soc,80022227,HENDERSON AMANDA LIMITED,350.00,10/01/2019
Delivery Units,Adults and Communities,Other Transfer Payments to Soc,80023021,SHIRAZ AKOO LTD,184.50,30/01/2019
Delivery Units,Adults and Communities,Other Transfer Payments to Soc,80022048,REDACTED - PERSONAL DATA,186.24,07/01/2019
Delivery Units,Adults and Communities,Other Transfer Payments to Soc,80022153,REDACTED - PERSONAL DATA,372.48,07/01/2019
Delivery Units,Adults and Communities,Other Transfer Payments to Soc,80022223,REDACTED - PERSONAL DATA,175.00,10/01/2019
Delivery Units,Adults and Communities,Other Transfer Payments to Soc,80022435,REDACTED - PERSONAL DATA,183.77,21/01/2019
Delivery Units,Adults and Communities,Other Transfer Payments to Soc,80022955,REDACTED - PERSONAL DATA,555.00,30/01/2019
Delivery Units,Adults and Communities,Other Services,60120409,MOTT MACDONALD LTD/CAMBRIDGE EDUCATION,22.00,04/01/2019
Delivery Units,Adults and Communities,Other Services,60120495,MOTT MACDONALD LTD/CAMBRIDGE EDUCATION,32.00,04/01/2019
Delivery Units,Adults and Communities,Other Services,80022298,RAINBOW CENTRE,245.00,10/01/2019
Delivery Units,Adults and Communities,Other Services,80022294,REDACTED - PERSONAL DATA,"1,200.00",10/01/2019
Delivery Units,Adults and Communities,Other Services,80022296,REDACTED - PERSONAL DATA,"2,400.00",10/01/2019
Delivery Units,Adults and Communities,Translation Exp / Interpret,60120707,D.A. LANGUAGES LTD,22.00,31/01/2019
Delivery Units,Adults and Communities,Other Services,10014884,KMCA CONSULTANCY SERVICES LTD,"2,149.60",08/01/2019
Delivery Units,Adults and Communities,Other Services,10014945,KMCA CONSULTANCY SERVICES LTD,"3,105.60",17/01/2019
Delivery Units,Adults and Communities,Other Services,80021824,THOMPSONS SOLICITORS,291.67,11/01/2019
Delivery Units,Adults and Communities,Other Transfer Payments to Soc,60118814,AISA MEDICAL LTD,177.93,03/01/2019
Delivery Units,Adults and Communities,Other Transfer Payments to Soc,60118818,AISA MEDICAL LTD,175.60,03/01/2019
Delivery Units,Adults and Communities,Other Transfer Payments to Soc,60118845,AISA MEDICAL LTD,173.37,03/01/2019
Delivery Units,Adults and Communities,Other Transfer Payments to Soc,60118857,AISA MEDICAL LTD,173.90,03/01/2019
Delivery Units,Adults and Communities,Other Transfer Payments to Soc,60119047,AISA MEDICAL LTD,177.93,03/01/2019
Delivery Units,Adults and Communities,Other Transfer Payments to Soc,60119060,AISA MEDICAL LTD,178.88,03/01/2019
Delivery Units,Adults and Communities,Other Transfer Payments to Soc,60119065,AISA MEDICAL LTD,178.62,03/01/2019
Delivery Units,Adults and Communities,Other Transfer Payments to Soc,60119069,AISA MEDICAL LTD,173.37,03/01/2019
Delivery Units,Adults and Communities,Other Transfer Payments to Soc,60120505,AISA MEDICAL LTD,350.34,03/01/2019
Delivery Units,Adults and Communities,Other Transfer Payments to Soc,60120510,AISA MEDICAL LTD,350.93,03/01/2019
Delivery Units,Adults and Communities,Other Transfer Payments to Soc,60120511,AISA MEDICAL LTD,354.36,03/01/2019
Delivery Units,Adults and Communities,Other Transfer Payments to Soc,60120513,AISA MEDICAL LTD,346.74,03/01/2019
Delivery Units,Adults and Communities,Other Transfer Payments to Soc,60120514,AISA MEDICAL LTD,173.37,03/01/2019
Delivery Units,Adults and Communities,Other Transfer Payments to Soc,60120515,AISA MEDICAL LTD,357.71,03/01/2019
Delivery Units,Adults and Communities,Other Transfer Payments to Soc,60121511,EDUHEZ LTD,"3,430.00",17/01/2019
Delivery Units,Adults and Communities,Other Transfer Payments to Soc,60121711,EDUHEZ LTD,"2,275.00",29/01/2019
Delivery Units,Adults and Communities,Other Transfer Payments to Soc,60118388,KORU MEDICAL LTD,"1,374.68",03/01/2019
Delivery Units,Adults and Communities,Other Transfer Payments to Soc,10014944,PEACEABLE HABITATION LTD,"1,151.52",17/01/2019
Delivery Units,Adults and Communities,Other Transfer Payments to Soc,10014885,ACTION FIRST RECRUITMENT,"6,655.00",09/01/2019
Delivery Units,Adults and Communities,Other Transfer Payments to Soc,10014523,HCL SOCIAL CARE LTD,"1,750.00",03/01/2019
Delivery Units,Adults and Communities,Other Agencies - Third Party P,90137084,ASHTON LODGE CARE CENTRE,"2,896.73",18/01/2019
Delivery Units,Adults and Communities,Other Agencies - Third Party P,90136424,ASPEN VILLAGES LTD,"4,871.43",15/01/2019
Delivery Units,Adults and Communities,Other Agencies - Third Party P,90136428,ASPEN VILLAGES LTD,"4,871.43",15/01/2019
Delivery Units,Adults and Communities,Other Agencies - Third Party P,90135816,BARCHESTER HEALTHCARE (CHEVERTON LODGE),"6,399.06",14/01/2019
Delivery Units,Adults and Communities,Other Agencies - Third Party P,90138207,BARCHESTER HEALTHCARE (THISTLE HILL CARE,"5,863.43",24/01/2019
Delivery Units,Adults and Communities,Other Agencies - Third Party P,90135800,BIRCHWOOD GRANGE CARE HOME,"3,293.75",14/01/2019
Delivery Units,Adults and Communities,Other Agencies - Third Party P,90136845,CARLTON COURT (TLC GROUP),"3,720.93",16/01/2019
Delivery Units,Adults and Communities,Other Agencies - Third Party P,90137660,FOUR SEASONS HEALTH CARE,"2,550.72",18/01/2019
Delivery Units,Adults and Communities,Other Agencies - Third Party P,90137705,FOUR SEASONS HEALTH CARE,"2,550.72",18/01/2019
Delivery Units,Adults and Communities,Other Agencies - Third Party P,90135641,JEWISH CARE,"2,356.88",11/01/2019
Delivery Units,Adults and Communities,Other Agencies - Third Party P,90135668,JEWISH CARE,"2,357.36",11/01/2019
Delivery Units,Adults and Communities,Other Agencies - Third Party P,90135137,LIVABILITY,"4,891.20",09/01/2019
Delivery Units,Adults and Communities,Other Agencies - Third Party P,90135851,P J CARE LTD,"5,127.21",14/01/2019
Delivery Units,Adults and Communities,Other Agencies - Third Party P,90135989,WESTMINSTER HEALTH CARE LTD,"4,495.93",14/01/2019
Delivery Units,Adults and Communities,Other Agencies - Third Party P,90135990,WESTMINSTER HEALTH CARE LTD,"4,864.08",14/01/2019
Delivery Units,Adults and Communities,Other Agencies - Third Party P,90135991,WESTMINSTER HEALTH CARE LTD,"5,087.68",14/01/2019
Delivery Units,Adults and Communities,Other Agencies - Third Party P,90138938,WESTMINSTER HEALTH CARE LTD,"2,399.58",30/01/2019
Delivery Units,Adults and Communities,Other Agencies - Third Party P,90135843,WILSMERE HOUSE CARE CENTRE,"6,421.43",14/01/2019
Delivery Units,Adults and Communities,Other Agencies - Third Party P,90135845,WILSMERE HOUSE CARE CENTRE,"4,979.35",14/01/2019
Delivery Units,Adults and Communities,Other Agencies - Third Party P,90135846,WILSMERE HOUSE CARE CENTRE,"5,535.71",14/01/2019
Delivery Units,Adults and Communities,Other Agencies - Third Party P,90138741,GLEBE CARE LTD,"1,170.00",30/01/2019
Delivery Units,Adults and Communities,Other Agencies - Third Party P,90138742,GLEBE CARE LTD,"15,377.15",30/01/2019
Delivery Units,Adults and Communities,Other Agencies - Third Party P,90135803,ACTION ON HEARING LOSS,"5,442.94",14/01/2019
Delivery Units,Adults and Communities,Other Agencies - Third Party P,90136879,BLACK SWAN INTERNATIONAL LTD,"4,601.33",24/01/2019
Delivery Units,Adults and Communities,Other Agencies - Third Party P,90135471,BUPA CARE HOMES,"3,544.98",15/01/2019
Delivery Units,Adults and Communities,Other Agencies - Third Party P,90135472,BUPA CARE HOMES,"4,098.51",15/01/2019
Delivery Units,Adults and Communities,Other Agencies - Third Party P,90136891,FREMANTLE TRUST,"2,096.00",16/01/2019
Delivery Units,Adults and Communities,Other Agencies - Third Party P,90136856,FRIERN RESIDENTIAL CARE HOME,"3,542.86",16/01/2019
Delivery Units,Adults and Communities,Other Agencies - Third Party P,90135674,JEWISH CARE,"4,361.96",11/01/2019
Delivery Units,Adults and Communities,Other Agencies - Third Party P,90135675,JEWISH CARE,"4,223.24",11/01/2019
Delivery Units,Adults and Communities,Other Agencies - Third Party P,90135700,JEWISH CARE,"3,869.16",11/01/2019
Delivery Units,Adults and Communities,Other Agencies - Third Party P,90135702,JEWISH CARE,"4,032.08",11/01/2019
Delivery Units,Adults and Communities,Other Agencies - Third Party P,90135739,JEWISH CARE,"4,303.56",11/01/2019
Delivery Units,Adults and Communities,Other Agencies - Third Party P,90129819,L'ARCHE,"1,472.97",03/01/2019
Delivery Units,Adults and Communities,Other Agencies - Third Party P,90130081,L'ARCHE,"1,472.97",07/01/2019
Delivery Units,Adults and Communities,Other Agencies - Third Party P,90131306,L'ARCHE,"1,472.97",14/01/2019
Delivery Units,Adults and Communities,Other Agencies - Third Party P,90133152,L'ARCHE,"1,472.97",17/01/2019
Delivery Units,Adults and Communities,Other Agencies - Third Party P,90138756,L'ARCHE,"1,472.97",30/01/2019
Delivery Units,Adults and Communities,Other Agencies - Third Party P,90135138,LIVABILITY,"6,279.24",09/01/2019
Delivery Units,Adults and Communities,Other Agencies - Third Party P,90135139,LIVABILITY,"3,424.00",09/01/2019
Delivery Units,Adults and Communities,Other Agencies - Third Party P,90136692,PLATINUM HEALTH RESOURCES LTD,"4,295.36",16/01/2019
Delivery Units,Adults and Communities,Other Agencies - Third Party P,90136881,RAPKYNS CARE CENTRE,"6,642.86",16/01/2019
Delivery Units,Adults and Communities,Other Agencies - Third Party P,90136882,RAPKYNS CARE CENTRE,"6,394.86",16/01/2019
Delivery Units,Adults and Communities,Other Agencies - Third Party P,90138487,ROSEACRES CARE HOME LIMITED,"2,550.86",25/01/2019
Delivery Units,Adults and Communities,Other Agencies - Third Party P,90138492,ROSEACRES CARE HOME LIMITED,"3,100.00",25/01/2019
Delivery Units,Adults and Communities,Other Agencies - Third Party P,90135853,THE NATIONAL SOCIETY FOR EPILEPSY,"4,789.85",30/01/2019
Delivery Units,Adults and Communities,Other Agencies - Third Party P,90135164,ELM PARK LODGE,"4,278.04",09/01/2019
Delivery Units,Adults and Communities,Other Agencies - Third Party P,90135491,ELM PARK LODGE,"4,420.64",09/01/2019
Delivery Units,Adults and Communities,Other Agencies - Third Party P,90138730,ELM PARK LODGE,"4,420.64",31/01/2019
Delivery Units,Adults and Communities,Other Agencies - Third Party P,90133151,QUEEN ANN CARE,"3,985.71",03/01/2019
Delivery Units,Adults and Communities,Other Agencies - Third Party P,90136471,QUEEN ANN CARE,"3,857.14",15/01/2019
Delivery Units,Adults and Communities,Other Agencies - Third Party P,90136472,QUEEN ANN CARE,"3,985.71",15/01/2019
Delivery Units,Adults and Communities,Other Agencies - Third Party P,90133088,CREATIVE SUPPORT LTD,"1,200.12",03/01/2019
Delivery Units,Adults and Communities,Other Agencies - Third Party P,90133063,DILLON CARE LTD,"3,900.00",03/01/2019
Delivery Units,Adults and Communities,Other Agencies - Third Party P,90138815,DILLON CARE LTD,"3,900.00",30/01/2019
Delivery Units,Adults and Communities,Other Agencies - Third Party P,90135077,LANGDON COMMUNITY LTD,943.04,09/01/2019
Delivery Units,Adults and Communities,Other Agencies - Third Party P,90137649,LIFEWAYS,"6,005.48",18/01/2019
Delivery Units,Adults and Communities,Other Agencies - Third Party P,90137650,LIFEWAYS,"2,493.12",18/01/2019
Delivery Units,Adults and Communities,Other Agencies - Third Party P,90132801,NEXT STEP SUPPORT LIMITED,"3,696.40",03/01/2019
Delivery Units,Adults and Communities,Other Agencies - Third Party P,90133420,ONE STEP (SUPPORT) LTD,"1,020.80",03/01/2019
Delivery Units,Adults and Communities,Other Agencies - Third Party P,90137597,ONE STEP (SUPPORT) LTD,"1,020.80",18/01/2019
Delivery Units,Adults and Communities,Other Agencies - Third Party P,90135747,ORIGIN HOUSING LIMITED,638.00,11/01/2019
Delivery Units,Adults and Communities,Other Agencies - Third Party P,90135748,ORIGIN HOUSING LIMITED,638.00,11/01/2019
Delivery Units,Adults and Communities,Other Agencies - Third Party P,90135750,ORIGIN HOUSING LIMITED,638.00,11/01/2019
Delivery Units,Adults and Communities,Other Agencies - Third Party P,90135758,ORIGIN HOUSING LIMITED,115.20,11/01/2019
Delivery Units,Adults and Communities,Other Agencies - Third Party P,90135762,ORIGIN HOUSING LIMITED,288.00,11/01/2019
Delivery Units,Adults and Communities,Other Agencies - Third Party P,90137610,ORIGIN HOUSING LIMITED,115.20,18/01/2019
Delivery Units,Adults and Communities,Other Agencies - Third Party P,90138181,ORIGIN HOUSING LIMITED,288.00,22/01/2019
Delivery Units,Adults and Communities,Other Agencies - Third Party P,90138184,ORIGIN HOUSING LIMITED,115.20,22/01/2019
Delivery Units,Adults and Communities,Other Agencies - Third Party P,90138463,ORIGIN HOUSING LIMITED,638.00,25/01/2019
Delivery Units,Adults and Communities,Other Agencies - Third Party P,90138464,ORIGIN HOUSING LIMITED,638.00,25/01/2019
Delivery Units,Adults and Communities,Other Agencies - Third Party P,90138466,ORIGIN HOUSING LIMITED,638.00,25/01/2019
Delivery Units,Adults and Communities,Other Agencies - Third Party P,90135773,PARADISE INDEPENDENT LIVING,"5,929.86",11/01/2019
Delivery Units,Adults and Communities,Other Agencies - Third Party P,90133069,SANCTUARY HOUSING ASSOCIATION,168.36,03/01/2019
Delivery Units,Adults and Communities,Other Agencies - Third Party P,90133071,SANCTUARY HOUSING ASSOCIATION,168.36,03/01/2019
Delivery Units,Adults and Communities,Other Agencies - Third Party P,90133072,SANCTUARY HOUSING ASSOCIATION,168.36,03/01/2019
Delivery Units,Adults and Communities,Other Agencies - Third Party P,90133080,SANCTUARY HOUSING ASSOCIATION,168.36,03/01/2019
Delivery Units,Adults and Communities,Other Agencies - Third Party P,90133092,SANCTUARY HOUSING ASSOCIATION,168.36,03/01/2019
Delivery Units,Adults and Communities,Other Agencies - Third Party P,90133094,SANCTUARY HOUSING ASSOCIATION,168.36,03/01/2019
Delivery Units,Adults and Communities,Other Agencies - Third Party P,90133095,SANCTUARY HOUSING ASSOCIATION,168.36,03/01/2019
Delivery Units,Adults and Communities,Other Agencies - Third Party P,90133104,SANCTUARY HOUSING ASSOCIATION,168.36,03/01/2019
Delivery Units,Adults and Communities,Other Agencies - Third Party P,90135096,SANCTUARY HOUSING ASSOCIATION,750.00,09/01/2019
Delivery Units,Adults and Communities,Other Agencies - Third Party P,90135098,SANCTUARY HOUSING ASSOCIATION,750.00,09/01/2019
Delivery Units,Adults and Communities,Other Agencies - Third Party P,90138271,SANCTUARY HOUSING ASSOCIATION,168.36,25/01/2019
Delivery Units,Adults and Communities,Other Agencies - Third Party P,90138273,SANCTUARY HOUSING ASSOCIATION,168.36,25/01/2019
Delivery Units,Adults and Communities,Other Agencies - Third Party P,90138274,SANCTUARY HOUSING ASSOCIATION,168.36,25/01/2019
Delivery Units,Adults and Communities,Other Agencies - Third Party P,90138284,SANCTUARY HOUSING ASSOCIATION,168.36,25/01/2019
Delivery Units,Adults and Communities,Other Agencies - Third Party P,90134890,SELF UNLIMITED-LONDON REGION,"3,607.20",07/01/2019
Delivery Units,Adults and Communities,Direct Transfer Payments to So,90134063,WIRECARD - ADULT SERVICES,384.64,04/01/2019
Delivery Units,Adults and Communities,Direct Transfer Payments to So,90134065,WIRECARD - ADULT SERVICES,192.00,04/01/2019
Delivery Units,Adults and Communities,Direct Transfer Payments to So,90134113,WIRECARD - ADULT SERVICES,144.24,04/01/2019
Delivery Units,Adults and Communities,Direct Transfer Payments to So,90134127,WIRECARD - ADULT SERVICES,531.80,04/01/2019
Delivery Units,Adults and Communities,Direct Transfer Payments to So,90134168,WIRECARD - ADULT SERVICES,730.48,04/01/2019
Delivery Units,Adults and Communities,Direct Transfer Payments to So,90134169,WIRECARD - ADULT SERVICES,792.88,04/01/2019
Delivery Units,Adults and Communities,Direct Transfer Payments to So,90134173,WIRECARD - ADULT SERVICES,92.32,04/01/2019
Delivery Units,Adults and Communities,Fees and Charges,90136560,WIRECARD - ADULT SERVICES,"2,013.12",15/01/2019
Delivery Units,Adults and Communities,Direct Transfer Payments to So,90133772,REDACTED - PERSONAL DATA,"2,606.04",04/01/2019
Delivery Units,Adults and Communities,Direct Transfer Payments to So,90134682,REDACTED - PERSONAL DATA,312.52,04/01/2019
Delivery Units,Adults and Communities,Direct Transfer Payments to So,90133957,REDACTED - PERSONAL DATA,"5,423.00",04/01/2019
Delivery Units,Adults and Communities,Direct Transfer Payments to So,90133929,REDACTED - PERSONAL DATA,"2,869.48",04/01/2019
Delivery Units,Adults and Communities,Direct Transfer Payments to So,90133732,REDACTED - PERSONAL DATA,"1,660.80",04/01/2019
Delivery Units,Adults and Communities,Direct Transfer Payments to So,90133551,REDACTED - PERSONAL DATA,349.12,04/01/2019
Delivery Units,Adults and Communities,Direct Transfer Payments to So,90134508,REDACTED - PERSONAL DATA,"1,541.08",04/01/2019
Delivery Units,Adults and Communities,Direct Transfer Payments to So,90133640,REDACTED - PERSONAL DATA,228.36,04/01/2019
Delivery Units,Adults and Communities,Direct Transfer Payments to So,90134381,REDACTED - PERSONAL DATA,"2,316.96",04/01/2019
Delivery Units,Adults and Communities,Direct Transfer Payments to So,90134581,REDACTED - PERSONAL DATA,679.60,04/01/2019
Delivery Units,Adults and Communities,Direct Transfer Payments to So,90133752,REDACTED - PERSONAL DATA,170.04,04/01/2019
Delivery Units,Adults and Communities,Direct Transfer Payments to So,90133561,REDACTED - PERSONAL DATA,673.12,04/01/2019
Delivery Units,Adults and Communities,Direct Transfer Payments to So,90133697,REDACTED - PERSONAL DATA,"3,054.40",04/01/2019
Delivery Units,Adults and Communities,Direct Transfer Payments to So,90133538,REDACTED - PERSONAL DATA,800.00,04/01/2019
Delivery Units,Adults and Communities,Direct Transfer Payments to So,90138248,REDACTED - PERSONAL DATA,672.53,25/01/2019
Delivery Units,Adults and Communities,Direct Transfer Payments to So,90134502,REDACTED - PERSONAL DATA,"2,048.32",04/01/2019
Delivery Units,Adults and Communities,Direct Transfer Payments to So,90133910,REDACTED - PERSONAL DATA,604.40,04/01/2019
Delivery Units,Adults and Communities,Direct Transfer Payments to So,90133900,REDACTED - PERSONAL DATA,"1,370.28",04/01/2019
Delivery Units,Adults and Communities,Direct Transfer Payments to So,90133935,REDACTED - PERSONAL DATA,"1,009.68",04/01/2019
Delivery Units,Adults and Communities,Direct Transfer Payments to So,90134118,REDACTED - PERSONAL DATA,"1,249.52",04/01/2019
Delivery Units,Adults and Communities,Direct Transfer Payments to So,90133598,REDACTED - PERSONAL DATA,"2,536.20",04/01/2019
Delivery Units,Adults and Communities,Direct Transfer Payments to So,90134590,REDACTED - PERSONAL DATA,560.00,04/01/2019
Delivery Units,Adults and Communities,Direct Transfer Payments to So,90133687,REDACTED - PERSONAL DATA,"2,200.00",04/01/2019
Delivery Units,Adults and Communities,Direct Transfer Payments to So,90134095,REDACTED - PERSONAL DATA,"6,721.20",04/01/2019
Delivery Units,Adults and Communities,Direct Transfer Payments to So,90134442,REDACTED - PERSONAL DATA,"1,161.92",04/01/2019
Delivery Units,Adults and Communities,Direct Transfer Payments to So,90133733,REDACTED - PERSONAL DATA,"1,708.00",04/01/2019
Delivery Units,Adults and Communities,Direct Transfer Payments to So,90134452,REDACTED - PERSONAL DATA,"3,100.16",04/01/2019
Delivery Units,Adults and Communities,Direct Transfer Payments to So,90133936,REDACTED - PERSONAL DATA,152.16,04/01/2019
Delivery Units,Adults and Communities,Direct Transfer Payments to So,90133588,REDACTED - PERSONAL DATA,478.64,04/01/2019
Delivery Units,Adults and Communities,Direct Transfer Payments to So,90133534,REDACTED - PERSONAL DATA,780.92,04/01/2019
Delivery Units,Adults and Communities,Direct Transfer Payments to So,90133594,REDACTED - PERSONAL DATA,"2,400.00",04/01/2019
Delivery Units,Adults and Communities,Direct Transfer Payments to So,90134363,REDACTED - PERSONAL DATA,"2,156.08",04/01/2019
Delivery Units,Adults and Communities,Direct Transfer Payments to So,90134546,REDACTED - PERSONAL DATA,"2,088.00",04/01/2019
Delivery Units,Adults and Communities,Direct Transfer Payments to So,90133553,REDACTED - PERSONAL DATA,"1,081.80",04/01/2019
Delivery Units,Adults and Communities,Direct Transfer Payments to So,90133778,REDACTED - PERSONAL DATA,"1,009.68",04/01/2019
Delivery Units,Adults and Communities,Direct Transfer Payments to So,90133790,REDACTED - PERSONAL DATA,480.80,04/01/2019
Delivery Units,Adults and Communities,Direct Transfer Payments to So,90134528,REDACTED - PERSONAL DATA,360.00,04/01/2019
Delivery Units,Adults and Communities,Direct Transfer Payments to So,90133663,REDACTED - PERSONAL DATA,528.88,04/01/2019
Delivery Units,Adults and Communities,Direct Transfer Payments to So,90134488,REDACTED - PERSONAL DATA,"1,353.04",04/01/2019
Delivery Units,Adults and Communities,Direct Transfer Payments to So,90133574,REDACTED - PERSONAL DATA,817.36,04/01/2019
Delivery Units,Adults and Communities,Direct Transfer Payments to So,90134514,REDACTED - PERSONAL DATA,651.44,04/01/2019
Delivery Units,Adults and Communities,Direct Transfer Payments to So,90134015,REDACTED - PERSONAL DATA,288.48,04/01/2019
Delivery Units,Adults and Communities,Direct Transfer Payments to So,90134154,REDACTED - PERSONAL DATA,"1,472.32",04/01/2019
Delivery Units,Adults and Communities,Direct Transfer Payments to So,90134010,REDACTED - PERSONAL DATA,"1,015.00",04/01/2019
Delivery Units,Adults and Communities,Direct Transfer Payments to So,90133748,REDACTED - PERSONAL DATA,"2,813.00",04/01/2019
Delivery Units,Adults and Communities,Direct Transfer Payments to So,90134529,REDACTED - PERSONAL DATA,581.28,04/01/2019
Delivery Units,Adults and Communities,Direct Transfer Payments to So,90134436,REDACTED - PERSONAL DATA,"17,695.68",04/01/2019
Delivery Units,Adults and Communities,Direct Transfer Payments to So,90134136,REDACTED - PERSONAL DATA,409.00,04/01/2019
Delivery Units,Adults and Communities,Direct Transfer Payments to So,90134417,REDACTED - PERSONAL DATA,"1,545.32",04/01/2019
Delivery Units,Adults and Communities,Direct Transfer Payments to So,90134594,REDACTED - PERSONAL DATA,728.00,04/01/2019
Delivery Units,Adults and Communities,Direct Transfer Payments to So,90134371,REDACTED - PERSONAL DATA,"1,520.00",04/01/2019
Delivery Units,Adults and Communities,Direct Transfer Payments to So,90134007,REDACTED - PERSONAL DATA,"1,580.00",04/01/2019
Delivery Units,Adults and Communities,Direct Transfer Payments to So,90134582,REDACTED - PERSONAL DATA,432.00,04/01/2019
Delivery Units,Adults and Communities,Direct Transfer Payments to So,90133986,REDACTED - PERSONAL DATA,"2,684.48",04/01/2019
Delivery Units,Adults and Communities,Direct Transfer Payments to So,90134360,REDACTED - PERSONAL DATA,200.00,04/01/2019
Delivery Units,Adults and Communities,Direct Transfer Payments to So,90134408,REDACTED - PERSONAL DATA,675.80,04/01/2019
Delivery Units,Adults and Communities,Direct Transfer Payments to So,90134409,REDACTED - PERSONAL DATA,"1,350.72",04/01/2019
Delivery Units,Adults and Communities,Direct Transfer Payments to So,90134639,REDACTED - PERSONAL DATA,"1,440.00",04/01/2019
Delivery Units,Adults and Communities,Direct Transfer Payments to So,90134585,REDACTED - PERSONAL DATA,202.00,04/01/2019
Delivery Units,Adults and Communities,Direct Transfer Payments to So,90134375,REDACTED - PERSONAL DATA,450.52,04/01/2019
Delivery Units,Adults and Communities,Direct Transfer Payments to So,90134380,REDACTED - PERSONAL DATA,"1,243.00",04/01/2019
Delivery Units,Adults and Communities,Direct Transfer Payments to So,90134534,REDACTED - PERSONAL DATA,470.40,04/01/2019
Delivery Units,Adults and Communities,Direct Transfer Payments to So,90134077,REDACTED - PERSONAL DATA,913.20,04/01/2019
Delivery Units,Adults and Communities,Direct Transfer Payments to So,90134593,REDACTED - PERSONAL DATA,426.96,04/01/2019
Delivery Units,Adults and Communities,Direct Transfer Payments to So,90134357,REDACTED - PERSONAL DATA,387.52,04/01/2019
Delivery Units,Adults and Communities,Direct Transfer Payments to So,90134672,REDACTED - PERSONAL DATA,779.44,04/01/2019
Delivery Units,Adults and Communities,Direct Transfer Payments to So,90134536,REDACTED - PERSONAL DATA,"3,474.40",04/01/2019
Delivery Units,Adults and Communities,Direct Transfer Payments to So,90134428,REDACTED - PERSONAL DATA,585.24,04/01/2019
Delivery Units,Adults and Communities,Direct Transfer Payments to So,90133701,REDACTED - PERSONAL DATA,257.44,04/01/2019
Delivery Units,Adults and Communities,Direct Transfer Payments to So,90133800,REDACTED - PERSONAL DATA,"1,094.12",04/01/2019
Delivery Units,Adults and Communities,Direct Transfer Payments to So,90134097,REDACTED - PERSONAL DATA,"1,105.84",04/01/2019
Delivery Units,Adults and Communities,Direct Transfer Payments to So,90133527,REDACTED - PERSONAL DATA,769.28,04/01/2019
Delivery Units,Adults and Communities,Direct Transfer Payments to So,90133639,REDACTED - PERSONAL DATA,"1,089.12",04/01/2019
Delivery Units,Adults and Communities,Direct Transfer Payments to So,90133946,REDACTED - PERSONAL DATA,"3,654.08",04/01/2019
Delivery Units,Adults and Communities,Direct Transfer Payments to So,90134538,REDACTED - PERSONAL DATA,192.32,04/01/2019
Delivery Units,Adults and Communities,Direct Transfer Payments to So,90134455,REDACTED - PERSONAL DATA,851.08,04/01/2019
Delivery Units,Adults and Communities,Direct Transfer Payments to So,90133661,REDACTED - PERSONAL DATA,601.00,04/01/2019
Delivery Units,Adults and Communities,Direct Transfer Payments to So,90133798,REDACTED - PERSONAL DATA,24.60,04/01/2019
Delivery Units,Adults and Communities,Direct Transfer Payments to So,90133704,REDACTED - PERSONAL DATA,521.40,04/01/2019
Delivery Units,Adults and Communities,Direct Transfer Payments to So,90133962,REDACTED - PERSONAL DATA,"3,964.00",04/01/2019
Delivery Units,Adults and Communities,Direct Transfer Payments to So,90133463,REDACTED - PERSONAL DATA,757.35,03/01/2019
Delivery Units,Adults and Communities,Direct Transfer Payments to So,90134512,REDACTED - PERSONAL DATA,"1,183.32",04/01/2019
Delivery Units,Adults and Communities,Direct Transfer Payments to So,90133578,REDACTED - PERSONAL DATA,740.00,04/01/2019
Delivery Units,Adults and Communities,Direct Transfer Payments to So,90133764,REDACTED - PERSONAL DATA,800.00,04/01/2019
Delivery Units,Adults and Communities,Direct Transfer Payments to So,90134693,REDACTED - PERSONAL DATA,840.00,04/01/2019
Delivery Units,Adults and Communities,Direct Transfer Payments to So,90134397,REDACTED - PERSONAL DATA,700.00,04/01/2019
Delivery Units,Adults and Communities,Direct Transfer Payments to So,90133674,REDACTED - PERSONAL DATA,190.00,04/01/2019
Delivery Units,Adults and Communities,Direct Transfer Payments to So,90133524,REDACTED - PERSONAL DATA,640.00,04/01/2019
Delivery Units,Adults and Communities,Direct Transfer Payments to So,90133657,REDACTED - PERSONAL DATA,305.44,04/01/2019
Delivery Units,Adults and Communities,Direct Transfer Payments to So,90134045,REDACTED - PERSONAL DATA,448.00,04/01/2019
Delivery Units,Adults and Communities,Direct Transfer Payments to So,90133547,REDACTED - PERSONAL DATA,488.44,04/01/2019
Delivery Units,Adults and Communities,Direct Transfer Payments to So,90133671,REDACTED - PERSONAL DATA,"1,126.32",04/01/2019
Delivery Units,Adults and Communities,Direct Transfer Payments to So,90133521,REDACTED - PERSONAL DATA,"1,544.64",04/01/2019
Delivery Units,Adults and Communities,Direct Transfer Payments to So,90134431,REDACTED - PERSONAL DATA,486.20,04/01/2019
Delivery Units,Adults and Communities,Direct Transfer Payments to So,90133753,REDACTED - PERSONAL DATA,"1,300.00",04/01/2019
Delivery Units,Adults and Communities,Direct Transfer Payments to So,90134403,REDACTED - PERSONAL DATA,144.24,04/01/2019
Delivery Units,Adults and Communities,Direct Transfer Payments to So,90134557,REDACTED - PERSONAL DATA,601.00,04/01/2019
Delivery Units,Adults and Communities,Direct Transfer Payments to So,90134086,REDACTED - PERSONAL DATA,"3,727.68",04/01/2019
Delivery Units,Adults and Communities,Direct Transfer Payments to So,90133702,REDACTED - PERSONAL DATA,580.36,04/01/2019
Delivery Units,Adults and Communities,Direct Transfer Payments to So,90133692,REDACTED - PERSONAL DATA,306.84,04/01/2019
Delivery Units,Adults and Communities,Direct Transfer Payments to So,90134020,REDACTED - PERSONAL DATA,"3,051.36",04/01/2019
Delivery Units,Adults and Communities,Direct Transfer Payments to So,90133720,REDACTED - PERSONAL DATA,264.44,04/01/2019
Delivery Units,Adults and Communities,Direct Transfer Payments to So,90133955,REDACTED - PERSONAL DATA,625.28,04/01/2019
Delivery Units,Adults and Communities,Direct Transfer Payments to So,90133605,REDACTED - PERSONAL DATA,"7,616.00",04/01/2019
Delivery Units,Adults and Communities,Direct Transfer Payments to So,90134441,REDACTED - PERSONAL DATA,485.84,04/01/2019
Delivery Units,Adults and Communities,Direct Transfer Payments to So,90134184,REDACTED - PERSONAL DATA,"-4,551.18",04/01/2019
Delivery Units,Adults and Communities,Fees and Charges,90134166,REDACTED - PERSONAL DATA,-200.40,04/01/2019
Delivery Units,Adults and Communities,Fees and Charges,90134123,REDACTED - PERSONAL DATA,-58.40,04/01/2019
Delivery Units,Adults and Communities,Fees and Charges,90130542,REDACTED - PERSONAL DATA,150.17,04/01/2019
Delivery Units,Adults and Communities,Fees and Charges,90134076,REDACTED - PERSONAL DATA,-69.36,04/01/2019
Delivery Units,Adults and Communities,Fees and Charges,90134167,REDACTED - PERSONAL DATA,-197.20,04/01/2019
Delivery Units,Adults and Communities,Fees and Charges,90132740,REDACTED - PERSONAL DATA,58.42,03/01/2019
Delivery Units,Adults and Communities,Fees and Charges,90134125,REDACTED - PERSONAL DATA,-161.88,04/01/2019
Delivery Units,Adults and Communities,Fees and Charges,90134139,REDACTED - PERSONAL DATA,-66.04,04/01/2019
Delivery Units,Adults and Communities,Fees and Charges,90134132,REDACTED - PERSONAL DATA,-85.96,04/01/2019
Delivery Units,Adults and Communities,Fees and Charges,90134057,REDACTED - PERSONAL DATA,-132.00,04/01/2019
Delivery Units,Adults and Communities,Fees and Charges,90134767,REDACTED - PERSONAL DATA,-78.80,04/01/2019
Delivery Units,Adults and Communities,Fees and Charges,90132742,REDACTED - PERSONAL DATA,271.47,03/01/2019
Delivery Units,Adults and Communities,Fees and Charges,90133993,REDACTED - PERSONAL DATA,-245.20,04/01/2019
Delivery Units,Adults and Communities,Fees and Charges,90134188,REDACTED - PERSONAL DATA,-0.04,04/01/2019
Delivery Units,Adults and Communities,Fees and Charges,90134198,REDACTED - PERSONAL DATA,-0.04,04/01/2019
Delivery Units,Adults and Communities,Fees and Charges,90134201,REDACTED - PERSONAL DATA,0.09,04/01/2019
Delivery Units,Adults and Communities,Other Agencies - Third Party P,90136015,ALLIED HEALTHCARE LTD,194.32,14/01/2019
Delivery Units,Adults and Communities,Other Agencies - Third Party P,90136020,ALLIED HEALTHCARE LTD,300.66,14/01/2019
Delivery Units,Adults and Communities,Other Agencies - Third Party P,90136029,ALLIED HEALTHCARE LTD,185.01,14/01/2019
Delivery Units,Adults and Communities,Other Agencies - Third Party P,90136030,ALLIED HEALTHCARE LTD,92.50,14/01/2019
Delivery Units,Adults and Communities,Other Agencies - Third Party P,90136036,ALLIED HEALTHCARE LTD,92.50,14/01/2019
Delivery Units,Adults and Communities,Other Agencies - Third Party P,90136053,ALLIED HEALTHCARE LTD,194.25,14/01/2019
Delivery Units,Adults and Communities,Other Agencies - Third Party P,90136077,ALLIED HEALTHCARE LTD,111.00,14/01/2019
Delivery Units,Adults and Communities,Other Agencies - Third Party P,90136081,ALLIED HEALTHCARE LTD,60.14,14/01/2019
Delivery Units,Adults and Communities,Other Agencies - Third Party P,90136085,ALLIED HEALTHCARE LTD,106.41,14/01/2019
Delivery Units,Adults and Communities,Other Agencies - Third Party P,90136090,ALLIED HEALTHCARE LTD,171.14,14/01/2019
Delivery Units,Adults and Communities,Other Agencies - Third Party P,90136101,ALLIED HEALTHCARE LTD,138.77,14/01/2019
Delivery Units,Adults and Communities,Other Agencies - Third Party P,90136103,ALLIED HEALTHCARE LTD,74.00,14/01/2019
Delivery Units,Adults and Communities,Other Agencies - Third Party P,90133461,BLUEBIRD CARE (BARNET),205.30,03/01/2019
Delivery Units,Adults and Communities,Other Agencies - Third Party P,90137733,BLUEBIRD CARE (BARNET),"2,330.00",21/01/2019
Delivery Units,Adults and Communities,Other Agencies - Third Party P,90137751,BLUEBIRD CARE (BARNET),345.00,21/01/2019
Delivery Units,Adults and Communities,Other Agencies - Third Party P,90137753,BLUEBIRD CARE (BARNET),"1,140.00",21/01/2019
Delivery Units,Adults and Communities,Other Agencies - Third Party P,90137754,BLUEBIRD CARE (BARNET),60.00,21/01/2019
Delivery Units,Adults and Communities,Other Agencies - Third Party P,90135854,CAREWATCH (BARNET),73.00,14/01/2019
Delivery Units,Adults and Communities,Other Agencies - Third Party P,90135866,CAREWATCH (BARNET),120.26,14/01/2019
Delivery Units,Adults and Communities,Other Agencies - Third Party P,90135880,CAREWATCH (BARNET),94.52,14/01/2019
Delivery Units,Adults and Communities,Other Agencies - Third Party P,90135881,CAREWATCH (BARNET),103.10,14/01/2019
Delivery Units,Adults and Communities,Other Agencies - Third Party P,90135883,CAREWATCH (BARNET),176.11,14/01/2019
Delivery Units,Adults and Communities,Other Agencies - Third Party P,90135915,CAREWATCH (BARNET),244.84,14/01/2019
Delivery Units,Adults and Communities,Other Agencies - Third Party P,90136108,CAREWATCH (BARNET),64.45,14/01/2019
Delivery Units,Adults and Communities,Other Agencies - Third Party P,90136136,CAREWATCH (BARNET),90.23,14/01/2019
Delivery Units,Adults and Communities,Other Agencies - Third Party P,90136137,CAREWATCH (BARNET),77.32,14/01/2019
Delivery Units,Adults and Communities,Other Agencies - Third Party P,90136139,CAREWATCH (BARNET),180.40,14/01/2019
Delivery Units,Adults and Communities,Other Agencies - Third Party P,90136150,CAREWATCH (BARNET),120.26,14/01/2019
Delivery Units,Adults and Communities,Other Agencies - Third Party P,90136165,CAREWATCH (BARNET),244.84,15/01/2019
Delivery Units,Adults and Communities,Other Agencies - Third Party P,90136183,CAREWATCH (BARNET),42.96,15/01/2019
Delivery Units,Adults and Communities,Other Agencies - Third Party P,90136195,CAREWATCH (BARNET),141.74,15/01/2019
Delivery Units,Adults and Communities,Other Agencies - Third Party P,90136207,CAREWATCH (BARNET),94.52,15/01/2019
Delivery Units,Adults and Communities,Other Agencies - Third Party P,90136209,CAREWATCH (BARNET),171.82,15/01/2019
Delivery Units,Adults and Communities,Other Agencies - Third Party P,90136240,CAREWATCH (BARNET),244.84,15/01/2019
Delivery Units,Adults and Communities,Other Agencies - Third Party P,90136474,CAREWATCH (BARNET),25.78,15/01/2019
Delivery Units,Adults and Communities,Other Agencies - Third Party P,90136485,CAREWATCH (BARNET),124.56,15/01/2019
Delivery Units,Adults and Communities,Other Agencies - Third Party P,90136495,CAREWATCH (BARNET),34.37,15/01/2019
Delivery Units,Adults and Communities,Other Agencies - Third Party P,90136501,CAREWATCH (BARNET),98.81,15/01/2019
Delivery Units,Adults and Communities,Other Agencies - Third Party P,90136502,CAREWATCH (BARNET),68.74,15/01/2019
Delivery Units,Adults and Communities,Other Agencies - Third Party P,90136504,CAREWATCH (BARNET),176.11,15/01/2019
Delivery Units,Adults and Communities,Other Agencies - Third Party P,90137957,CAREWATCH (BARNET),124.56,22/01/2019
Delivery Units,Adults and Communities,Other Agencies - Third Party P,90137973,CAREWATCH (BARNET),90.23,22/01/2019
Delivery Units,Adults and Communities,Other Agencies - Third Party P,90137974,CAREWATCH (BARNET),94.52,22/01/2019
Delivery Units,Adults and Communities,Other Agencies - Third Party P,90137976,CAREWATCH (BARNET),176.11,22/01/2019
Delivery Units,Adults and Communities,Other Agencies - Third Party P,90138328,CAREWATCH (BARNET),120.26,25/01/2019
Delivery Units,Adults and Communities,Other Agencies - Third Party P,90138345,CAREWATCH (BARNET),85.93,25/01/2019
Delivery Units,Adults and Communities,Other Agencies - Third Party P,90138348,CAREWATCH (BARNET),167.52,25/01/2019
Delivery Units,Adults and Communities,Other Agencies - Third Party P,90138380,CAREWATCH (BARNET),107.41,25/01/2019
Delivery Units,Adults and Communities,Other Agencies - Third Party P,90138404,CAREWATCH (BARNET),120.27,25/01/2019
Delivery Units,Adults and Communities,Other Agencies - Third Party P,90138420,CAREWATCH (BARNET),90.23,25/01/2019
Delivery Units,Adults and Communities,Other Agencies - Third Party P,90138421,CAREWATCH (BARNET),176.11,25/01/2019
Delivery Units,Adults and Communities,Other Agencies - Third Party P,90138452,CAREWATCH (BARNET),107.41,25/01/2019
Delivery Units,Adults and Communities,Other Agencies - Third Party P,90133042,CONCEPT CARE SOLUTIONS LTD,"1,076.50",03/01/2019
Delivery Units,Adults and Communities,Other Agencies - Third Party P,90133043,CONCEPT CARE SOLUTIONS LTD,-3.20,03/01/2019
Delivery Units,Adults and Communities,Other Agencies - Third Party P,90133870,CONCEPT CARE SOLUTIONS LTD,"1,076.50",04/01/2019
Delivery Units,Adults and Communities,Other Agencies - Third Party P,90133871,CONCEPT CARE SOLUTIONS LTD,-3.20,04/01/2019
Delivery Units,Adults and Communities,Other Agencies - Third Party P,90136554,CONCEPT CARE SOLUTIONS LTD,"1,076.50",17/01/2019
Delivery Units,Adults and Communities,Other Agencies - Third Party P,90136555,CONCEPT CARE SOLUTIONS LTD,-3.20,17/01/2019
Delivery Units,Adults and Communities,Other Agencies - Third Party P,90137902,CONCEPT CARE SOLUTIONS LTD,"1,076.50",24/01/2019
Delivery Units,Adults and Communities,Other Agencies - Third Party P,90137903,CONCEPT CARE SOLUTIONS LTD,-3.20,24/01/2019
Delivery Units,Adults and Communities,Other Agencies - Third Party P,90134935,DYNAMIC PEOPLE LTD,15.77,07/01/2019
Delivery Units,Adults and Communities,Other Agencies - Third Party P,90134951,DYNAMIC PEOPLE LTD,39.43,07/01/2019
Delivery Units,Adults and Communities,Other Agencies - Third Party P,90134957,DYNAMIC PEOPLE LTD,110.39,07/01/2019
Delivery Units,Adults and Communities,Other Agencies - Third Party P,90134959,DYNAMIC PEOPLE LTD,47.31,07/01/2019
Delivery Units,Adults and Communities,Other Agencies - Third Party P,90134966,DYNAMIC PEOPLE LTD,138.01,07/01/2019
Delivery Units,Adults and Communities,Other Agencies - Third Party P,90134968,DYNAMIC PEOPLE LTD,47.32,07/01/2019
Delivery Units,Adults and Communities,Other Agencies - Third Party P,90134976,DYNAMIC PEOPLE LTD,82.81,07/01/2019
Delivery Units,Adults and Communities,Other Agencies - Third Party P,90134978,DYNAMIC PEOPLE LTD,248.43,07/01/2019
Delivery Units,Adults and Communities,Other Agencies - Third Party P,90134992,DYNAMIC PEOPLE LTD,291.75,07/01/2019
Delivery Units,Adults and Communities,Other Agencies - Third Party P,90135004,DYNAMIC PEOPLE LTD,197.16,07/01/2019
Delivery Units,Adults and Communities,Other Agencies - Third Party P,90135019,DYNAMIC PEOPLE LTD,98.60,07/01/2019
Delivery Units,Adults and Communities,Other Agencies - Third Party P,90135043,DYNAMIC PEOPLE LTD,138.04,07/01/2019
Delivery Units,Adults and Communities,Other Agencies - Third Party P,90135044,DYNAMIC PEOPLE LTD,110.39,07/01/2019
Delivery Units,Adults and Communities,Other Agencies - Third Party P,90136717,DYNAMIC PEOPLE LTD,106.46,16/01/2019
Delivery Units,Adults and Communities,Other Agencies - Third Party P,90136732,DYNAMIC PEOPLE LTD,39.43,16/01/2019
Delivery Units,Adults and Communities,Other Agencies - Third Party P,90136735,DYNAMIC PEOPLE LTD,98.56,16/01/2019
Delivery Units,Adults and Communities,Other Agencies - Third Party P,90136738,DYNAMIC PEOPLE LTD,47.31,16/01/2019
Delivery Units,Adults and Communities,Other Agencies - Third Party P,90136740,DYNAMIC PEOPLE LTD,98.60,16/01/2019
Delivery Units,Adults and Communities,Other Agencies - Third Party P,90136748,DYNAMIC PEOPLE LTD,122.22,16/01/2019
Delivery Units,Adults and Communities,Other Agencies - Third Party P,90136750,DYNAMIC PEOPLE LTD,63.09,16/01/2019
Delivery Units,Adults and Communities,Other Agencies - Third Party P,90136762,DYNAMIC PEOPLE LTD,82.81,16/01/2019
Delivery Units,Adults and Communities,Other Agencies - Third Party P,90136764,DYNAMIC PEOPLE LTD,224.77,16/01/2019
Delivery Units,Adults and Communities,Other Agencies - Third Party P,90136783,DYNAMIC PEOPLE LTD,134.07,16/01/2019
Delivery Units,Adults and Communities,Other Agencies - Third Party P,90136798,DYNAMIC PEOPLE LTD,197.16,16/01/2019
Delivery Units,Adults and Communities,Other Agencies - Third Party P,90136827,DYNAMIC PEOPLE LTD,717.54,16/01/2019
Delivery Units,Adults and Communities,Other Agencies - Third Party P,90136828,DYNAMIC PEOPLE LTD,110.39,16/01/2019
Delivery Units,Adults and Communities,Other Agencies - Third Party P,90138828,DYNAMIC PEOPLE LTD,141.96,30/01/2019
Delivery Units,Adults and Communities,Other Agencies - Third Party P,90138841,DYNAMIC PEOPLE LTD,295.70,30/01/2019
Delivery Units,Adults and Communities,Other Agencies - Third Party P,90138843,DYNAMIC PEOPLE LTD,94.62,30/01/2019
Delivery Units,Adults and Communities,Other Agencies - Third Party P,90138846,DYNAMIC PEOPLE LTD,31.54,30/01/2019
Delivery Units,Adults and Communities,Other Agencies - Third Party P,90138848,DYNAMIC PEOPLE LTD,108.46,30/01/2019
Delivery Units,Adults and Communities,Other Agencies - Third Party P,90138853,DYNAMIC PEOPLE LTD,43.37,30/01/2019
Delivery Units,Adults and Communities,Other Agencies - Third Party P,90138855,DYNAMIC PEOPLE LTD,53.24,30/01/2019
Delivery Units,Adults and Communities,Other Agencies - Third Party P,90138877,DYNAMIC PEOPLE LTD,626.87,30/01/2019
Delivery Units,Adults and Communities,Other Agencies - Third Party P,90138878,DYNAMIC PEOPLE LTD,112.37,30/01/2019
Delivery Units,Adults and Communities,Other Agencies - Third Party P,90138892,DYNAMIC PEOPLE LTD,208.99,30/01/2019
Delivery Units,Adults and Communities,Other Agencies - Third Party P,90138916,DYNAMIC PEOPLE LTD,88.73,30/01/2019
Delivery Units,Adults and Communities,Other Agencies - Third Party P,90138930,DYNAMIC PEOPLE LTD,147.90,30/01/2019
Delivery Units,Adults and Communities,Other Agencies - Third Party P,90139276,DYNAMIC PEOPLE LTD,130.12,30/01/2019
Delivery Units,Adults and Communities,Other Agencies - Third Party P,90139291,DYNAMIC PEOPLE LTD,272.03,30/01/2019
Delivery Units,Adults and Communities,Other Agencies - Third Party P,90139293,DYNAMIC PEOPLE LTD,94.62,30/01/2019
Delivery Units,Adults and Communities,Other Agencies - Third Party P,90139296,DYNAMIC PEOPLE LTD,47.31,30/01/2019
Delivery Units,Adults and Communities,Other Agencies - Third Party P,90139298,DYNAMIC PEOPLE LTD,98.60,30/01/2019
Delivery Units,Adults and Communities,Other Agencies - Third Party P,90139305,DYNAMIC PEOPLE LTD,122.22,30/01/2019
Delivery Units,Adults and Communities,Other Agencies - Third Party P,90139308,DYNAMIC PEOPLE LTD,59.15,30/01/2019
Delivery Units,Adults and Communities,Other Agencies - Third Party P,90139315,DYNAMIC PEOPLE LTD,82.81,30/01/2019
Delivery Units,Adults and Communities,Other Agencies - Third Party P,90139331,DYNAMIC PEOPLE LTD,102.51,30/01/2019
Delivery Units,Adults and Communities,Other Agencies - Third Party P,90139341,DYNAMIC PEOPLE LTD,197.16,30/01/2019
Delivery Units,Adults and Communities,Other Agencies - Third Party P,90139377,DYNAMIC PEOPLE LTD,717.54,30/01/2019
Delivery Units,Adults and Communities,Other Agencies - Third Party P,90139379,DYNAMIC PEOPLE LTD,138.04,30/01/2019
Delivery Units,Adults and Communities,Other Agencies - Third Party P,90133232,GOLDSMITH PERSONNEL LTD,178.29,07/01/2019
Delivery Units,Adults and Communities,Other Agencies - Third Party P,90133234,GOLDSMITH PERSONNEL LTD,178.29,14/01/2019
Delivery Units,Adults and Communities,Other Agencies - Third Party P,90136551,GOLDSMITH PERSONNEL LTD,169.80,21/01/2019
Delivery Units,Adults and Communities,Other Agencies - Third Party P,90136553,GOLDSMITH PERSONNEL LTD,101.88,28/01/2019
Delivery Units,Adults and Communities,Other Agencies - Third Party P,90132575,KARE PLUS BARNET,32.36,03/01/2019
Delivery Units,Adults and Communities,Other Agencies - Third Party P,90132602,KARE PLUS BARNET,166.66,03/01/2019
Delivery Units,Adults and Communities,Other Agencies - Third Party P,90133115,KARE PLUS BARNET,32.36,03/01/2019
Delivery Units,Adults and Communities,Other Agencies - Third Party P,90133128,KARE PLUS BARNET,172.40,03/01/2019
Delivery Units,Adults and Communities,Other Agencies - Third Party P,90133131,KARE PLUS BARNET,42.44,03/01/2019
Delivery Units,Adults and Communities,Other Agencies - Third Party P,90133144,KARE PLUS BARNET,152.24,03/01/2019
Delivery Units,Adults and Communities,Other Agencies - Third Party P,90133175,KARE PLUS BARNET,137.92,03/01/2019
Delivery Units,Adults and Communities,Other Agencies - Third Party P,90133179,KARE PLUS BARNET,40.45,03/01/2019
Delivery Units,Adults and Communities,Other Agencies - Third Party P,90133188,KARE PLUS BARNET,172.40,03/01/2019
Delivery Units,Adults and Communities,Other Agencies - Third Party P,90133193,KARE PLUS BARNET,16.18,03/01/2019
Delivery Units,Adults and Communities,Other Agencies - Third Party P,90133202,KARE PLUS BARNET,218.32,03/01/2019
Delivery Units,Adults and Communities,Other Agencies - Third Party P,90133209,KARE PLUS BARNET,172.40,03/01/2019
Delivery Units,Adults and Communities,Other Agencies - Third Party P,90133211,KARE PLUS BARNET,228.11,03/01/2019
Delivery Units,Adults and Communities,Other Agencies - Third Party P,90133212,KARE PLUS BARNET,40.45,03/01/2019
Delivery Units,Adults and Communities,Other Agencies - Third Party P,90133421,KARE PLUS BARNET,215.97,03/01/2019
Delivery Units,Adults and Communities,Other Agencies - Third Party P,90133422,KARE PLUS BARNET,229.71,03/01/2019
Delivery Units,Adults and Communities,Other Agencies - Third Party P,90133431,KARE PLUS BARNET,103.44,03/01/2019
Delivery Units,Adults and Communities,Other Agencies - Third Party P,90133432,KARE PLUS BARNET,137.92,03/01/2019
Delivery Units,Adults and Communities,Other Agencies - Third Party P,90133435,KARE PLUS BARNET,137.92,03/01/2019
Delivery Units,Adults and Communities,Other Agencies - Third Party P,90133265,MI HOMECARE LIMITED,505.40,03/01/2019
Delivery Units,Adults and Communities,Other Agencies - Third Party P,90133273,MI HOMECARE LIMITED,532.47,03/01/2019
Delivery Units,Adults and Communities,Other Agencies - Third Party P,90133284,MI HOMECARE LIMITED,"4,332.06",03/01/2019
Delivery Units,Adults and Communities,Other Agencies - Third Party P,90133286,MI HOMECARE LIMITED,798.23,03/01/2019
Delivery Units,Adults and Communities,Other Agencies - Third Party P,90133302,MI HOMECARE LIMITED,"7,920.10",03/01/2019
Delivery Units,Adults and Communities,Other Agencies - Third Party P,90133304,MI HOMECARE LIMITED,234.12,03/01/2019
Delivery Units,Adults and Communities,Other Agencies - Third Party P,90133307,MI HOMECARE LIMITED,315.88,03/01/2019
Delivery Units,Adults and Communities,Other Agencies - Third Party P,90133313,MI HOMECARE LIMITED,"2,178.48",03/01/2019
Delivery Units,Adults and Communities,Other Agencies - Third Party P,90133317,MI HOMECARE LIMITED,"1,176.99",03/01/2019
Delivery Units,Adults and Communities,Other Agencies - Third Party P,90133320,MI HOMECARE LIMITED,"3,581.38",03/01/2019
Delivery Units,Adults and Communities,Other Agencies - Third Party P,90133321,MI HOMECARE LIMITED,"1,215.88",03/01/2019
Delivery Units,Adults and Communities,Other Agencies - Third Party P,90133332,MI HOMECARE LIMITED,"1,712.07",03/01/2019
Delivery Units,Adults and Communities,Other Agencies - Third Party P,90133335,MI HOMECARE LIMITED,572.60,03/01/2019
Delivery Units,Adults and Communities,Other Agencies - Third Party P,90133341,MI HOMECARE LIMITED,947.63,03/01/2019
Delivery Units,Adults and Communities,Other Agencies - Third Party P,90133347,MI HOMECARE LIMITED,"3,892.21",03/01/2019
Delivery Units,Adults and Communities,Other Agencies - Third Party P,90133352,MI HOMECARE LIMITED,"1,304.12",03/01/2019
Delivery Units,Adults and Communities,Other Agencies - Third Party P,90133358,MI HOMECARE LIMITED,"4,083.10",03/01/2019
Delivery Units,Adults and Communities,Other Agencies - Third Party P,90133377,MI HOMECARE LIMITED,"3,414.48",03/01/2019
Delivery Units,Adults and Communities,Other Agencies - Third Party P,90133378,MI HOMECARE LIMITED,"14,194.26",03/01/2019
Delivery Units,Adults and Communities,Other Agencies - Third Party P,90133380,MI HOMECARE LIMITED,"4,130.98",03/01/2019
Delivery Units,Adults and Communities,Other Agencies - Third Party P,90133381,MI HOMECARE LIMITED,"3,585.25",03/01/2019
Delivery Units,Adults and Communities,Other Agencies - Third Party P,90133384,MI HOMECARE LIMITED,"14,568.82",03/01/2019
Delivery Units,Adults and Communities,Other Agencies - Third Party P,90133401,MI HOMECARE LIMITED,857.39,03/01/2019
Delivery Units,Adults and Communities,Other Agencies - Third Party P,90133413,MI HOMECARE LIMITED,"1,583.08",03/01/2019
Delivery Units,Adults and Communities,Other Agencies - Third Party P,90133416,MI HOMECARE LIMITED,"1,764.08",03/01/2019
Delivery Units,Adults and Communities,Other Agencies - Third Party P,90137208,MI HOMECARE LIMITED,36.10,18/01/2019
Delivery Units,Adults and Communities,Other Agencies - Third Party P,90137215,MI HOMECARE LIMITED,36.10,18/01/2019
Delivery Units,Adults and Communities,Other Agencies - Third Party P,90137224,MI HOMECARE LIMITED,261.73,18/01/2019
Delivery Units,Adults and Communities,Other Agencies - Third Party P,90137236,MI HOMECARE LIMITED,442.23,18/01/2019
Delivery Units,Adults and Communities,Other Agencies - Third Party P,90137239,MI HOMECARE LIMITED,18.05,18/01/2019
Delivery Units,Adults and Communities,Other Agencies - Third Party P,90137245,MI HOMECARE LIMITED,126.35,18/01/2019
Delivery Units,Adults and Communities,Other Agencies - Third Party P,90137250,MI HOMECARE LIMITED,94.76,18/01/2019
Delivery Units,Adults and Communities,Other Agencies - Third Party P,90137252,MI HOMECARE LIMITED,58.66,18/01/2019
Delivery Units,Adults and Communities,Other Agencies - Third Party P,90137263,MI HOMECARE LIMITED,94.76,18/01/2019
Delivery Units,Adults and Communities,Other Agencies - Third Party P,90137266,MI HOMECARE LIMITED,31.59,18/01/2019
Delivery Units,Adults and Communities,Other Agencies - Third Party P,90137272,MI HOMECARE LIMITED,90.25,18/01/2019
Delivery Units,Adults and Communities,Other Agencies - Third Party P,90137277,MI HOMECARE LIMITED,216.60,18/01/2019
Delivery Units,Adults and Communities,Other Agencies - Third Party P,90137282,MI HOMECARE LIMITED,342.95,18/01/2019
Delivery Units,Adults and Communities,Other Agencies - Third Party P,90137288,MI HOMECARE LIMITED,198.55,18/01/2019
Delivery Units,Adults and Communities,Other Agencies - Third Party P,90137306,MI HOMECARE LIMITED,189.53,18/01/2019
Delivery Units,Adults and Communities,Other Agencies - Third Party P,90137309,MI HOMECARE LIMITED,198.55,18/01/2019
Delivery Units,Adults and Communities,Other Agencies - Third Party P,90137310,MI HOMECARE LIMITED,31.59,18/01/2019
Delivery Units,Adults and Communities,Other Agencies - Third Party P,90137312,MI HOMECARE LIMITED,816.76,18/01/2019
Delivery Units,Adults and Communities,Other Agencies - Third Party P,90137326,MI HOMECARE LIMITED,157.94,18/01/2019
Delivery Units,Adults and Communities,Other Agencies - Third Party P,90137327,MI HOMECARE LIMITED,94.76,18/01/2019
Delivery Units,Adults and Communities,Other Agencies - Third Party P,90137336,MI HOMECARE LIMITED,94.76,18/01/2019
Delivery Units,Adults and Communities,Other Agencies - Third Party P,90137339,MI HOMECARE LIMITED,99.28,18/01/2019
Delivery Units,Adults and Communities,Other Agencies - Third Party P,90137399,MI HOMECARE LIMITED,36.10,18/01/2019
Delivery Units,Adults and Communities,Other Agencies - Third Party P,90137406,MI HOMECARE LIMITED,18.05,18/01/2019
Delivery Units,Adults and Communities,Other Agencies - Third Party P,90137414,MI HOMECARE LIMITED,261.73,18/01/2019
Delivery Units,Adults and Communities,Other Agencies - Third Party P,90137426,MI HOMECARE LIMITED,442.23,18/01/2019
Delivery Units,Adults and Communities,Other Agencies - Third Party P,90137429,MI HOMECARE LIMITED,18.05,18/01/2019
Delivery Units,Adults and Communities,Other Agencies - Third Party P,90137435,MI HOMECARE LIMITED,126.35,18/01/2019
Delivery Units,Adults and Communities,Other Agencies - Third Party P,90137440,MI HOMECARE LIMITED,94.76,18/01/2019
Delivery Units,Adults and Communities,Other Agencies - Third Party P,90137442,MI HOMECARE LIMITED,58.66,18/01/2019
Delivery Units,Adults and Communities,Other Agencies - Third Party P,90137453,MI HOMECARE LIMITED,94.76,18/01/2019
Delivery Units,Adults and Communities,Other Agencies - Third Party P,90137461,MI HOMECARE LIMITED,108.30,18/01/2019
Delivery Units,Adults and Communities,Other Agencies - Third Party P,90137466,MI HOMECARE LIMITED,144.40,18/01/2019
Delivery Units,Adults and Communities,Other Agencies - Third Party P,90137471,MI HOMECARE LIMITED,333.93,18/01/2019
Delivery Units,Adults and Communities,Other Agencies - Third Party P,90137476,MI HOMECARE LIMITED,243.68,18/01/2019
Delivery Units,Adults and Communities,Other Agencies - Third Party P,90137494,MI HOMECARE LIMITED,189.53,18/01/2019
Delivery Units,Adults and Communities,Other Agencies - Third Party P,90137495,MI HOMECARE LIMITED,852.86,18/01/2019
Delivery Units,Adults and Communities,Other Agencies - Third Party P,90137496,MI HOMECARE LIMITED,198.55,18/01/2019
Delivery Units,Adults and Communities,Other Agencies - Third Party P,90137498,MI HOMECARE LIMITED,807.74,18/01/2019
Delivery Units,Adults and Communities,Other Agencies - Third Party P,90137512,MI HOMECARE LIMITED,157.94,18/01/2019
Delivery Units,Adults and Communities,Other Agencies - Third Party P,90137513,MI HOMECARE LIMITED,94.76,18/01/2019
Delivery Units,Adults and Communities,Other Agencies - Third Party P,90137523,MI HOMECARE LIMITED,94.76,18/01/2019
Delivery Units,Adults and Communities,Other Agencies - Third Party P,90137526,MI HOMECARE LIMITED,99.28,18/01/2019
Delivery Units,Adults and Communities,Other Agencies - Third Party P,90130842,NORTH LONDON ASIAN CARE,887.22,10/01/2019
Delivery Units,Adults and Communities,Other Agencies - Third Party P,90137561,NORWOOD RAVENSWOOD SCHOOLS LTD,334.00,18/01/2019
Delivery Units,Adults and Communities,Other Agencies - Third Party P,90133883,OASIS CARE & TRAINING AGENCY,745.00,04/01/2019
Delivery Units,Adults and Communities,Other Agencies - Third Party P,90133886,OASIS CARE & TRAINING AGENCY,819.50,04/01/2019
Delivery Units,Adults and Communities,Other Agencies - Third Party P,90133890,OASIS CARE & TRAINING AGENCY,908.90,04/01/2019
Delivery Units,Adults and Communities,Other Agencies - Third Party P,90133894,OASIS CARE & TRAINING AGENCY,961.05,04/01/2019
Delivery Units,Adults and Communities,Other Agencies - Third Party P,90131662,PRACTICAL CARE,"1,455.30",08/01/2019
Delivery Units,Adults and Communities,Other Agencies - Third Party P,90131672,PRACTICAL CARE,"1,247.40",08/01/2019
Delivery Units,Adults and Communities,Other Agencies - Third Party P,90132564,PRACTICAL CARE,282.15,15/01/2019
Delivery Units,Adults and Communities,Other Agencies - Third Party P,90132570,PRACTICAL CARE,"1,251.11",15/01/2019
